Workbook

Sheet Disclaimer
D10: Disclaimer
D12: This Design Calculation Spreadsheet is provided "as-is" without warranty of any kind. The Montana Department of Transportation makes no representations or warranties whatsoever with respect to the accuracy or completeness of this tool and assumes no responsibility for the suitability of this tool for a particular purpose; and MDT will not be liable for any damages incurred as a result of errors in this tool. By selecting Accept, you are agreeing to these terms and conditions.
K22: WARNING: For the tool to work properly, please make sure you click on "Enable Content/Macros" if the security warning appears.

Sheet Instructions (hidden)
A3: Cells highlighted with this color are the cells that can be modified.
A4: NOTE: Do not include the "+" sign when inputting stations. For example, type "1000" for Station 10+00.
A5: Select the appropriate tab at the bottom of the screen (i.e. "Unflared Standard W-Beam Run", etc.)
A6: "Direction of Curve" is the direction of the curve (in the direction of stationing). Enter either "RT." of "LT".
A7: Adjusted Clearzone is currently set to adjust the 4:1 clearzone for the radius of curve. This may need to be modified, if the slopes are flatter than 4:1

Sheet Unflared MASH Optional Terminal (hidden)
A1: Design Speed (mph) = | B1: 50 | C1: Radius (ft) = | D1: 1500 | E1: Direction of Curve = | F1: RT. | G1: ADT = | H1: 1790 | I1: Additional Clear Zone Width for Non-Recoverable Slopes* (ft) = | K1: Unadjusted Clear Zone Distance Based on 4:1 Slope, CZt (ft) = RDM Exhibit 9-1 | L1: =IF(B1<=P7,LOOKUP(H1,W7:W10,T7:T10),IF(B1=P11,LOOKUP(H1,W11:W14,T11:T14),IF(B1=P15,LOOKUP(H1,W15:W18,T15:T18),IF(B1=P19,LOOKUP(H1,W19:W22,T19:T22),IF(B1=P23,LOOKUP(H1,W23:W26,T23:T26),IF(B1=P27,LOOKUP(H1,W27:W30,T27:T30),IF(B1=P31,LOOKUP(H1,W31:W34,T31:T34),"Error"))))))) -> 26 | M1: Unadjusted Clear Zone Distance Based on 6:1 Slope, CZt (ft) = RDM Exhibit 9-1 | N1: =IF(B1<=P7,LOOKUP(H1,W7:W10,R7:R10),IF(B1=P11,LOOKUP(H1,W11:W14,R11:R14),IF(B1=P15,LOOKUP(H1,W15:W18,R15:R18),IF(B1=P19,LOOKUP(H1,W19:W22,R19:R22),IF(B1=P23,LOOKUP(H1,W23:W26,R23:R26),IF(B1=P27,LOOKUP(H1,W27:W30,R27:R30),IF(B1=P31,LOOKUP(H1,W31:W34,R31:R34),"Error"))))))) -> 18 | O1: Terminal Length Outside Length of Need (ft) = DTL. DWG. NO. 606-13 | P1: 12.5 | Q1: Terminal Length Within Length of Need (ft) = DTL. DWG. NO. 606-13 | R1: =34+4.5/12 -> 34.375
I2: * With non-recoverable slopes, a 10-foot recovery area is required beyond the toe of the fill slope.
P3: Road Design Manual Exhibit 9-1
A4: Adjacent Traffic | I4: Road Design Manual Exhibit 9-15 | P4: Clear Zone Distances
I5: Barrier Length of Need | P5: Design Speed | R5: Fill Slope/Fore Slopes
A6: Beginning Station For Obstacle | B6: Ending Station For Obstacle | C6: Adjusted Clear Zone Distance (ft) | D6: Runout Length (LR) RDM Exhibit 9-16 | E6: L1 (ft) | F6: L0 (ft) | G6: X (ft) | H6: Side | R6: 6:1 or Flatter | S6: 5:1 | T6: 4:1
C7: =IF(OR(A7="",B7=""),"",$AP$41) ->  | D7: =IF(C7="","",IF($H$1<=$T$61,LOOKUP($H$1,$W$62:$W$70,$T$62:$T$70),IF(AND($H$1<=$S$61,$H$1>$S$60),LOOKUP($H$1,$W$62:$W$70,$S$62:$S$70),IF(AND($H$1<=$R$61,$H$1>$R$60),LOOKUP($H$1,$W$62:$W$70,$R$62:$R$70),IF($H$1>$Q$61,LOOKUP($H$1,$W$62:$W$70,$Q$62:$Q$70)))))) ->  | F7: =C7 ->  | G7: =IF(C7="","",D7*(F7-E7)/F7) ->  | H7: LT. | P7: 40 | Q7: 750 | R7: 8 | S7: 8 | T7: 10 | W7: =IF(H1<750,H1,"Error") -> Error
A8: 4050 | B8: 4175 | C8: =IF(OR(A8="",B8=""),"",$AQ$41) -> 26 | D8: =IF(C8="","",IF($H$1<=$T$61,LOOKUP($H$1,$W$62:$W$70,$T$62:$T$70),IF(AND($H$1<=$S$61,$H$1>$S$60),LOOKUP($H$1,$W$62:$W$70,$S$62:$S$70),IF(AND($H$1<=$R$61,$H$1>$R$60),LOOKUP($H$1,$W$62:$W$70,$R$62:$R$70),IF($H$1>$Q$61,LOOKUP($H$1,$W$62:$W$70,$Q$62:$Q$70)))))) -> 160 | E8: 4 | F8: =C8 -> 26 | G8: =IF(C8="","",D8*(F8-E8)/F8) -> 135.3846154 | H8: RT. | Q8: 750-1499 | R8: 10 | S8: 12 | T8: 14 | W8: =IF(750<=H1,IF(H1<1500,H1,"Error"),"Error") -> Error
Q9: 1500-6000 | R9: 12 | S9: 14 | T9: 16 | W9: =IF(H1>=1500,IF(H1<=6000,H1,"Error"),"Error") -> 1790
A10: Opposing Traffic | Q10: 6000 | R10: 14 | S10: 16 | T10: 18 | W10: =IF(H1>6000,H1,"Error") -> Error
P11: 45 | Q11: 750 | R11: 10 | S11: 12 | T11: 14 | W11: =IF(H1<750,H1,"Error") -> Error
A12: Beginning Station For Obstacle | B12: Ending Station For Obstacle | C12: Adjusted Clear Zone Distance (ft) | D12: Runout Length (LR) RDM Exhibit 9-16 | E12: L1 (ft) | F12: L0 (ft) | G12: X (ft) | H12: Side | Q12: 750-1499 | R12: 14 | S12: 16 | T12: 18 | W12: =IF(750<=H1,IF(H1<1500,H1,"Error"),"Error") -> Error
A13: =IF(A7="","",A7) ->  | B13: =IF(B7="","",B7) ->  | C13: =IF(OR(A13="",B13=""),"",$AP$41) ->  | D13: =IF(C13="","",IF($H$1<=$T$61,LOOKUP($H$1,$W$62:$W$70,$T$62:$T$70),IF(AND($H$1<=$S$61,$H$1>$S$60),LOOKUP($H$1,$W$62:$W$70,$S$62:$S$70),IF(AND($H$1<=$R$61,$H$1>$R$60),LOOKUP($H$1,$W$62:$W$70,$R$62:$R$70),IF($H$1>$Q$61,LOOKUP($H$1,$W$62:$W$70,$Q$62:$Q$70)))))) ->  | F13: =C13 ->  | G13: =IF(C13="","",D13*(F13-E13)/F13) ->  | H13: LT. | Q13: 1500-6000 | R13: 16 | S13: 20 | T13: 24 | W13: =IF(H1>=1500,IF(H1<=6000,H1,"Error"),"Error") -> 1790
A14: =IF(A8="","",A8) -> 4050 | B14: =IF(B8="","",B8) -> 4175 | C14: =IF(OR(A14="",B14=""),"",$AQ$41) -> 26 | D14: =IF(C14="","",IF($H$1<=$T$61,LOOKUP($H$1,$W$62:$W$70,$T$62:$T$70),IF(AND($H$1<=$S$61,$H$1>$S$60),LOOKUP($H$1,$W$62:$W$70,$S$62:$S$70),IF(AND($H$1<=$R$61,$H$1>$R$60),LOOKUP($H$1,$W$62:$W$70,$R$62:$R$70),IF($H$1>$Q$61,LOOKUP($H$1,$W$62:$W$70,$Q$62:$Q$70)))))) -> 160 | E14: 16 | F14: =C14 -> 26 | G14: =IF(C14="","",D14*(F14-E14)/F14) -> 61.53846154 | H14: RT. | Q14: 6000 | R14: 20 | S14: 24 | T14: 26 | W14: =IF(H1>6000,H1,"Error") -> Error
P15: 50 | Q15: 750 | R15: 12 | S15: 12 | T15: 14 | W15: =IF($H$1<750,$H$1,"Error") -> Error
Q16: 750-1499 | R16: 16 | S16: 18 | T16: 20 | W16: =IF(750<=$H$1,IF($H$1<1500,$H$1,"Error"),"Error") -> Error
A17: Calculated Total Length of Need (ft) | B17: Actual Length of Rail (ft) | C17: Actual Length of Need (ft) | D17: Total Barrier Length (ft) | E17: Beginning Station for Barrier | F17: Ending Station for Barrier | G17: Side | Q17: 1500-6000 | R17: 18 | S17: 22 | T17: 26 | W17: =IF($H$1>=1500,IF($H$1<=6000,$H$1,"Error"),"Error") -> 1790
A18: =IF(G13="","",IF(G13>0,G7+B7-A7+G13,G7+B7-A7)) ->  | B18: =IF(A18="","",ROUNDUP((A18-2*$R$1)/12.5,0)*12.5) ->  | C18: =IF(A18="","",B18+2*$R$1) ->  | D18: =IF(A18="","",C18+2*$P$1) ->  | E18: =IF(A18="","",IF(G13>0,A7-(D18-A18)/2-G13,A7-(D18-A18)/2)) ->  | F18: =IF(A18="","",E18+D18) ->  | G18: LT. | Q18: 6000 | R18: 22 | S18: 26 | T18: 28 | W18: =IF($H$1>6000,$H$1,"Error") -> Error
A19: =IF(G14="","",IF(G14>0,G8+B8-A8+G14,G8+B8-A8)) -> 321.9230769 | B19: =IF(A19="","",ROUNDUP((A19-2*$R$1)/12.5,0)*12.5) -> 262.5 | C19: =IF(A19="","",B19+2*$R$1) -> 331.25 | D19: =IF(A19="","",C19+2*$P$1) -> 356.25 | E19: =IF(A19="","",IF(G8>0,A8-(D19-A19)/2-G8,A8-(D19-A19)/2)) -> 3897.451923 | F19: =IF(A19="","",E19+D19) -> 4253.701923 | G19: RT. | P19: 55 | Q19: 750 | R19: 12 | S19: 14 | T19: 18 | W19: =IF($H$1<750,$H$1,"Error") -> Error
Q20: 750-1499 | R20: 16 | S20: 20 | T20: 24 | W20: =IF(750<=$H$1,IF($H$1<1500,$H$1,"Error"),"Error") -> Error
A21: Road Design Manual Exhibit 9-2 | Q21: 1500-6000 | R21: 20 | S21: 24 | T21: 30 | W21: =IF($H$1>=1500,IF($H$1<=6000,$H$1,"Error"),"Error") -> 1790
A22: Horizontal Curve Adjustments | Q22: 6000 | R22: 22 | S22: 26 | T22: 32 | W22: =IF($H$1>6000,$H$1,"Error") -> Error
P23: 60 | Q23: 750 | R23: 16 | S23: 20 | T23: 24 | W23: =IF($H$1<750,$H$1,"Error") -> Error
Q24: 750-1499 | R24: 20 | S24: 26 | T24: 32 | W24: =IF(750<=$H$1,IF($H$1<1500,$H$1,"Error"),"Error") -> Error
Q25: 1500-6000 | R25: 26 | S25: 32 | T25: 40 | W25: =IF($H$1>=1500,IF($H$1<=6000,$H$1,"Error"),"Error") -> 1790
Q26: 6000 | R26: 30 | S26: 36 | T26: 44 | W26: =IF($H$1>6000,$H$1,"Error") -> Error
P27: 70 | Q27: 750 | R27: 20 | S27: 22 | T27: 26 | W27: =IF($H$1<750,$H$1,"Error") -> Error
Q28: 750-1499 | R28: 24 | S28: 30 | T28: 36 | W28: =IF(750<=$H$1,IF($H$1<1500,$H$1,"Error"),"Error") -> Error
Q29: 1500-6000 | R29: 30 | S29: 36 | T29: 42 | W29: =IF($H$1>=1500,IF($H$1<=6000,$H$1,"Error"),"Error") -> 1790
Q30: 6000 | R30: 32 | S30: 38 | T30: 46 | W30: =IF($H$1>6000,$H$1,"Error") -> Error
P31: 80 | Q31: 750 | R31: 24 | S31: 26 | T31: 30 | W31: =IF($H$1<750,$H$1,"Error") -> Error
Q32: 750-1499 | R32: 28 | S32: 32 | T32: 38 | W32: =IF(750<=$H$1,IF($H$1<1500,$H$1,"Error"),"Error") -> Error
Q33: 1500-6000 | R33: 34 | S33: 40 | T33: 46 | W33: =IF($H$1>=1500,IF($H$1<=6000,$H$1,"Error"),"Error") -> 1790
Q34: 6000 | R34: 38 | S34: 44 | T34: 50 | W34: =IF($H$1>6000,$H$1,"Error") -> Error
P35: - For 3:1 slopes, see the procedure in Section 9.2.2.2
P36: - All distances are measured from the edge of the traveled way (ETW)
A38: DTL. DWG. NO. 606-13 | P38: Road Design Manual Exhibit 9-3
P39: Clear Zone Adjustment Factors for Horizontal Curves | AF39: Adjustment Factor
P40: Radius (ft) | Q40: Design Speed (mph) | X40: =P40 -> Radius (ft) | Y40: =Q40 -> Design Speed (mph) | AF40: RT. | AK40: LT. | AP40: RT. | AQ40: LT.
Q41: 40 | R41: 45 | S41: 50 | T41: 55 | U41: 60 | V41: 70 | Y41: =Q41 -> 40 | Z41: 45 | AA41: 50 | AB41: 55 | AC41: 60 | AD41: 70 | AF41: =IF(OR(D1="",F1="LT."),"",IF(D1>X53,D1,IF(B1=Y41,IF(B7<X42,X42,IF(D1>=X42,INDEX(X42:X53,MATCH(D1,X42:X53,1)))),IF(B1=Z41,IF(D1<X43,X43,IF(D1>=X43,INDEX(X43:X53,MATCH(D1,X43:X53,1)))),IF(B1=AA41,IF(D1<X44,X44,IF(D1>=X44,INDEX(X44:X53,MATCH(D1,X44:X53,1)))),IF(B1=AB41,IF(D1<X45,X45,IF(D1>=X45,INDEX(X45:X53,MATCH(D1,X45:X53,1)))),IF(B1=AC41,IF(D1<X46,X46,IF(D1>=X46,INDEX(X46:X53,MATCH(D1,X46:X53,1)))),IF(B1=AD41,IF(D1<X49,X49,IF(D1>=X49,INDEX(X49:X53,MATCH(D1,X49:X53,1)))))))))))) -> 1475 | AG41: =IF(OR(D1="",F1="LT."),"",IF(D1>X53,1,IF(B1=Y41,IF(B7<X42,Y42,IF(D1>=X42,INDEX(Y42:Y53,MATCH(D1,X42:X53,1)))),IF(B1=Z41,IF(D1<X43,Z43,IF(D1>=X43,INDEX(Z43:Z53,MATCH(D1,X43:X53,1)))),IF(B1=AA41,IF(D1<X44,AA44,IF(D1>=X44,INDEX(AA44:AA53,MATCH(D1,X44:X53,1)))),IF(B1=AB41,IF(D1<X45,AB45,IF(D1>=X45,INDEX(AB45:AB53,MATCH(D1,X45:X53,1)))),IF(B1=AC41,IF(D1<X46,AC46,IF(D1>=X46,INDEX(AC46:AC53,MATCH(D1,X46:X53,1)))),IF(B1=AD41,IF(D1<X49,AD49,IF(D1>=X49,INDEX(AD49:AD53,MATCH(D1,X49:X53,1)))))))))))) -> 1.3 | AH41: =IF(OR(D1="",F1="LT."),"",IF(D1>X53,D1,IF(B1=Y41,IF(B7<X42,X42,IF(D1>=X42,INDEX(X42:X53,MATCH(D1,X42:X53,1)+1))),IF(B1=Z41,IF(D1<X43,X43,IF(D1>=X43,INDEX(X43:X53,MATCH(D1,X43:X53,1)+1))),IF(B1=AA41,IF(D1<X44,X44,IF(D1>=X44,INDEX(X44:X53,MATCH(D1,X44:X53,1)+1))),IF(B1=AB41,IF(D1<X45,X45,IF(D1>=X45,INDEX(X45:X53,MATCH(D1,X45:X53,1)+1))),IF(B1=AC41,IF(D1<X46,X46,IF(D1>=X46,INDEX(X46:X53,MATCH(D1,X46:X53,1)+1))),IF(B1=AD41,IF(D1<X49,X49,IF(D1>=X49,INDEX(X49:X53,MATCH(D1,X49:X53,1)+1))))))))))) -> 1640 | AI41: =IF(OR(D1="",F1="LT."),"",IF(D1>X53,1,IF(B1=Y41,IF(B7<X42,Y42,IF(D1>=X42,INDEX(Y42:Y53,MATCH(D1,X42:X53,1)+1))),IF(B1=Z41,IF(D1<X43,Z43,IF(D1>=X43,INDEX(Z43:Z53,MATCH(D1,X43:X53,1)+1))),IF(B1=AA41,IF(D1<X44,AA44,IF(D1>=X44,INDEX(AA44:AA53,MATCH(D1,X44:X53,1)+1))),IF(B1=AB41,IF(D1<X45,AB45,IF(D1>=X45,INDEX(AB45:AB53,MATCH(D1,X45:X53,1)+1))),IF(B1=AC41,IF(D1<X46,AC46,IF(D1>=X46,INDEX(AC46:AC53,MATCH(D1,X46:X53,1)+1))),IF(B1=AD41,IF(D1<X49,AD49,IF(D1>=X49,INDEX(AD49:AD53,MATCH(D1,X49:X53,1)+1))))))))))) -> 1.2 | AJ41: =IF(OR(AF41="",AG41="",AH41="",AI41=""),1,IF(AND(AH41-AF41=0,AG41=AI41),AI41,AG41+($D$1-AF41)*(AI41-AG41)/(AH41-AF41))) -> 1.284848485 | AK41: =IF(OR(D1="",F1="RT."),"",IF(D1>X53,D1,IF(B1=Y41,IF(B7<X42,X42,IF(D1>=X42,INDEX(X42:X53,MATCH(D1,X42:X53,1)))),IF(B1=Z41,IF(D1<X43,X43,IF(D1>=X43,INDEX(X43:X53,MATCH(D1,X43:X53,1)))),IF(B1=AA41,IF(D1<X44,X44,IF(D1>=X44,INDEX(X44:X53,MATCH(D1,X44:X53,1)))),IF(B1=AB41,IF(D1<X45,X45,IF(D1>=X45,INDEX(X45:X53,MATCH(D1,X45:X53,1)))),IF(B1=AC41,IF(D1<X46,X46,IF(D1>=X46,INDEX(X46:X53,MATCH(D1,X46:X53,1)))),IF(B1=AD41,IF(D1<X49,X49,IF(D1>=X49,INDEX(X49:X53,MATCH(D1,X49:X53,1)))))))))))) ->  | AL41: =IF(OR(D1="",F1="RT."),"",IF(D1>X53,1,IF(B1=Y41,IF(B7<X42,Y42,IF(D1>=X42,INDEX(Y42:Y53,MATCH(D1,X42:X53,1)))),IF(B1=Z41,IF(D1<X43,Z43,IF(D1>=X43,INDEX(Z43:Z53,MATCH(D1,X43:X53,1)))),IF(B1=AA41,IF(D1<X44,AA44,IF(D1>=X44,INDEX(AA44:AA53,MATCH(D1,X44:X53,1)))),IF(B1=AB41,IF(D1<X45,AB45,IF(D1>=X45,INDEX(AB45:AB53,MATCH(D1,X45:X53,1)))),IF(B1=AC41,IF(D1<X46,AC46,IF(D1>=X46,INDEX(AC46:AC53,MATCH(D1,X46:X53,1)))),IF(B1=AD41,IF(D1<X49,AD49,IF(D1>=X49,INDEX(AD49:AD53,MATCH(D1,X49:X53,1)))))))))))) ->  | AM41: =IF(OR(D1="",F1="RT."),"",IF(D1>X53,D1,IF(B1=Y41,IF(B7<X42,X42,IF(D1>=X42,INDEX(X42:X53,MATCH(D1,X42:X53,1)+1))),IF(B1=Z41,IF(D1<X43,X43,IF(D1>=X43,INDEX(X43:X53,MATCH(D1,X43:X53,1)+1))),IF(B1=AA41,IF(D1<X44,X44,IF(D1>=X44,INDEX(X44:X53,MATCH(D1,X44:X53,1)+1))),IF(B1=AB41,IF(D1<X45,X45,IF(D1>=X45,INDEX(X45:X53,MATCH(D1,X45:X53,1)+1))),IF(B1=AC41,IF(D1<X46,X46,IF(D1>=X46,INDEX(X46:X53,MATCH(D1,X46:X53,1)+1))),IF(B1=AD41,IF(D1<X49,X49,IF(D1>=X49,INDEX(X49:X53,MATCH(D1,X49:X53,1)+1))))))))))) ->  | AN41: =IF(OR(D1="",F1="RT."),"",IF(D1>X53,1,IF(B1=Y41,IF(B7<X42,Y42,IF(D1>=X42,INDEX(Y42:Y53,MATCH(D1,X42:X53,1)+1))),IF(B1=Z41,IF(D1<X43,Z43,IF(D1>=X43,INDEX(Z43:Z53,MATCH(D1,X43:X53,1)+1))),IF(B1=AA41,IF(D1<X44,AA44,IF(D1>=X44,INDEX(AA44:AA53,MATCH(D1,X44:X53,1)+1))),IF(B1=AB41,IF(D1<X45,AB45,IF(D1>=X45,INDEX(AB45:AB53,MATCH(D1,X45:X53,1)+1))),IF(B1=AC41,IF(D1<X46,AC46,IF(D1>=X46,INDEX(AC46:AC53,MATCH(D1,X46:X53,1)+1))),IF(B1=AD41,IF(D1<X49,AD49,IF(D1>=X49,INDEX(AD49:AD53,MATCH(D1,X49:X53,1)+1))))))))))) ->  | AO41: =IF(OR(AK41="",AL41="",AM41="",AN41=""),1,IF(AND(AM41-AK41=0,AL41=AN41),AN41,AL41+($D$1-AK41)*(AN41-AL41)/(AM41-AK41))) -> 1 | AP41: =L1*AJ41 -> 33.40606061 | AQ41: =L1*AO41 -> 26
P42: 2950 | Q42: 1.1 | R42: 1.1 | S42: 1.1 | T42: 1.2 | U42: 1.2 | V42: 1.2 | X42: =P53 -> 330 | Y42: =Q53 -> 1.5
P43: 2300 | Q43: 1.1 | R43: 1.1 | S43: 1.2 | T43: 1.2 | U43: 1.2 | V43: 1.3 | X43: =P52 -> 495 | Y43: =Q52 -> 1.4 | Z43: =R52 -> 1.5
P44: 1970 | Q44: 1.1 | R44: 1.2 | S44: 1.2 | T44: 1.2 | U44: 1.3 | V44: 1.4 | X44: =P51 -> 660 | Y44: =Q51 -> 1.3 | Z44: =R51 -> 1.4 | AA44: =S51 -> 1.5
P45: 1640 | Q45: 1.1 | R45: 1.2 | S45: 1.2 | T45: 1.3 | U45: 1.3 | V45: 1.4 | X45: =P50 -> 820 | Y45: =Q50 -> 1.3 | Z45: =R50 -> 1.3 | AA45: =S50 -> 1.4 | AB45: =T50 -> 1.5
P46: 1475 | Q46: 1.2 | R46: 1.2 | S46: 1.3 | T46: 1.3 | U46: 1.4 | V46: 1.5 | X46: =P49 -> 985 | Y46: 1.2 | Z46: 1.3 | AA46: 1.4 | AB46: 1.5 | AC46: 1.5
P47: 1315 | Q47: 1.2 | R47: 1.2 | S47: 1.3 | T47: 1.3 | U47: 1.4 | X47: =P48 -> 1150 | Y47: 1.2 | Z47: 1.2 | AA47: 1.3 | AB47: 1.4 | AC47: 1.5
P48: 1150 | Q48: 1.2 | R48: 1.2 | S48: 1.3 | T48: 1.4 | U48: 1.5 | X48: =P47 -> 1315 | Y48: 1.2 | Z48: 1.2 | AA48: 1.3 | AB48: 1.3 | AC48: 1.4
P49: 985 | Q49: 1.2 | R49: 1.3 | S49: 1.4 | T49: 1.5 | U49: 1.5 | X49: =P46 -> 1475 | Y49: 1.2 | Z49: 1.2 | AA49: 1.3 | AB49: 1.3 | AC49: 1.4 | AD49: 1.5
P50: 820 | Q50: 1.3 | R50: 1.3 | S50: 1.4 | T50: 1.5 | X50: =P45 -> 1640 | Y50: 1.1 | Z50: 1.2 | AA50: 1.2 | AB50: 1.3 | AC50: 1.3 | AD50: 1.4
P51: 660 | Q51: 1.3 | R51: 1.4 | S51: 1.5 | X51: =P44 -> 1970 | Y51: 1.1 | Z51: 1.2 | AA51: 1.2 | AB51: 1.2 | AC51: 1.3 | AD51: 1.4
P52: 495 | Q52: 1.4 | R52: 1.5 | X52: =P43 -> 2300 | Y52: 1.1 | Z52: 1.1 | AA52: 1.2 | AB52: 1.2 | AC52: 1.2 | AD52: 1.3
P53: 330 | Q53: 1.5 | X53: =P42 -> 2950 | Y53: 1.1 | Z53: 1.1 | AA53: 1.1 | AB53: 1.2 | AC53: 1.2 | AD53: 1.2
P56: Road Design Manual Exhibit 9-16
P57: Design Elements for Barrier Length of Need
P58: Design Speed (mph) | Q58: Runout Length LR (ft) | U58: Shy Line Offset LS (ft)
Q59: Design Year Traffic Volume (AADT)
R60: 5000 | S60: 1000
Q61: 10000 | R61: 10000 | S61: 5000 | T61: 1000
P62: 80 | Q62: 470 | R62: 430 | S62: 380 | T62: 330 | U62: 12 | W62: =IF($B$1=P62,$H$1,"Error") -> Error
P63: 70 | Q63: 360 | R63: 330 | S63: 290 | T63: 250 | U63: 9 | W63: Error
P64: 60 | Q64: 300 | R64: 250 | S64: 210 | T64: 200 | U64: 12 | W64: Error
P65: 50 | Q65: 230 | R65: 190 | S65: 160 | T65: 150 | U65: 6.5 | W65: 1790
P66: 40 | Q66: 160 | R66: 130 | S66: 110 | T66: 100 | U66: 5 | W66: Error
P67: 30 | Q67: 110 | R67: 90 | S67: 80 | T67: 70 | U67: 4 | W67: Error
P68: 55 | Q68: =AVERAGE(Q64:Q65) -> 265 | R68: 220 | S68: 185 | T68: 175 | U68: 9.25 | W68: Error
P69: 45 | Q69: 195 | R69: 160 | S69: 135 | T69: 125 | U69: 5.75 | W69: Error
P70: 35 | Q70: 135 | R70: 110 | S70: 95 | T70: 85 | U70: 4.5 | W70: Error

Sheet MGS to W-Beam GRDRL Trans. (hidden)
A1: Design Speed (mph) = | B1: 50 | C1: Radius (ft) = | E1: Direction of Curve = | G1: Additional Clear Zone Width for Non-Recoverable Slopes* (ft) = | I1: ADT = | J1: 1790 | K1: Unadjusted Clear Zone Distance Based on 4:1 Slope, CZt (ft) = RDM Exhibit 9-1 | L1: =IF(B1<=R7,LOOKUP(J1,Y7:Y10,V7:V10),IF(B1=R11,LOOKUP(J1,Y11:Y14,V11:V14),IF(B1=R15,LOOKUP(J1,Y15:Y18,V15:V18),IF(B1=R19,LOOKUP(J1,Y19:Y22,V19:V22),IF(B1=R23,LOOKUP(J1,Y23:Y26,V23:V26),IF(B1=R27,LOOKUP(J1,Y27:Y30,V27:V30),IF(B1=R31,LOOKUP(J1,Y31:Y34,V31:V34),"Error"))))))) -> 26 | M1: Unadjusted Clear Zone Distance Based on 6:1 Slope, CZt (ft) = RDM Exhibit 9-1 | N1: =IF(B1<=R7,LOOKUP(J1,Y7:Y10,T7:T10),IF(B1=R11,LOOKUP(J1,Y11:Y14,T11:T14),IF(B1=R15,LOOKUP(J1,Y15:Y18,T15:T18),IF(B1=R19,LOOKUP(J1,Y19:Y22,T19:T22),IF(B1=R23,LOOKUP(J1,Y23:Y26,T23:T26),IF(B1=R27,LOOKUP(J1,Y27:Y30,T27:T30),IF(B1=R31,LOOKUP(J1,Y31:Y34,T31:T34),"Error"))))))) -> 18 | O1: Terminal Length Outside Length of Need (ft) = DTL. DWG. NO. 606-13 | P1: 12.5 | Q1: Terminal Length Within Length of Need (ft) = DTL. DWG. NO. 606-13 | R1: =34+4.5/12 -> 34.375 | S1: MGS to Metal Guardrail Transition Length (ft) = DTL. DWG. NO. 606-20 | T1: =(15+7.5/12)+(12+6/12) -> 28.125
K2: * With non-recoverable slopes, a 10-foot recovery area is required beyond the toe of the fill slope.
R3: Road Design Manual Exhibit 9-1
A4: Adjacent Traffic | K4: Road Design Manual Exhibit 9-15 | R4: Clear Zone Distances
K5: Barrier Length of Need | R5: Design Speed | T5: Fill Slope/Fore Slopes
A6: Beginning Station For Obstacle | B6: Ending Station For Obstacle | C6: Beginning Station Existing Guardrail End of Terminal Section | D6: Beginning Station Existing Guardrail End of Terminal Section | E6: Adjusted Clear Zone Distance (ft) | F6: Runout Length (LR) RDM Exhibit 9-16 | G6: L1 (ft) | H6: L0 (ft) | I6: X (ft) | J6: Side | T6: 6:1 or Flatter | U6: 5:1 | V6: 4:1
E7: =IF(OR(A7="",B7="",C7="",D7=""),"",$AR$41) ->  | F7: =IF(E7="","",IF($J$1<=$V$61,LOOKUP($J$1,$Y$62:$Y$70,$V$62:$V$70),IF(AND($J$1<=$U$61,$J$1>$U$60),LOOKUP($J$1,$Y$62:$Y$70,$U$62:$U$70),IF(AND($J$1<=$T$61,$J$1>$T$60),LOOKUP($J$1,$Y$62:$Y$70,$T$62:$T$70),IF($J$1>$S$61,LOOKUP($J$1,$Y$62:$Y$70,$S$62:$S$70)))))) ->  | G7: 3 | H7: =E7 ->  | I7: =IF(E7="","",F7*(H7-G7)/H7) ->  | J7: LT. | R7: 40 | S7: 750 | T7: 8 | U7: 8 | V7: 10 | Y7: =IF(J1<750,J1,"Error") -> Error
A8: 10877.32 | B8: 11681.81 | C8: 11382.86 | D8: 11695.36 | E8: =IF(OR(A8="",B8="",C8="",D8=""),"",$AS$41) -> 26 | F8: =IF(E8="","",IF($J$1<=$V$61,LOOKUP($J$1,$Y$62:$Y$70,$V$62:$V$70),IF(AND($J$1<=$U$61,$J$1>$U$60),LOOKUP($J$1,$Y$62:$Y$70,$U$62:$U$70),IF(AND($J$1<=$T$61,$J$1>$T$60),LOOKUP($J$1,$Y$62:$Y$70,$T$62:$T$70),IF($J$1>$S$61,LOOKUP($J$1,$Y$62:$Y$70,$S$62:$S$70)))))) -> 160 | G8: 3 | H8: =E8 -> 26 | I8: =IF(E8="","",F8*(H8-G8)/H8) -> 141.5384615 | J8: RT. | S8: 750-1499 | T8: 10 | U8: 12 | V8: 14 | Y8: =IF(750<=J1,IF(J1<1500,J1,"Error"),"Error") -> Error
S9: 1500-6000 | T9: 12 | U9: 14 | V9: 16 | Y9: =IF(J1>=1500,IF(J1<=6000,J1,"Error"),"Error") -> 1790
A10: Opposing Traffic | S10: 6000 | T10: 14 | U10: 16 | V10: 18 | Y10: =IF(J1>6000,J1,"Error") -> Error
R11: 45 | S11: 750 | T11: 10 | U11: 12 | V11: 14 | Y11: =IF(J1<750,J1,"Error") -> Error
A12: Beginning Station For Obstacle | B12: Ending Station For Obstacle | C12: Beginning Station Existing Guardrail End of Terminal Section | D12: Beginning Station Existing Guardrail End of Terminal Section | E12: Adjusted Clear Zone Distance (ft) | F12: Runout Length (LR) RDM Exhibit 9-16 | G12: L1 (ft) | H12: L0 (ft) | I12: X (ft) | J12: Side | S12: 750-1499 | T12: 14 | U12: 16 | V12: 18 | Y12: =IF(750<=J1,IF(J1<1500,J1,"Error"),"Error") -> Error
A13: =IF(A7="","",A7) ->  | B13: =IF(B7="","",B7) ->  | C13: =IF(C7="","",C7) ->  | E13: =IF(OR(A13="",B13="",C13="",D13=""),"",$AR$41) ->  | F13: =IF(E13="","",IF($J$1<=$V$61,LOOKUP($J$1,$Y$62:$Y$70,$V$62:$V$70),IF(AND($J$1<=$U$61,$J$1>$U$60),LOOKUP($J$1,$Y$62:$Y$70,$U$62:$U$70),IF(AND($J$1<=$T$61,$J$1>$T$60),LOOKUP($J$1,$Y$62:$Y$70,$T$62:$T$70),IF($J$1>$S$61,LOOKUP($J$1,$Y$62:$Y$70,$S$62:$S$70)))))) ->  | G13: 15 | H13: =E13 ->  | I13: =IF(E13="","",F13*(H13-G13)/H13) ->  | J13: LT. | S13: 1500-6000 | T13: 16 | U13: 20 | V13: 24 | Y13: =IF(J1>=1500,IF(J1<=6000,J1,"Error"),"Error") -> 1790
A14: =IF(A8="","",A8) -> 10877.32 | B14: =IF(B8="","",B8) -> 11681.81 | C14: =IF(C8="","",C8) -> 11382.86 | D14: 11695.36 | E14: =IF(OR(A14="",B14="",C14="",D14=""),"",$AS$41) -> 26 | F14: =IF(E14="","",IF($J$1<=$V$61,LOOKUP($J$1,$Y$62:$Y$70,$V$62:$V$70),IF(AND($J$1<=$U$61,$J$1>$U$60),LOOKUP($J$1,$Y$62:$Y$70,$U$62:$U$70),IF(AND($J$1<=$T$61,$J$1>$T$60),LOOKUP($J$1,$Y$62:$Y$70,$T$62:$T$70),IF($J$1>$S$61,LOOKUP($J$1,$Y$62:$Y$70,$S$62:$S$70)))))) -> 160 | G14: 15 | H14: =E14 -> 26 | I14: =IF(E14="","",F14*(H14-G14)/H14) -> 67.69230769 | J14: RT. | S14: 6000 | T14: 20 | U14: 24 | V14: 26 | Y14: =IF(J1>6000,J1,"Error") -> Error
R15: 50 | S15: 750 | T15: 12 | U15: 12 | V15: 14 | Y15: =IF($J$1<750,$J$1,"Error") -> Error
S16: 750-1499 | T16: 16 | U16: 18 | V16: 20 | Y16: =IF(750<=$J$1,IF($J$1<1500,$J$1,"Error"),"Error") -> Error
A17: Calculated Total Length of Need (ft) | B17: Beginning Actual Length of Rail (ft) | C17: Ending Actual Length of Rail (ft) | D17: Total Actual Length of Rail (ft) | E17: Beginning Station for Barrier | F17: Ending Station for Barrier | G17: Side | S17: 1500-6000 | T17: 18 | U17: 22 | V17: 26 | Y17: =IF($J$1>=1500,IF($J$1<=6000,$J$1,"Error"),"Error") -> 1790
A18: =IF(I13="","",IF(I13>0,I7+B7-A7+I13,I7+B7-A7)) ->  | B18: =IF(A18="","",ROUNDUP(((C7+50-$T$1)-(A7-I7+$R$1))/12.5,0)*12.5) ->  | C18: =IF(A18="","",ROUNDUP(((B7+I13-$R$1)-(D7-50+$T$1))/12.5,0)*12.5) ->  | D18: =IF(A18="","",B18+C18) ->  | E18: =IF(A18="","",(C7+50-$T$1)-(B18+($P$1+$R$1))) ->  | F18: =IF(A18="","",(D7-50+$T$1)+(C18+($P$1+$R$1))) ->  | G18: LT. | S18: 6000 | T18: 22 | U18: 26 | V18: 28 | Y18: =IF($J$1>6000,$J$1,"Error") -> Error
A19: =IF(I14="","",IF(I14>0,I8+B8-A8+I14,I8+B8-A8)) -> 1013.720769 | B19: =IF(A19="","",ROUNDUP(((C8+50-$T$1)-(A8-I8+$R$1))/12.5,0)*12.5) -> 637.5 | C19: =IF(A19="","",ROUNDUP(((B8+I14-$R$1)-(D8-50+$T$1))/12.5,0)*12.5) -> 50 | D19: =IF(A19="","",B19+C19) -> 687.5 | E19: =IF(A19="","",(C8+50-$T$1)-(B19+($P$1+$R$1))) -> 10720.36 | F19: =IF(A19="","",(D8-50+$T$1)+(C19+($P$1+$R$1))) -> 11770.36 | G19: RT. | R19: 55 | S19: 750 | T19: 12 | U19: 14 | V19: 18 | Y19: =IF($J$1<750,$J$1,"Error") -> Error
S20: 750-1499 | T20: 16 | U20: 20 | V20: 24 | Y20: =IF(750<=$J$1,IF($J$1<1500,$J$1,"Error"),"Error") -> Error
A21: Road Design Manual Exhibit 9-2 | S21: 1500-6000 | T21: 20 | U21: 24 | V21: 30 | Y21: =IF($J$1>=1500,IF($J$1<=6000,$J$1,"Error"),"Error") -> 1790
A22: Horizontal Curve Adjustments | S22: 6000 | T22: 22 | U22: 26 | V22: 32 | Y22: =IF($J$1>6000,$J$1,"Error") -> Error
R23: 60 | S23: 750 | T23: 16 | U23: 20 | V23: 24 | Y23: =IF($J$1<750,$J$1,"Error") -> Error
S24: 750-1499 | T24: 20 | U24: 26 | V24: 32 | Y24: =IF(750<=$J$1,IF($J$1<1500,$J$1,"Error"),"Error") -> Error
S25: 1500-6000 | T25: 26 | U25: 32 | V25: 40 | Y25: =IF($J$1>=1500,IF($J$1<=6000,$J$1,"Error"),"Error") -> 1790
S26: 6000 | T26: 30 | U26: 36 | V26: 44 | Y26: =IF($J$1>6000,$J$1,"Error") -> Error
R27: 70 | S27: 750 | T27: 20 | U27: 22 | V27: 26 | Y27: =IF($J$1<750,$J$1,"Error") -> Error
S28: 750-1499 | T28: 24 | U28: 30 | V28: 36 | Y28: =IF(750<=$J$1,IF($J$1<1500,$J$1,"Error"),"Error") -> Error
S29: 1500-6000 | T29: 30 | U29: 36 | V29: 42 | Y29: =IF($J$1>=1500,IF($J$1<=6000,$J$1,"Error"),"Error") -> 1790
S30: 6000 | T30: 32 | U30: 38 | V30: 46 | Y30: =IF($J$1>6000,$J$1,"Error") -> Error
R31: 80 | S31: 750 | T31: 24 | U31: 26 | V31: 30 | Y31: =IF($J$1<750,$J$1,"Error") -> Error
S32: 750-1499 | T32: 28 | U32: 32 | V32: 38 | Y32: =IF(750<=$J$1,IF($J$1<1500,$J$1,"Error"),"Error") -> Error
S33: 1500-6000 | T33: 34 | U33: 40 | V33: 46 | Y33: =IF($J$1>=1500,IF($J$1<=6000,$J$1,"Error"),"Error") -> 1790
S34: 6000 | T34: 38 | U34: 44 | V34: 50 | Y34: =IF($J$1>6000,$J$1,"Error") -> Error
R35: - For 3:1 slopes, see the procedure in Section 9.2.2.2
R36: - All distances are measured from the edge of the traveled way (ETW)
R38: Road Design Manual Exhibit 9-3
R39: Clear Zone Adjustment Factors for Horizontal Curves | AH39: Adjustment Factor
R40: Radius (ft) | S40: Design Speed (mph) | Z40: =R40 -> Radius (ft) | AA40: =S40 -> Design Speed (mph) | AH40: RT. | AM40: LT. | AR40: RT. | AS40: LT.
S41: 40 | T41: 45 | U41: 50 | V41: 55 | W41: 60 | X41: 70 | AA41: =S41 -> 40 | AB41: 45 | AC41: 50 | AD41: 55 | AE41: 60 | AF41: 70 | AH41: =IF(OR(D1="",F1="LT."),"",IF(D1>Z53,D1,IF(B1=AA41,IF(B7<Z42,Z42,IF(D1>=Z42,INDEX(Z42:Z53,MATCH(D1,Z42:Z53,1)))),IF(B1=AB41,IF(D1<Z43,Z43,IF(D1>=Z43,INDEX(Z43:Z53,MATCH(D1,Z43:Z53,1)))),IF(B1=AC41,IF(D1<Z44,Z44,IF(D1>=Z44,INDEX(Z44:Z53,MATCH(D1,Z44:Z53,1)))),IF(B1=AD41,IF(D1<Z45,Z45,IF(D1>=Z45,INDEX(Z45:Z53,MATCH(D1,Z45:Z53,1)))),IF(B1=AE41,IF(D1<Z46,Z46,IF(D1>=Z46,INDEX(Z46:Z53,MATCH(D1,Z46:Z53,1)))),IF(B1=AF41,IF(D1<Z49,Z49,IF(D1>=Z49,INDEX(Z49:Z53,MATCH(D1,Z49:Z53,1)))))))))))) ->  | AI41: =IF(OR(D1="",F1="LT."),"",IF(D1>Z53,1,IF(B1=AA41,IF(B7<Z42,AA42,IF(D1>=Z42,INDEX(AA42:AA53,MATCH(D1,Z42:Z53,1)))),IF(B1=AB41,IF(D1<Z43,AB43,IF(D1>=Z43,INDEX(AB43:AB53,MATCH(D1,Z43:Z53,1)))),IF(B1=AC41,IF(D1<Z44,AC44,IF(D1>=Z44,INDEX(AC44:AC53,MATCH(D1,Z44:Z53,1)))),IF(B1=AD41,IF(D1<Z45,AD45,IF(D1>=Z45,INDEX(AD45:AD53,MATCH(D1,Z45:Z53,1)))),IF(B1=AE41,IF(D1<Z46,AE46,IF(D1>=Z46,INDEX(AE46:AE53,MATCH(D1,Z46:Z53,1)))),IF(B1=AF41,IF(D1<Z49,AF49,IF(D1>=Z49,INDEX(AF49:AF53,MATCH(D1,Z49:Z53,1)))))))))))) ->  | AJ41: =IF(OR(D1="",F1="LT."),"",IF(D1>Z53,D1,IF(B1=AA41,IF(B7<Z42,Z42,IF(D1>=Z42,INDEX(Z42:Z53,MATCH(D1,Z42:Z53,1)+1))),IF(B1=AB41,IF(D1<Z43,Z43,IF(D1>=Z43,INDEX(Z43:Z53,MATCH(D1,Z43:Z53,1)+1))),IF(B1=AC41,IF(D1<Z44,Z44,IF(D1>=Z44,INDEX(Z44:Z53,MATCH(D1,Z44:Z53,1)+1))),IF(B1=AD41,IF(D1<Z45,Z45,IF(D1>=Z45,INDEX(Z45:Z53,MATCH(D1,Z45:Z53,1)+1))),IF(B1=AE41,IF(D1<Z46,Z46,IF(D1>=Z46,INDEX(Z46:Z53,MATCH(D1,Z46:Z53,1)+1))),IF(B1=AF41,IF(D1<Z49,Z49,IF(D1>=Z49,INDEX(Z49:Z53,MATCH(D1,Z49:Z53,1)+1))))))))))) ->  | AK41: =IF(OR(D1="",F1="LT."),"",IF(D1>Z53,1,IF(B1=AA41,IF(B7<Z42,AA42,IF(D1>=Z42,INDEX(AA42:AA53,MATCH(D1,Z42:Z53,1)+1))),IF(B1=AB41,IF(D1<Z43,AB43,IF(D1>=Z43,INDEX(AB43:AB53,MATCH(D1,Z43:Z53,1)+1))),IF(B1=AC41,IF(D1<Z44,AC44,IF(D1>=Z44,INDEX(AC44:AC53,MATCH(D1,Z44:Z53,1)+1))),IF(B1=AD41,IF(D1<Z45,AD45,IF(D1>=Z45,INDEX(AD45:AD53,MATCH(D1,Z45:Z53,1)+1))),IF(B1=AE41,IF(D1<Z46,AE46,IF(D1>=Z46,INDEX(AE46:AE53,MATCH(D1,Z46:Z53,1)+1))),IF(B1=AF41,IF(D1<Z49,AF49,IF(D1>=Z49,INDEX(AF49:AF53,MATCH(D1,Z49:Z53,1)+1))))))))))) ->  | AL41: =IF(OR(AH41="",AI41="",AJ41="",AK41=""),1,IF(AND(AJ41-AH41=0,AI41=AK41),AK41,AI41+($D$1-AH41)*(AK41-AI41)/(AJ41-AH41))) -> 1 | AM41: =IF(OR(D1="",F1="RT."),"",IF(D1>Z53,D1,IF(B1=AA41,IF(B7<Z42,Z42,IF(D1>=Z42,INDEX(Z42:Z53,MATCH(D1,Z42:Z53,1)))),IF(B1=AB41,IF(D1<Z43,Z43,IF(D1>=Z43,INDEX(Z43:Z53,MATCH(D1,Z43:Z53,1)))),IF(B1=AC41,IF(D1<Z44,Z44,IF(D1>=Z44,INDEX(Z44:Z53,MATCH(D1,Z44:Z53,1)))),IF(B1=AD41,IF(D1<Z45,Z45,IF(D1>=Z45,INDEX(Z45:Z53,MATCH(D1,Z45:Z53,1)))),IF(B1=AE41,IF(D1<Z46,Z46,IF(D1>=Z46,INDEX(Z46:Z53,MATCH(D1,Z46:Z53,1)))),IF(B1=AF41,IF(D1<Z49,Z49,IF(D1>=Z49,INDEX(Z49:Z53,MATCH(D1,Z49:Z53,1)))))))))))) ->  | AN41: =IF(OR(D1="",F1="RT."),"",IF(D1>Z53,1,IF(B1=AA41,IF(B7<Z42,AA42,IF(D1>=Z42,INDEX(AA42:AA53,MATCH(D1,Z42:Z53,1)))),IF(B1=AB41,IF(D1<Z43,AB43,IF(D1>=Z43,INDEX(AB43:AB53,MATCH(D1,Z43:Z53,1)))),IF(B1=AC41,IF(D1<Z44,AC44,IF(D1>=Z44,INDEX(AC44:AC53,MATCH(D1,Z44:Z53,1)))),IF(B1=AD41,IF(D1<Z45,AD45,IF(D1>=Z45,INDEX(AD45:AD53,MATCH(D1,Z45:Z53,1)))),IF(B1=AE41,IF(D1<Z46,AE46,IF(D1>=Z46,INDEX(AE46:AE53,MATCH(D1,Z46:Z53,1)))),IF(B1=AF41,IF(D1<Z49,AF49,IF(D1>=Z49,INDEX(AF49:AF53,MATCH(D1,Z49:Z53,1)))))))))))) ->  | AO41: =IF(OR(D1="",F1="RT."),"",IF(D1>Z53,D1,IF(B1=AA41,IF(B7<Z42,Z42,IF(D1>=Z42,INDEX(Z42:Z53,MATCH(D1,Z42:Z53,1)+1))),IF(B1=AB41,IF(D1<Z43,Z43,IF(D1>=Z43,INDEX(Z43:Z53,MATCH(D1,Z43:Z53,1)+1))),IF(B1=AC41,IF(D1<Z44,Z44,IF(D1>=Z44,INDEX(Z44:Z53,MATCH(D1,Z44:Z53,1)+1))),IF(B1=AD41,IF(D1<Z45,Z45,IF(D1>=Z45,INDEX(Z45:Z53,MATCH(D1,Z45:Z53,1)+1))),IF(B1=AE41,IF(D1<Z46,Z46,IF(D1>=Z46,INDEX(Z46:Z53,MATCH(D1,Z46:Z53,1)+1))),IF(B1=AF41,IF(D1<Z49,Z49,IF(D1>=Z49,INDEX(Z49:Z53,MATCH(D1,Z49:Z53,1)+1))))))))))) ->  | AP41: =IF(OR(D1="",F1="RT."),"",IF(D1>Z53,1,IF(B1=AA41,IF(B7<Z42,AA42,IF(D1>=Z42,INDEX(AA42:AA53,MATCH(D1,Z42:Z53,1)+1))),IF(B1=AB41,IF(D1<Z43,AB43,IF(D1>=Z43,INDEX(AB43:AB53,MATCH(D1,Z43:Z53,1)+1))),IF(B1=AC41,IF(D1<Z44,AC44,IF(D1>=Z44,INDEX(AC44:AC53,MATCH(D1,Z44:Z53,1)+1))),IF(B1=AD41,IF(D1<Z45,AD45,IF(D1>=Z45,INDEX(AD45:AD53,MATCH(D1,Z45:Z53,1)+1))),IF(B1=AE41,IF(D1<Z46,AE46,IF(D1>=Z46,INDEX(AE46:AE53,MATCH(D1,Z46:Z53,1)+1))),IF(B1=AF41,IF(D1<Z49,AF49,IF(D1>=Z49,INDEX(AF49:AF53,MATCH(D1,Z49:Z53,1)+1))))))))))) ->  | AQ41: =IF(OR(AM41="",AN41="",AO41="",AP41=""),1,IF(AND(AO41-AM41=0,AN41=AP41),AP41,AN41+($D$1-AM41)*(AP41-AN41)/(AO41-AM41))) -> 1 | AR41: =L1*AL41 -> 26 | AS41: =L1*AQ41 -> 26
R42: 2950 | S42: 1.1 | T42: 1.1 | U42: 1.1 | V42: 1.2 | W42: 1.2 | X42: 1.2 | Z42: =R53 -> 330 | AA42: =S53 -> 1.5
R43: 2300 | S43: 1.1 | T43: 1.1 | U43: 1.2 | V43: 1.2 | W43: 1.2 | X43: 1.3 | Z43: =R52 -> 495 | AA43: =S52 -> 1.4 | AB43: =T52 -> 1.5
R44: 1970 | S44: 1.1 | T44: 1.2 | U44: 1.2 | V44: 1.2 | W44: 1.3 | X44: 1.4 | Z44: =R51 -> 660 | AA44: =S51 -> 1.3 | AB44: =T51 -> 1.4 | AC44: =U51 -> 1.5
R45: 1640 | S45: 1.1 | T45: 1.2 | U45: 1.2 | V45: 1.3 | W45: 1.3 | X45: 1.4 | Z45: =R50 -> 820 | AA45: =S50 -> 1.3 | AB45: =T50 -> 1.3 | AC45: =U50 -> 1.4 | AD45: =V50 -> 1.5
R46: 1475 | S46: 1.2 | T46: 1.2 | U46: 1.3 | V46: 1.3 | W46: 1.4 | X46: 1.5 | Z46: =R49 -> 985 | AA46: 1.2 | AB46: 1.3 | AC46: 1.4 | AD46: 1.5 | AE46: 1.5
R47: 1315 | S47: 1.2 | T47: 1.2 | U47: 1.3 | V47: 1.3 | W47: 1.4 | Z47: =R48 -> 1150 | AA47: 1.2 | AB47: 1.2 | AC47: 1.3 | AD47: 1.4 | AE47: 1.5
R48: 1150 | S48: 1.2 | T48: 1.2 | U48: 1.3 | V48: 1.4 | W48: 1.5 | Z48: =R47 -> 1315 | AA48: 1.2 | AB48: 1.2 | AC48: 1.3 | AD48: 1.3 | AE48: 1.4
R49: 985 | S49: 1.2 | T49: 1.3 | U49: 1.4 | V49: 1.5 | W49: 1.5 | Z49: =R46 -> 1475 | AA49: 1.2 | AB49: 1.2 | AC49: 1.3 | AD49: 1.3 | AE49: 1.4 | AF49: 1.5
R50: 820 | S50: 1.3 | T50: 1.3 | U50: 1.4 | V50: 1.5 | Z50: =R45 -> 1640 | AA50: 1.1 | AB50: 1.2 | AC50: 1.2 | AD50: 1.3 | AE50: 1.3 | AF50: 1.4
R51: 660 | S51: 1.3 | T51: 1.4 | U51: 1.5 | Z51: =R44 -> 1970 | AA51: 1.1 | AB51: 1.2 | AC51: 1.2 | AD51: 1.2 | AE51: 1.3 | AF51: 1.4
R52: 495 | S52: 1.4 | T52: 1.5 | Z52: =R43 -> 2300 | AA52: 1.1 | AB52: 1.1 | AC52: 1.2 | AD52: 1.2 | AE52: 1.2 | AF52: 1.3
R53: 330 | S53: 1.5 | Z53: =R42 -> 2950 | AA53: 1.1 | AB53: 1.1 | AC53: 1.1 | AD53: 1.2 | AE53: 1.2 | AF53: 1.2
R56: Road Design Manual Exhibit 9-16
R57: Design Elements for Barrier Length of Need
R58: Design Speed (mph) | S58: Runout Length LR (ft) | W58: Shy Line Offset LS (ft)
S59: Design Year Traffic Volume (AADT)
T60: 5000 | U60: 1000
S61: 10000 | T61: 10000 | U61: 5000 | V61: 1000
R62: 80 | S62: 470 | T62: 430 | U62: 380 | V62: 330 | W62: 12 | Y62: =IF($B$1=R62,$J$1,"Error") -> Error
R63: 70 | S63: 360 | T63: 330 | U63: 290 | V63: 250 | W63: 9 | Y63: Error
R64: 60 | S64: 300 | T64: 250 | U64: 210 | V64: 200 | W64: 12 | Y64: Error
R65: 50 | S65: 230 | T65: 190 | U65: 160 | V65: 150 | W65: 6.5 | Y65: 1790
R66: 40 | S66: 160 | T66: 130 | U66: 110 | V66: 100 | W66: 5 | Y66: Error
R67: 30 | S67: 110 | T67: 90 | U67: 80 | V67: 70 | W67: 4 | Y67: Error
R68: 55 | S68: =AVERAGE(S64:S65) -> 265 | T68: 220 | U68: 185 | V68: 175 | W68: 9.25 | Y68: Error
R69: 45 | S69: 195 | T69: 160 | U69: 135 | V69: 125 | W69: 5.75 | Y69: Error
R70: 35 | S70: 135 | T70: 110 | U70: 95 | V70: 85 | W70: 4.5 | Y70: Error

Sheet MGS Bridge Appr. Sections (hidden)
A1: Design Speed (mph) = | B1: 70 | C1: Radius (ft) = | E1: Direction of Curve = | G1: ADT = | H1: 8460 | I1: Additional Clear Zone Width for Non-Recoverable Slopes* (ft) = | K1: Unadjusted Clear Zone Distance Based on 4:1 Slope, CZt (ft) = RDM Exhibit 9-1 | L1: =IF(B1<=W7,LOOKUP(H1,AD7:AD10,AA7:AA10),IF(B1=W11,LOOKUP(H1,AD11:AD14,AA11:AA14),IF(B1=W15,LOOKUP(H1,AD15:AD18,AA15:AA18),IF(B1=W19,LOOKUP(H1,AD19:AD22,AA19:AA22),IF(B1=W23,LOOKUP(H1,AD23:AD26,AA23:AA26),IF(B1=W27,LOOKUP(H1,AD27:AD30,AA27:AA30),IF(B1=W31,LOOKUP(H1,AD31:AD34,AA31:AA34),"Error"))))))) -> 46 | M1: Unadjusted Clear Zone Distance Based on 6:1 Slope, CZt (ft) = RDM Exhibit 9-1 | N1: =IF(B1<=W7,LOOKUP(H1,AD7:AD10,Y7:Y10),IF(B1=W11,LOOKUP(H1,AD11:AD14,Y11:Y14),IF(B1=W15,LOOKUP(H1,AD15:AD18,Y15:Y18),IF(B1=W19,LOOKUP(H1,AD19:AD22,Y19:Y22),IF(B1=W23,LOOKUP(H1,AD23:AD26,Y23:Y26),IF(B1=W27,LOOKUP(H1,AD27:AD30,Y27:Y30),IF(B1=W31,LOOKUP(H1,AD31:AD34,Y31:Y34),"Error"))))))) -> 32 | O1: Terminal Length Outside Length of Need (ft) = DTL. DWG. NO. 606-13 | P1: 12.5 | Q1: Terminal Length Within Length of Need (ft) = DTL. DWG. NO. 606-13 | R1: =34+4.5/12 -> 34.375 | S1: Bridge Appr. Section Pay Limits Length (ft) = DTL. DWG. NO. 606-24A & 606-24B | T1: 25
I2: * With non-recoverable slopes, a 10-foot recovery area is required beyond the toe of the fill slope.
W3: Road Design Manual Exhibit 9-1
A4: Adjacent Traffic | O4: Road Design Manual Exhibit 9-15 | W4: Clear Zone Distances
O5: Barrier Length of Need | W5: Design Speed | Y5: Fill Slope/Fore Slopes
A6: Bridge End Station | B6: Adjusted Clear Zone Distance (ft) | C6: Runout Length (LR) RDM Exhibit 9-16 | D6: L1 (ft) | E6: L0 (ft) | F6: X (ft) | G6: Calculated Total Length of Need (ft) | H6: Actual Length of Rail (ft) | I6: Actual Length of Need (ft) | J6: Total Barrier Length (ft) | K6: Beginning/Ending Station for End Sections | L6: Beginning Station for Rail | M6: Ending Station for Rail | N6: Side | Y6: 6:1 or Flatter | Z6: 5:1 | AA6: 4:1
A7: 50000 | B7: =IF(A7="","",$AX$41) -> 46 | C7: =IF(B7="","",IF($H$1<=$AA$61,LOOKUP($H$1,$AD$62:$AD$70,$AA$62:$AA$70),IF(AND($H$1<=$Z$61,$H$1>$Z$60),LOOKUP($H$1,$AD$62:$AD$70,$Z$62:$Z$70),IF(AND($H$1<=$Y$61,$H$1>$Y$60),LOOKUP($H$1,$AD$62:$AD$70,$Y$62:$Y$70),IF($H$1>$X$61,LOOKUP($H$1,$AD$62:$AD$70,$X$62:$X$70)))))) -> 330 | D7: 4 | E7: =B7 -> 46 | F7: =IF(B7="","",C7*(E7-D7)/E7) -> 301.3043478 | G7: =IF(B7="","",F7) -> 301.3043478 | H7: =IF(A7="","",ROUNDUP((G7-($R$1+$T$1))/12.5,0)*12.5) -> 250 | I7: =IF(A7="","",H7+$R$1+$T$1) -> 309.375 | J7: =IF(A7="","",I7+$P$1) -> 321.875 | K7: =A7-J7 -> 49678.125 | L7: =K7+($P$1+$R$1) -> 49725 | M7: =A7-$T$1 -> 49975 | N7: RT. | W7: 40 | X7: 750 | Y7: 8 | Z7: 8 | AA7: 10 | AD7: =IF(H1<750,H1,"Error") -> Error
A8: 60000 | B8: =IF(A8="","",$AW$41) -> 46 | C8: =IF(B8="","",IF($H$1<=$AA$61,LOOKUP($H$1,$AD$62:$AD$70,$AA$62:$AA$70),IF(AND($H$1<=$Z$61,$H$1>$Z$60),LOOKUP($H$1,$AD$62:$AD$70,$Z$62:$Z$70),IF(AND($H$1<=$Y$61,$H$1>$Y$60),LOOKUP($H$1,$AD$62:$AD$70,$Y$62:$Y$70),IF($H$1>$X$61,LOOKUP($H$1,$AD$62:$AD$70,$X$62:$X$70)))))) -> 330 | D8: 4 | E8: =B8 -> 46 | F8: =IF(B8="","",C8*(E8-D8)/E8) -> 301.3043478 | G8: =IF(B8="","",F8) -> 301.3043478 | H8: =IF(A8="","",ROUNDUP((G8-($R$1+$T$1))/12.5,0)*12.5) -> 250 | I8: =IF(A8="","",H8+$R$1+$T$1) -> 309.375 | J8: =IF(A8="","",I8+$P$1) -> 321.875 | K8: =A8+J8 -> 60321.875 | L8: =A8+$T$1 -> 60025 | M8: =K8-($P$1+$R$1) -> 60275 | N8: LT. | X8: 750-1499 | Y8: 10 | Z8: 12 | AA8: 14 | AD8: =IF(750<=H1,IF(H1<1500,H1,"Error"),"Error") -> Error
X9: 1500-6000 | Y9: 12 | Z9: 14 | AA9: 16 | AD9: =IF(H1>=1500,IF(H1<=6000,H1,"Error"),"Error") -> Error
A10: Opposing Traffic | X10: 6000 | Y10: 14 | Z10: 16 | AA10: 18 | AD10: =IF(H1>6000,H1,"Error") -> 8460
W11: 45 | X11: 750 | Y11: 10 | Z11: 12 | AA11: 14 | AD11: =IF(H1<750,H1,"Error") -> Error
A12: Beginning Station For Obstacle | B12: Adjusted Clear Zone Distance (ft) | C12: Runout Length (LR) RDM Exhibit 9-16 | D12: L1 (ft) | E12: L0 (ft) | F12: X (ft) | G12: Calculated Total Length of Need (ft) | H12: Actual Length of Rail (ft) | I12: Actual Length of Need (ft) | J12: Total Barrier Length (ft) | K12: Beginning/Ending Station for End Sections | L12: Beginning Station for Rail | M12: Ending Station for Rail | N12: Side | X12: 750-1499 | Y12: 14 | Z12: 16 | AA12: 18 | AD12: =IF(750<=H1,IF(H1<1500,H1,"Error"),"Error") -> Error
A13: =IF(A7="","",A7) -> 50000 | B13: =IF(A13="","",$AW$41) -> 46 | C13: =IF(B13="","",IF($H$1<=$AA$61,LOOKUP($H$1,$AD$62:$AD$70,$AA$62:$AA$70),IF(AND($H$1<=$Z$61,$H$1>$Z$60),LOOKUP($H$1,$AD$62:$AD$70,$Z$62:$Z$70),IF(AND($H$1<=$Y$61,$H$1>$Y$60),LOOKUP($H$1,$AD$62:$AD$70,$Y$62:$Y$70),IF($H$1>$X$61,LOOKUP($H$1,$AD$62:$AD$70,$X$62:$X$70)))))) -> 330 | D13: 16 | E13: =B13 -> 46 | F13: =IF(B13="","",C13*(E13-D13)/E13) -> 215.2173913 | G13: =IF(B13="","",F13) -> 215.2173913 | H13: =IF(A13="","",ROUNDUP((G13-($R$1+$T$1))/12.5,0)*12.5) -> 162.5 | I13: =IF(A13="","",H13+$R$1+$T$1) -> 221.875 | J13: =IF(A13="","",I13+$P$1) -> 234.375 | K13: =A13-J13 -> 49765.625 | L13: =K13+($P$1+$R$1) -> 49812.5 | M13: =A13-$T$1 -> 49975 | N13: LT. | X13: 1500-6000 | Y13: 16 | Z13: 20 | AA13: 24 | AD13: =IF(H1>=1500,IF(H1<=6000,H1,"Error"),"Error") -> Error
A14: =IF(A8="","",A8) -> 60000 | B14: =IF(A14="","",$AX$41) -> 46 | C14: =IF(B14="","",IF($H$1<=$AA$61,LOOKUP($H$1,$AD$62:$AD$70,$AA$62:$AA$70),IF(AND($H$1<=$Z$61,$H$1>$Z$60),LOOKUP($H$1,$AD$62:$AD$70,$Z$62:$Z$70),IF(AND($H$1<=$Y$61,$H$1>$Y$60),LOOKUP($H$1,$AD$62:$AD$70,$Y$62:$Y$70),IF($H$1>$X$61,LOOKUP($H$1,$AD$62:$AD$70,$X$62:$X$70)))))) -> 330 | D14: 16 | E14: =B14 -> 46 | F14: =IF(B14="","",C14*(E14-D14)/E14) -> 215.2173913 | G14: =IF(B14="","",F14) -> 215.2173913 | H14: =IF(A14="","",ROUNDUP((G14-($R$1+$T$1))/12.5,0)*12.5) -> 162.5 | I14: =IF(A14="","",H14+$R$1+$T$1) -> 221.875 | J14: =IF(A14="","",I14+$P$1) -> 234.375 | K14: =A14+J14 -> 60234.375 | L14: =A14+$T$1 -> 60025 | M14: =K14-($P$1+$R$1) -> 60187.5 | N14: RT. | X14: 6000 | Y14: 20 | Z14: 24 | AA14: 26 | AD14: =IF(H1>6000,H1,"Error") -> 8460
W15: 50 | X15: 750 | Y15: 12 | Z15: 12 | AA15: 14 | AD15: =IF($H$1<750,$H$1,"Error") -> Error
X16: 750-1499 | Y16: 16 | Z16: 18 | AA16: 20 | AD16: =IF(750<=$H$1,IF($H$1<1500,$H$1,"Error"),"Error") -> Error
A17: Road Design Manual Exhibit 9-2 | X17: 1500-6000 | Y17: 18 | Z17: 22 | AA17: 26 | AD17: =IF($H$1>=1500,IF($H$1<=6000,$H$1,"Error"),"Error") -> Error
A18: Horizontal Curve Adjustments | X18: 6000 | Y18: 22 | Z18: 26 | AA18: 28 | AD18: =IF($H$1>6000,$H$1,"Error") -> 8460
W19: 55 | X19: 750 | Y19: 12 | Z19: 14 | AA19: 18 | AD19: =IF($H$1<750,$H$1,"Error") -> Error
X20: 750-1499 | Y20: 16 | Z20: 20 | AA20: 24 | AD20: =IF(750<=$H$1,IF($H$1<1500,$H$1,"Error"),"Error") -> Error
X21: 1500-6000 | Y21: 20 | Z21: 24 | AA21: 30 | AD21: =IF($H$1>=1500,IF($H$1<=6000,$H$1,"Error"),"Error") -> Error
X22: 6000 | Y22: 22 | Z22: 26 | AA22: 32 | AD22: =IF($H$1>6000,$H$1,"Error") -> 8460
W23: 60 | X23: 750 | Y23: 16 | Z23: 20 | AA23: 24 | AD23: =IF($H$1<750,$H$1,"Error") -> Error
X24: 750-1499 | Y24: 20 | Z24: 26 | AA24: 32 | AD24: =IF(750<=$H$1,IF($H$1<1500,$H$1,"Error"),"Error") -> Error
X25: 1500-6000 | Y25: 26 | Z25: 32 | AA25: 40 | AD25: =IF($H$1>=1500,IF($H$1<=6000,$H$1,"Error"),"Error") -> Error
X26: 6000 | Y26: 30 | Z26: 36 | AA26: 44 | AD26: =IF($H$1>6000,$H$1,"Error") -> 8460
W27: 70 | X27: 750 | Y27: 20 | Z27: 22 | AA27: 26 | AD27: =IF($H$1<750,$H$1,"Error") -> Error
X28: 750-1499 | Y28: 24 | Z28: 30 | AA28: 36 | AD28: =IF(750<=$H$1,IF($H$1<1500,$H$1,"Error"),"Error") -> Error
X29: 1500-6000 | Y29: 30 | Z29: 36 | AA29: 42 | AD29: =IF($H$1>=1500,IF($H$1<=6000,$H$1,"Error"),"Error") -> Error
X30: 6000 | Y30: 32 | Z30: 38 | AA30: 46 | AD30: =IF($H$1>6000,$H$1,"Error") -> 8460
W31: 80 | X31: 750 | Y31: 24 | Z31: 26 | AA31: 30 | AD31: =IF($H$1<750,$H$1,"Error") -> Error
X32: 750-1499 | Y32: 28 | Z32: 32 | AA32: 38 | AD32: =IF(750<=$H$1,IF($H$1<1500,$H$1,"Error"),"Error") -> Error
X33: 1500-6000 | Y33: 34 | Z33: 40 | AA33: 46 | AD33: =IF($H$1>=1500,IF($H$1<=6000,$H$1,"Error"),"Error") -> Error
X34: 6000 | Y34: 38 | Z34: 44 | AA34: 50 | AD34: =IF($H$1>6000,$H$1,"Error") -> 8460
W35: - For 3:1 slopes, see the procedure in Section 9.2.2.2
W36: - All distances are measured from the edge of the traveled way (ETW)
W38: Road Design Manual Exhibit 9-3
W39: Clear Zone Adjustment Factors for Horizontal Curves | AM39: Adjustment Factor
W40: Radius (ft) | X40: Design Speed (mph) | AE40: =W40 -> Radius (ft) | AF40: =X40 -> Design Speed (mph) | AM40: RT. | AR40: LT. | AW40: RT. | AX40: LT.
X41: 40 | Y41: 45 | Z41: 50 | AA41: 55 | AB41: 60 | AC41: 70 | AF41: =X41 -> 40 | AG41: 45 | AH41: 50 | AI41: 55 | AJ41: 60 | AK41: 70 | AM41: =IF(OR(D1="",F1="LT."),"",IF(D1>AE53,D1,IF(B1=AF41,IF(#REF!<AE42,AE42,IF(D1>=AE42,INDEX(AE42:AE53,MATCH(D1,AE42:AE53,1)))),IF(B1=AG41,IF(D1<AE43,AE43,IF(D1>=AE43,INDEX(AE43:AE53,MATCH(D1,AE43:AE53,1)))),IF(B1=AH41,IF(D1<AE44,AE44,IF(D1>=AE44,INDEX(AE44:AE53,MATCH(D1,AE44:AE53,1)))),IF(B1=AI41,IF(D1<AE45,AE45,IF(D1>=AE45,INDEX(AE45:AE53,MATCH(D1,AE45:AE53,1)))),IF(B1=AJ41,IF(D1<AE46,AE46,IF(D1>=AE46,INDEX(AE46:AE53,MATCH(D1,AE46:AE53,1)))),IF(B1=AK41,IF(D1<AE49,AE49,IF(D1>=AE49,INDEX(AE49:AE53,MATCH(D1,AE49:AE53,1)))))))))))) ->  | AN41: =IF(OR(D1="",F1="LT."),"",IF(D1>AE53,1,IF(B1=AF41,IF(#REF!<AE42,AF42,IF(D1>=AE42,INDEX(AF42:AF53,MATCH(D1,AE42:AE53,1)))),IF(B1=AG41,IF(D1<AE43,AG43,IF(D1>=AE43,INDEX(AG43:AG53,MATCH(D1,AE43:AE53,1)))),IF(B1=AH41,IF(D1<AE44,AH44,IF(D1>=AE44,INDEX(AH44:AH53,MATCH(D1,AE44:AE53,1)))),IF(B1=AI41,IF(D1<AE45,AI45,IF(D1>=AE45,INDEX(AI45:AI53,MATCH(D1,AE45:AE53,1)))),IF(B1=AJ41,IF(D1<AE46,AJ46,IF(D1>=AE46,INDEX(AJ46:AJ53,MATCH(D1,AE46:AE53,1)))),IF(B1=AK41,IF(D1<AE49,AK49,IF(D1>=AE49,INDEX(AK49:AK53,MATCH(D1,AE49:AE53,1)))))))))))) ->  | AO41: =IF(OR(D1="",F1="LT."),"",IF(D1>AE53,D1,IF(B1=AF41,IF(#REF!<AE42,AE42,IF(D1>=AE42,INDEX(AE42:AE53,MATCH(D1,AE42:AE53,1)+1))),IF(B1=AG41,IF(D1<AE43,AE43,IF(D1>=AE43,INDEX(AE43:AE53,MATCH(D1,AE43:AE53,1)+1))),IF(B1=AH41,IF(D1<AE44,AE44,IF(D1>=AE44,INDEX(AE44:AE53,MATCH(D1,AE44:AE53,1)+1))),IF(B1=AI41,IF(D1<AE45,AE45,IF(D1>=AE45,INDEX(AE45:AE53,MATCH(D1,AE45:AE53,1)+1))),IF(B1=AJ41,IF(D1<AE46,AE46,IF(D1>=AE46,INDEX(AE46:AE53,MATCH(D1,AE46:AE53,1)+1))),IF(B1=AK41,IF(D1<AE49,AE49,IF(D1>=AE49,INDEX(AE49:AE53,MATCH(D1,AE49:AE53,1)+1))))))))))) ->  | AP41: =IF(OR(D1="",F1="LT."),"",IF(D1>AE53,1,IF(B1=AF41,IF(#REF!<AE42,AF42,IF(D1>=AE42,INDEX(AF42:AF53,MATCH(D1,AE42:AE53,1)+1))),IF(B1=AG41,IF(D1<AE43,AG43,IF(D1>=AE43,INDEX(AG43:AG53,MATCH(D1,AE43:AE53,1)+1))),IF(B1=AH41,IF(D1<AE44,AH44,IF(D1>=AE44,INDEX(AH44:AH53,MATCH(D1,AE44:AE53,1)+1))),IF(B1=AI41,IF(D1<AE45,AI45,IF(D1>=AE45,INDEX(AI45:AI53,MATCH(D1,AE45:AE53,1)+1))),IF(B1=AJ41,IF(D1<AE46,AJ46,IF(D1>=AE46,INDEX(AJ46:AJ53,MATCH(D1,AE46:AE53,1)+1))),IF(B1=AK41,IF(D1<AE49,AK49,IF(D1>=AE49,INDEX(AK49:AK53,MATCH(D1,AE49:AE53,1)+1))))))))))) ->  | AQ41: =IF(OR(AM41="",AN41="",AO41="",AP41=""),1,IF(AND(AO41-AM41=0,AN41=AP41),AP41,AN41+($D$1-AM41)*(AP41-AN41)/(AO41-AM41))) -> 1 | AR41: =IF(OR(D1="",F1="RT."),"",IF(D1>AE53,D1,IF(B1=AF41,IF(#REF!<AE42,AE42,IF(D1>=AE42,INDEX(AE42:AE53,MATCH(D1,AE42:AE53,1)))),IF(B1=AG41,IF(D1<AE43,AE43,IF(D1>=AE43,INDEX(AE43:AE53,MATCH(D1,AE43:AE53,1)))),IF(B1=AH41,IF(D1<AE44,AE44,IF(D1>=AE44,INDEX(AE44:AE53,MATCH(D1,AE44:AE53,1)))),IF(B1=AI41,IF(D1<AE45,AE45,IF(D1>=AE45,INDEX(AE45:AE53,MATCH(D1,AE45:AE53,1)))),IF(B1=AJ41,IF(D1<AE46,AE46,IF(D1>=AE46,INDEX(AE46:AE53,MATCH(D1,AE46:AE53,1)))),IF(B1=AK41,IF(D1<AE49,AE49,IF(D1>=AE49,INDEX(AE49:AE53,MATCH(D1,AE49:AE53,1)))))))))))) ->  | AS41: =IF(OR(D1="",F1="RT."),"",IF(D1>AE53,1,IF(B1=AF41,IF(#REF!<AE42,AF42,IF(D1>=AE42,INDEX(AF42:AF53,MATCH(D1,AE42:AE53,1)))),IF(B1=AG41,IF(D1<AE43,AG43,IF(D1>=AE43,INDEX(AG43:AG53,MATCH(D1,AE43:AE53,1)))),IF(B1=AH41,IF(D1<AE44,AH44,IF(D1>=AE44,INDEX(AH44:AH53,MATCH(D1,AE44:AE53,1)))),IF(B1=AI41,IF(D1<AE45,AI45,IF(D1>=AE45,INDEX(AI45:AI53,MATCH(D1,AE45:AE53,1)))),IF(B1=AJ41,IF(D1<AE46,AJ46,IF(D1>=AE46,INDEX(AJ46:AJ53,MATCH(D1,AE46:AE53,1)))),IF(B1=AK41,IF(D1<AE49,AK49,IF(D1>=AE49,INDEX(AK49:AK53,MATCH(D1,AE49:AE53,1)))))))))))) ->  | AT41: =IF(OR(D1="",F1="RT."),"",IF(D1>AE53,D1,IF(B1=AF41,IF(#REF!<AE42,AE42,IF(D1>=AE42,INDEX(AE42:AE53,MATCH(D1,AE42:AE53,1)+1))),IF(B1=AG41,IF(D1<AE43,AE43,IF(D1>=AE43,INDEX(AE43:AE53,MATCH(D1,AE43:AE53,1)+1))),IF(B1=AH41,IF(D1<AE44,AE44,IF(D1>=AE44,INDEX(AE44:AE53,MATCH(D1,AE44:AE53,1)+1))),IF(B1=AI41,IF(D1<AE45,AE45,IF(D1>=AE45,INDEX(AE45:AE53,MATCH(D1,AE45:AE53,1)+1))),IF(B1=AJ41,IF(D1<AE46,AE46,IF(D1>=AE46,INDEX(AE46:AE53,MATCH(D1,AE46:AE53,1)+1))),IF(B1=AK41,IF(D1<AE49,AE49,IF(D1>=AE49,INDEX(AE49:AE53,MATCH(D1,AE49:AE53,1)+1))))))))))) ->  | AU41: =IF(OR(D1="",F1="RT."),"",IF(D1>AE53,1,IF(B1=AF41,IF(#REF!<AE42,AF42,IF(D1>=AE42,INDEX(AF42:AF53,MATCH(D1,AE42:AE53,1)+1))),IF(B1=AG41,IF(D1<AE43,AG43,IF(D1>=AE43,INDEX(AG43:AG53,MATCH(D1,AE43:AE53,1)+1))),IF(B1=AH41,IF(D1<AE44,AH44,IF(D1>=AE44,INDEX(AH44:AH53,MATCH(D1,AE44:AE53,1)+1))),IF(B1=AI41,IF(D1<AE45,AI45,IF(D1>=AE45,INDEX(AI45:AI53,MATCH(D1,AE45:AE53,1)+1))),IF(B1=AJ41,IF(D1<AE46,AJ46,IF(D1>=AE46,INDEX(AJ46:AJ53,MATCH(D1,AE46:AE53,1)+1))),IF(B1=AK41,IF(D1<AE49,AK49,IF(D1>=AE49,INDEX(AK49:AK53,MATCH(D1,AE49:AE53,1)+1))))))))))) ->  | AV41: =IF(OR(AR41="",AS41="",AT41="",AU41=""),1,IF(AND(AT41-AR41=0,AS41=AU41),AU41,AS41+($D$1-AR41)*(AU41-AS41)/(AT41-AR41))) -> 1 | AW41: =L1*AQ41 -> 46 | AX41: =L1*AV41 -> 46
W42: 2950 | X42: 1.1 | Y42: 1.1 | Z42: 1.1 | AA42: 1.2 | AB42: 1.2 | AC42: 1.2 | AE42: =W53 -> 330 | AF42: =X53 -> 1.5
W43: 2300 | X43: 1.1 | Y43: 1.1 | Z43: 1.2 | AA43: 1.2 | AB43: 1.2 | AC43: 1.3 | AE43: =W52 -> 495 | AF43: =X52 -> 1.4 | AG43: =Y52 -> 1.5
W44: 1970 | X44: 1.1 | Y44: 1.2 | Z44: 1.2 | AA44: 1.2 | AB44: 1.3 | AC44: 1.4 | AE44: =W51 -> 660 | AF44: =X51 -> 1.3 | AG44: =Y51 -> 1.4 | AH44: =Z51 -> 1.5
W45: 1640 | X45: 1.1 | Y45: 1.2 | Z45: 1.2 | AA45: 1.3 | AB45: 1.3 | AC45: 1.4 | AE45: =W50 -> 820 | AF45: =X50 -> 1.3 | AG45: =Y50 -> 1.3 | AH45: =Z50 -> 1.4 | AI45: =AA50 -> 1.5
W46: 1475 | X46: 1.2 | Y46: 1.2 | Z46: 1.3 | AA46: 1.3 | AB46: 1.4 | AC46: 1.5 | AE46: =W49 -> 985 | AF46: 1.2 | AG46: 1.3 | AH46: 1.4 | AI46: 1.5 | AJ46: 1.5
W47: 1315 | X47: 1.2 | Y47: 1.2 | Z47: 1.3 | AA47: 1.3 | AB47: 1.4 | AE47: =W48 -> 1150 | AF47: 1.2 | AG47: 1.2 | AH47: 1.3 | AI47: 1.4 | AJ47: 1.5
W48: 1150 | X48: 1.2 | Y48: 1.2 | Z48: 1.3 | AA48: 1.4 | AB48: 1.5 | AE48: =W47 -> 1315 | AF48: 1.2 | AG48: 1.2 | AH48: 1.3 | AI48: 1.3 | AJ48: 1.4
W49: 985 | X49: 1.2 | Y49: 1.3 | Z49: 1.4 | AA49: 1.5 | AB49: 1.5 | AE49: =W46 -> 1475 | AF49: 1.2 | AG49: 1.2 | AH49: 1.3 | AI49: 1.3 | AJ49: 1.4 | AK49: 1.5
W50: 820 | X50: 1.3 | Y50: 1.3 | Z50: 1.4 | AA50: 1.5 | AE50: =W45 -> 1640 | AF50: 1.1 | AG50: 1.2 | AH50: 1.2 | AI50: 1.3 | AJ50: 1.3 | AK50: 1.4
W51: 660 | X51: 1.3 | Y51: 1.4 | Z51: 1.5 | AE51: =W44 -> 1970 | AF51: 1.1 | AG51: 1.2 | AH51: 1.2 | AI51: 1.2 | AJ51: 1.3 | AK51: 1.4
W52: 495 | X52: 1.4 | Y52: 1.5 | AE52: =W43 -> 2300 | AF52: 1.1 | AG52: 1.1 | AH52: 1.2 | AI52: 1.2 | AJ52: 1.2 | AK52: 1.3
W53: 330 | X53: 1.5 | AE53: =W42 -> 2950 | AF53: 1.1 | AG53: 1.1 | AH53: 1.1 | AI53: 1.2 | AJ53: 1.2 | AK53: 1.2
W56: Road Design Manual Exhibit 9-16
W57: Design Elements for Barrier Length of Need
W58: Design Speed (mph) | X58: Runout Length LR (ft) | AB58: Shy Line Offset LS (ft)
X59: Design Year Traffic Volume (AADT)
Y60: 5000 | Z60: 1000
X61: 10000 | Y61: 10000 | Z61: 5000 | AA61: 1000
W62: 80 | X62: 470 | Y62: 430 | Z62: 380 | AA62: 330 | AB62: 12 | AD62: =IF($B$1=W62,$H$1,"Error") -> Error
W63: 70 | X63: 360 | Y63: 330 | Z63: 290 | AA63: 250 | AB63: 9 | AD63: 8460
W64: 60 | X64: 300 | Y64: 250 | Z64: 210 | AA64: 200 | AB64: 12 | AD64: Error
W65: 50 | X65: 230 | Y65: 190 | Z65: 160 | AA65: 150 | AB65: 6.5 | AD65: Error
W66: 40 | X66: 160 | Y66: 130 | Z66: 110 | AA66: 100 | AB66: 5 | AD66: Error
W67: 30 | X67: 110 | Y67: 90 | Z67: 80 | AA67: 70 | AB67: 4 | AD67: Error
W68: 55 | X68: =AVERAGE(X64:X65) -> 265 | Y68: 220 | Z68: 185 | AA68: 175 | AB68: 9.25 | AD68: Error
W69: 45 | X69: 195 | Y69: 160 | Z69: 135 | AA69: 125 | AB69: 5.75 | AD69: Error
W70: 35 | X70: 135 | Y70: 110 | Z70: 95 | AA70: 85 | AB70: 4.5 | AD70: Error

Sheet MGS Thrie Beam Bridge Appr (hidden)
A1: Design Speed (mph) = | B1: 70 | C1: Radius (ft) = | E1: Direction of Curve = | G1: ADT = | H1: 8460 | I1: Additional Clear Zone Width for Non-Recoverable Slopes* (ft) = | K1: Unadjusted Clear Zone Distance Based on 4:1 Slope, CZt (ft) = RDM Exhibit 9-1 | L1: =IF(B1<=W7,LOOKUP(H1,AD7:AD10,AA7:AA10),IF(B1=W11,LOOKUP(H1,AD11:AD14,AA11:AA14),IF(B1=W15,LOOKUP(H1,AD15:AD18,AA15:AA18),IF(B1=W19,LOOKUP(H1,AD19:AD22,AA19:AA22),IF(B1=W23,LOOKUP(H1,AD23:AD26,AA23:AA26),IF(B1=W27,LOOKUP(H1,AD27:AD30,AA27:AA30),IF(B1=W31,LOOKUP(H1,AD31:AD34,AA31:AA34),"Error"))))))) -> 46 | M1: Unadjusted Clear Zone Distance Based on 6:1 Slope, CZt (ft) = RDM Exhibit 9-1 | N1: =IF(B1<=W7,LOOKUP(H1,AD7:AD10,Y7:Y10),IF(B1=W11,LOOKUP(H1,AD11:AD14,Y11:Y14),IF(B1=W15,LOOKUP(H1,AD15:AD18,Y15:Y18),IF(B1=W19,LOOKUP(H1,AD19:AD22,Y19:Y22),IF(B1=W23,LOOKUP(H1,AD23:AD26,Y23:Y26),IF(B1=W27,LOOKUP(H1,AD27:AD30,Y27:Y30),IF(B1=W31,LOOKUP(H1,AD31:AD34,Y31:Y34),"Error"))))))) -> 32 | O1: Terminal Length Outside Length of Need (ft) = DTL. DWG. NO. 606-13 | P1: 12.5 | Q1: Terminal Length Within Length of Need (ft) = DTL. DWG. NO. 606-13 | R1: =34+4.5/12 -> 34.375 | S1: Thrie Beam Bridge Appr. Section Pay Limits Length (ft) = DTL. DWG. NO. 606-23A & 606-23B | T1: 37.5
I2: * With non-recoverable slopes, a 10-foot recovery area is required beyond the toe of the fill slope.
W3: Road Design Manual Exhibit 9-1
A4: Adjacent Traffic | O4: Road Design Manual Exhibit 9-15 | W4: Clear Zone Distances
O5: Barrier Length of Need | W5: Design Speed | Y5: Fill Slope/Fore Slopes
A6: Bridge End Station | B6: Adjusted Clear Zone Distance (ft) | C6: Runout Length (LR) RDM Exhibit 9-16 | D6: L1 (ft) | E6: L0 (ft) | F6: X (ft) | G6: Calculated Total Length of Need (ft) | H6: Actual Length of Rail (ft) | I6: Actual Length of Need (ft) | J6: Total Barrier Length (ft) | K6: Beginning/Ending Station for End Sections | L6: Beginning Station for Rail | M6: Ending Station for Rail | N6: Side | Y6: 6:1 or Flatter | Z6: 5:1 | AA6: 4:1
A7: 50000 | B7: =IF(A7="","",$AX$41) -> 46 | C7: =IF(B7="","",IF($H$1<=$AA$61,LOOKUP($H$1,$AD$62:$AD$70,$AA$62:$AA$70),IF(AND($H$1<=$Z$61,$H$1>$Z$60),LOOKUP($H$1,$AD$62:$AD$70,$Z$62:$Z$70),IF(AND($H$1<=$Y$61,$H$1>$Y$60),LOOKUP($H$1,$AD$62:$AD$70,$Y$62:$Y$70),IF($H$1>$X$61,LOOKUP($H$1,$AD$62:$AD$70,$X$62:$X$70)))))) -> 330 | D7: 4 | E7: =B7 -> 46 | F7: =IF(B7="","",C7*(E7-D7)/E7) -> 301.3043478 | G7: =IF(B7="","",F7) -> 301.3043478 | H7: =IF(A7="","",ROUNDUP((G7-($R$1+$T$1))/12.5,0)*12.5) -> 237.5 | I7: =IF(A7="","",H7+$R$1+$T$1) -> 309.375 | J7: =IF(A7="","",I7+$P$1) -> 321.875 | K7: =A7-J7 -> 49678.125 | L7: =K7+($P$1+$R$1) -> 49725 | M7: =A7-$T$1 -> 49962.5 | N7: RT. | W7: 40 | X7: 750 | Y7: 8 | Z7: 8 | AA7: 10 | AD7: =IF(H1<750,H1,"Error") -> Error
A8: 60000 | B8: =IF(A8="","",$AW$41) -> 46 | C8: =IF(B8="","",IF($H$1<=$AA$61,LOOKUP($H$1,$AD$62:$AD$70,$AA$62:$AA$70),IF(AND($H$1<=$Z$61,$H$1>$Z$60),LOOKUP($H$1,$AD$62:$AD$70,$Z$62:$Z$70),IF(AND($H$1<=$Y$61,$H$1>$Y$60),LOOKUP($H$1,$AD$62:$AD$70,$Y$62:$Y$70),IF($H$1>$X$61,LOOKUP($H$1,$AD$62:$AD$70,$X$62:$X$70)))))) -> 330 | D8: 4 | E8: =B8 -> 46 | F8: =IF(B8="","",C8*(E8-D8)/E8) -> 301.3043478 | G8: =IF(B8="","",F8) -> 301.3043478 | H8: =IF(A8="","",ROUNDUP((G8-($R$1+$T$1))/12.5,0)*12.5) -> 237.5 | I8: =IF(A8="","",H8+$R$1+$T$1) -> 309.375 | J8: =IF(A8="","",I8+$P$1) -> 321.875 | K8: =A8+J8 -> 60321.875 | L8: =A8+$T$1 -> 60037.5 | M8: =K8-($P$1+$R$1) -> 60275 | N8: LT. | X8: 750-1499 | Y8: 10 | Z8: 12 | AA8: 14 | AD8: =IF(750<=H1,IF(H1<1500,H1,"Error"),"Error") -> Error
X9: 1500-6000 | Y9: 12 | Z9: 14 | AA9: 16 | AD9: =IF(H1>=1500,IF(H1<=6000,H1,"Error"),"Error") -> Error
A10: Opposing Traffic | X10: 6000 | Y10: 14 | Z10: 16 | AA10: 18 | AD10: =IF(H1>6000,H1,"Error") -> 8460
W11: 45 | X11: 750 | Y11: 10 | Z11: 12 | AA11: 14 | AD11: =IF(H1<750,H1,"Error") -> Error
A12: Beginning Station For Obstacle | B12: Adjusted Clear Zone Distance (ft) | C12: Runout Length (LR) RDM Exhibit 9-16 | D12: L1 (ft) | E12: L0 (ft) | F12: X (ft) | G12: Calculated Total Length of Need (ft) | H12: Actual Length of Rail (ft) | I12: Actual Length of Need (ft) | J12: Total Barrier Length (ft) | K12: Beginning/Ending Station for End Sections | L12: Beginning Station for Rail | M12: Ending Station for Rail | N12: Side | X12: 750-1499 | Y12: 14 | Z12: 16 | AA12: 18 | AD12: =IF(750<=H1,IF(H1<1500,H1,"Error"),"Error") -> Error
A13: =IF(A7="","",A7) -> 50000 | B13: =IF(A13="","",$AW$41) -> 46 | C13: =IF(B13="","",IF($H$1<=$AA$61,LOOKUP($H$1,$AD$62:$AD$70,$AA$62:$AA$70),IF(AND($H$1<=$Z$61,$H$1>$Z$60),LOOKUP($H$1,$AD$62:$AD$70,$Z$62:$Z$70),IF(AND($H$1<=$Y$61,$H$1>$Y$60),LOOKUP($H$1,$AD$62:$AD$70,$Y$62:$Y$70),IF($H$1>$X$61,LOOKUP($H$1,$AD$62:$AD$70,$X$62:$X$70)))))) -> 330 | D13: 16 | E13: =B13 -> 46 | F13: =IF(B13="","",C13*(E13-D13)/E13) -> 215.2173913 | G13: =IF(B13="","",F13) -> 215.2173913 | H13: =IF(A13="","",ROUNDUP((G13-($R$1+$T$1))/12.5,0)*12.5) -> 150 | I13: =IF(A13="","",H13+$R$1+$T$1) -> 221.875 | J13: =IF(A13="","",I13+$P$1) -> 234.375 | K13: =A13-J13 -> 49765.625 | L13: =K13+($P$1+$R$1) -> 49812.5 | M13: =A13-$T$1 -> 49962.5 | N13: LT. | X13: 1500-6000 | Y13: 16 | Z13: 20 | AA13: 24 | AD13: =IF(H1>=1500,IF(H1<=6000,H1,"Error"),"Error") -> Error
A14: =IF(A8="","",A8) -> 60000 | B14: =IF(A14="","",$AX$41) -> 46 | C14: =IF(B14="","",IF($H$1<=$AA$61,LOOKUP($H$1,$AD$62:$AD$70,$AA$62:$AA$70),IF(AND($H$1<=$Z$61,$H$1>$Z$60),LOOKUP($H$1,$AD$62:$AD$70,$Z$62:$Z$70),IF(AND($H$1<=$Y$61,$H$1>$Y$60),LOOKUP($H$1,$AD$62:$AD$70,$Y$62:$Y$70),IF($H$1>$X$61,LOOKUP($H$1,$AD$62:$AD$70,$X$62:$X$70)))))) -> 330 | D14: 16 | E14: =B14 -> 46 | F14: =IF(B14="","",C14*(E14-D14)/E14) -> 215.2173913 | G14: =IF(B14="","",F14) -> 215.2173913 | H14: =IF(A14="","",ROUNDUP((G14-($R$1+$T$1))/12.5,0)*12.5) -> 150 | I14: =IF(A14="","",H14+$R$1+$T$1) -> 221.875 | J14: =IF(A14="","",I14+$P$1) -> 234.375 | K14: =A14+J14 -> 60234.375 | L14: =A14+$T$1 -> 60037.5 | M14: =K14-($P$1+$R$1) -> 60187.5 | N14: RT. | X14: 6000 | Y14: 20 | Z14: 24 | AA14: 26 | AD14: =IF(H1>6000,H1,"Error") -> 8460
W15: 50 | X15: 750 | Y15: 12 | Z15: 12 | AA15: 14 | AD15: =IF($H$1<750,$H$1,"Error") -> Error
X16: 750-1499 | Y16: 16 | Z16: 18 | AA16: 20 | AD16: =IF(750<=$H$1,IF($H$1<1500,$H$1,"Error"),"Error") -> Error
A17: Road Design Manual Exhibit 9-2 | X17: 1500-6000 | Y17: 18 | Z17: 22 | AA17: 26 | AD17: =IF($H$1>=1500,IF($H$1<=6000,$H$1,"Error"),"Error") -> Error
A18: Horizontal Curve Adjustments | X18: 6000 | Y18: 22 | Z18: 26 | AA18: 28 | AD18: =IF($H$1>6000,$H$1,"Error") -> 8460
W19: 55 | X19: 750 | Y19: 12 | Z19: 14 | AA19: 18 | AD19: =IF($H$1<750,$H$1,"Error") -> Error
X20: 750-1499 | Y20: 16 | Z20: 20 | AA20: 24 | AD20: =IF(750<=$H$1,IF($H$1<1500,$H$1,"Error"),"Error") -> Error
X21: 1500-6000 | Y21: 20 | Z21: 24 | AA21: 30 | AD21: =IF($H$1>=1500,IF($H$1<=6000,$H$1,"Error"),"Error") -> Error
X22: 6000 | Y22: 22 | Z22: 26 | AA22: 32 | AD22: =IF($H$1>6000,$H$1,"Error") -> 8460
W23: 60 | X23: 750 | Y23: 16 | Z23: 20 | AA23: 24 | AD23: =IF($H$1<750,$H$1,"Error") -> Error
X24: 750-1499 | Y24: 20 | Z24: 26 | AA24: 32 | AD24: =IF(750<=$H$1,IF($H$1<1500,$H$1,"Error"),"Error") -> Error
X25: 1500-6000 | Y25: 26 | Z25: 32 | AA25: 40 | AD25: =IF($H$1>=1500,IF($H$1<=6000,$H$1,"Error"),"Error") -> Error
X26: 6000 | Y26: 30 | Z26: 36 | AA26: 44 | AD26: =IF($H$1>6000,$H$1,"Error") -> 8460
W27: 70 | X27: 750 | Y27: 20 | Z27: 22 | AA27: 26 | AD27: =IF($H$1<750,$H$1,"Error") -> Error
X28: 750-1499 | Y28: 24 | Z28: 30 | AA28: 36 | AD28: =IF(750<=$H$1,IF($H$1<1500,$H$1,"Error"),"Error") -> Error
X29: 1500-6000 | Y29: 30 | Z29: 36 | AA29: 42 | AD29: =IF($H$1>=1500,IF($H$1<=6000,$H$1,"Error"),"Error") -> Error
X30: 6000 | Y30: 32 | Z30: 38 | AA30: 46 | AD30: =IF($H$1>6000,$H$1,"Error") -> 8460
W31: 80 | X31: 750 | Y31: 24 | Z31: 26 | AA31: 30 | AD31: =IF($H$1<750,$H$1,"Error") -> Error
X32: 750-1499 | Y32: 28 | Z32: 32 | AA32: 38 | AD32: =IF(750<=$H$1,IF($H$1<1500,$H$1,"Error"),"Error") -> Error
X33: 1500-6000 | Y33: 34 | Z33: 40 | AA33: 46 | AD33: =IF($H$1>=1500,IF($H$1<=6000,$H$1,"Error"),"Error") -> Error
X34: 6000 | Y34: 38 | Z34: 44 | AA34: 50 | AD34: =IF($H$1>6000,$H$1,"Error") -> 8460
W35: - For 3:1 slopes, see the procedure in Section 9.2.2.2
W36: - All distances are measured from the edge of the traveled way (ETW)
W38: Road Design Manual Exhibit 9-3
W39: Clear Zone Adjustment Factors for Horizontal Curves | AM39: Adjustment Factor
W40: Radius (ft) | X40: Design Speed (mph) | AE40: =W40 -> Radius (ft) | AF40: =X40 -> Design Speed (mph) | AM40: RT. | AR40: LT. | AW40: RT. | AX40: LT.
X41: 40 | Y41: 45 | Z41: 50 | AA41: 55 | AB41: 60 | AC41: 70 | AF41: =X41 -> 40 | AG41: 45 | AH41: 50 | AI41: 55 | AJ41: 60 | AK41: 70 | AM41: =IF(OR(D1="",F1="LT."),"",IF(D1>AE53,D1,IF(B1=AF41,IF(#REF!<AE42,AE42,IF(D1>=AE42,INDEX(AE42:AE53,MATCH(D1,AE42:AE53,1)))),IF(B1=AG41,IF(D1<AE43,AE43,IF(D1>=AE43,INDEX(AE43:AE53,MATCH(D1,AE43:AE53,1)))),IF(B1=AH41,IF(D1<AE44,AE44,IF(D1>=AE44,INDEX(AE44:AE53,MATCH(D1,AE44:AE53,1)))),IF(B1=AI41,IF(D1<AE45,AE45,IF(D1>=AE45,INDEX(AE45:AE53,MATCH(D1,AE45:AE53,1)))),IF(B1=AJ41,IF(D1<AE46,AE46,IF(D1>=AE46,INDEX(AE46:AE53,MATCH(D1,AE46:AE53,1)))),IF(B1=AK41,IF(D1<AE49,AE49,IF(D1>=AE49,INDEX(AE49:AE53,MATCH(D1,AE49:AE53,1)))))))))))) ->  | AN41: =IF(OR(D1="",F1="LT."),"",IF(D1>AE53,1,IF(B1=AF41,IF(#REF!<AE42,AF42,IF(D1>=AE42,INDEX(AF42:AF53,MATCH(D1,AE42:AE53,1)))),IF(B1=AG41,IF(D1<AE43,AG43,IF(D1>=AE43,INDEX(AG43:AG53,MATCH(D1,AE43:AE53,1)))),IF(B1=AH41,IF(D1<AE44,AH44,IF(D1>=AE44,INDEX(AH44:AH53,MATCH(D1,AE44:AE53,1)))),IF(B1=AI41,IF(D1<AE45,AI45,IF(D1>=AE45,INDEX(AI45:AI53,MATCH(D1,AE45:AE53,1)))),IF(B1=AJ41,IF(D1<AE46,AJ46,IF(D1>=AE46,INDEX(AJ46:AJ53,MATCH(D1,AE46:AE53,1)))),IF(B1=AK41,IF(D1<AE49,AK49,IF(D1>=AE49,INDEX(AK49:AK53,MATCH(D1,AE49:AE53,1)))))))))))) ->  | AO41: =IF(OR(D1="",F1="LT."),"",IF(D1>AE53,D1,IF(B1=AF41,IF(#REF!<AE42,AE42,IF(D1>=AE42,INDEX(AE42:AE53,MATCH(D1,AE42:AE53,1)+1))),IF(B1=AG41,IF(D1<AE43,AE43,IF(D1>=AE43,INDEX(AE43:AE53,MATCH(D1,AE43:AE53,1)+1))),IF(B1=AH41,IF(D1<AE44,AE44,IF(D1>=AE44,INDEX(AE44:AE53,MATCH(D1,AE44:AE53,1)+1))),IF(B1=AI41,IF(D1<AE45,AE45,IF(D1>=AE45,INDEX(AE45:AE53,MATCH(D1,AE45:AE53,1)+1))),IF(B1=AJ41,IF(D1<AE46,AE46,IF(D1>=AE46,INDEX(AE46:AE53,MATCH(D1,AE46:AE53,1)+1))),IF(B1=AK41,IF(D1<AE49,AE49,IF(D1>=AE49,INDEX(AE49:AE53,MATCH(D1,AE49:AE53,1)+1))))))))))) ->  | AP41: =IF(OR(D1="",F1="LT."),"",IF(D1>AE53,1,IF(B1=AF41,IF(#REF!<AE42,AF42,IF(D1>=AE42,INDEX(AF42:AF53,MATCH(D1,AE42:AE53,1)+1))),IF(B1=AG41,IF(D1<AE43,AG43,IF(D1>=AE43,INDEX(AG43:AG53,MATCH(D1,AE43:AE53,1)+1))),IF(B1=AH41,IF(D1<AE44,AH44,IF(D1>=AE44,INDEX(AH44:AH53,MATCH(D1,AE44:AE53,1)+1))),IF(B1=AI41,IF(D1<AE45,AI45,IF(D1>=AE45,INDEX(AI45:AI53,MATCH(D1,AE45:AE53,1)+1))),IF(B1=AJ41,IF(D1<AE46,AJ46,IF(D1>=AE46,INDEX(AJ46:AJ53,MATCH(D1,AE46:AE53,1)+1))),IF(B1=AK41,IF(D1<AE49,AK49,IF(D1>=AE49,INDEX(AK49:AK53,MATCH(D1,AE49:AE53,1)+1))))))))))) ->  | AQ41: =IF(OR(AM41="",AN41="",AO41="",AP41=""),1,IF(AND(AO41-AM41=0,AN41=AP41),AP41,AN41+($D$1-AM41)*(AP41-AN41)/(AO41-AM41))) -> 1 | AR41: =IF(OR(D1="",F1="RT."),"",IF(D1>AE53,D1,IF(B1=AF41,IF(#REF!<AE42,AE42,IF(D1>=AE42,INDEX(AE42:AE53,MATCH(D1,AE42:AE53,1)))),IF(B1=AG41,IF(D1<AE43,AE43,IF(D1>=AE43,INDEX(AE43:AE53,MATCH(D1,AE43:AE53,1)))),IF(B1=AH41,IF(D1<AE44,AE44,IF(D1>=AE44,INDEX(AE44:AE53,MATCH(D1,AE44:AE53,1)))),IF(B1=AI41,IF(D1<AE45,AE45,IF(D1>=AE45,INDEX(AE45:AE53,MATCH(D1,AE45:AE53,1)))),IF(B1=AJ41,IF(D1<AE46,AE46,IF(D1>=AE46,INDEX(AE46:AE53,MATCH(D1,AE46:AE53,1)))),IF(B1=AK41,IF(D1<AE49,AE49,IF(D1>=AE49,INDEX(AE49:AE53,MATCH(D1,AE49:AE53,1)))))))))))) ->  | AS41: =IF(OR(D1="",F1="RT."),"",IF(D1>AE53,1,IF(B1=AF41,IF(#REF!<AE42,AF42,IF(D1>=AE42,INDEX(AF42:AF53,MATCH(D1,AE42:AE53,1)))),IF(B1=AG41,IF(D1<AE43,AG43,IF(D1>=AE43,INDEX(AG43:AG53,MATCH(D1,AE43:AE53,1)))),IF(B1=AH41,IF(D1<AE44,AH44,IF(D1>=AE44,INDEX(AH44:AH53,MATCH(D1,AE44:AE53,1)))),IF(B1=AI41,IF(D1<AE45,AI45,IF(D1>=AE45,INDEX(AI45:AI53,MATCH(D1,AE45:AE53,1)))),IF(B1=AJ41,IF(D1<AE46,AJ46,IF(D1>=AE46,INDEX(AJ46:AJ53,MATCH(D1,AE46:AE53,1)))),IF(B1=AK41,IF(D1<AE49,AK49,IF(D1>=AE49,INDEX(AK49:AK53,MATCH(D1,AE49:AE53,1)))))))))))) ->  | AT41: =IF(OR(D1="",F1="RT."),"",IF(D1>AE53,D1,IF(B1=AF41,IF(#REF!<AE42,AE42,IF(D1>=AE42,INDEX(AE42:AE53,MATCH(D1,AE42:AE53,1)+1))),IF(B1=AG41,IF(D1<AE43,AE43,IF(D1>=AE43,INDEX(AE43:AE53,MATCH(D1,AE43:AE53,1)+1))),IF(B1=AH41,IF(D1<AE44,AE44,IF(D1>=AE44,INDEX(AE44:AE53,MATCH(D1,AE44:AE53,1)+1))),IF(B1=AI41,IF(D1<AE45,AE45,IF(D1>=AE45,INDEX(AE45:AE53,MATCH(D1,AE45:AE53,1)+1))),IF(B1=AJ41,IF(D1<AE46,AE46,IF(D1>=AE46,INDEX(AE46:AE53,MATCH(D1,AE46:AE53,1)+1))),IF(B1=AK41,IF(D1<AE49,AE49,IF(D1>=AE49,INDEX(AE49:AE53,MATCH(D1,AE49:AE53,1)+1))))))))))) ->  | AU41: =IF(OR(D1="",F1="RT."),"",IF(D1>AE53,1,IF(B1=AF41,IF(#REF!<AE42,AF42,IF(D1>=AE42,INDEX(AF42:AF53,MATCH(D1,AE42:AE53,1)+1))),IF(B1=AG41,IF(D1<AE43,AG43,IF(D1>=AE43,INDEX(AG43:AG53,MATCH(D1,AE43:AE53,1)+1))),IF(B1=AH41,IF(D1<AE44,AH44,IF(D1>=AE44,INDEX(AH44:AH53,MATCH(D1,AE44:AE53,1)+1))),IF(B1=AI41,IF(D1<AE45,AI45,IF(D1>=AE45,INDEX(AI45:AI53,MATCH(D1,AE45:AE53,1)+1))),IF(B1=AJ41,IF(D1<AE46,AJ46,IF(D1>=AE46,INDEX(AJ46:AJ53,MATCH(D1,AE46:AE53,1)+1))),IF(B1=AK41,IF(D1<AE49,AK49,IF(D1>=AE49,INDEX(AK49:AK53,MATCH(D1,AE49:AE53,1)+1))))))))))) ->  | AV41: =IF(OR(AR41="",AS41="",AT41="",AU41=""),1,IF(AND(AT41-AR41=0,AS41=AU41),AU41,AS41+($D$1-AR41)*(AU41-AS41)/(AT41-AR41))) -> 1 | AW41: =L1*AQ41 -> 46 | AX41: =L1*AV41 -> 46
W42: 2950 | X42: 1.1 | Y42: 1.1 | Z42: 1.1 | AA42: 1.2 | AB42: 1.2 | AC42: 1.2 | AE42: =W53 -> 330 | AF42: =X53 -> 1.5
W43: 2300 | X43: 1.1 | Y43: 1.1 | Z43: 1.2 | AA43: 1.2 | AB43: 1.2 | AC43: 1.3 | AE43: =W52 -> 495 | AF43: =X52 -> 1.4 | AG43: =Y52 -> 1.5
W44: 1970 | X44: 1.1 | Y44: 1.2 | Z44: 1.2 | AA44: 1.2 | AB44: 1.3 | AC44: 1.4 | AE44: =W51 -> 660 | AF44: =X51 -> 1.3 | AG44: =Y51 -> 1.4 | AH44: =Z51 -> 1.5
W45: 1640 | X45: 1.1 | Y45: 1.2 | Z45: 1.2 | AA45: 1.3 | AB45: 1.3 | AC45: 1.4 | AE45: =W50 -> 820 | AF45: =X50 -> 1.3 | AG45: =Y50 -> 1.3 | AH45: =Z50 -> 1.4 | AI45: =AA50 -> 1.5
W46: 1475 | X46: 1.2 | Y46: 1.2 | Z46: 1.3 | AA46: 1.3 | AB46: 1.4 | AC46: 1.5 | AE46: =W49 -> 985 | AF46: 1.2 | AG46: 1.3 | AH46: 1.4 | AI46: 1.5 | AJ46: 1.5
W47: 1315 | X47: 1.2 | Y47: 1.2 | Z47: 1.3 | AA47: 1.3 | AB47: 1.4 | AE47: =W48 -> 1150 | AF47: 1.2 | AG47: 1.2 | AH47: 1.3 | AI47: 1.4 | AJ47: 1.5
W48: 1150 | X48: 1.2 | Y48: 1.2 | Z48: 1.3 | AA48: 1.4 | AB48: 1.5 | AE48: =W47 -> 1315 | AF48: 1.2 | AG48: 1.2 | AH48: 1.3 | AI48: 1.3 | AJ48: 1.4
W49: 985 | X49: 1.2 | Y49: 1.3 | Z49: 1.4 | AA49: 1.5 | AB49: 1.5 | AE49: =W46 -> 1475 | AF49: 1.2 | AG49: 1.2 | AH49: 1.3 | AI49: 1.3 | AJ49: 1.4 | AK49: 1.5
W50: 820 | X50: 1.3 | Y50: 1.3 | Z50: 1.4 | AA50: 1.5 | AE50: =W45 -> 1640 | AF50: 1.1 | AG50: 1.2 | AH50: 1.2 | AI50: 1.3 | AJ50: 1.3 | AK50: 1.4
W51: 660 | X51: 1.3 | Y51: 1.4 | Z51: 1.5 | AE51: =W44 -> 1970 | AF51: 1.1 | AG51: 1.2 | AH51: 1.2 | AI51: 1.2 | AJ51: 1.3 | AK51: 1.4
W52: 495 | X52: 1.4 | Y52: 1.5 | AE52: =W43 -> 2300 | AF52: 1.1 | AG52: 1.1 | AH52: 1.2 | AI52: 1.2 | AJ52: 1.2 | AK52: 1.3
W53: 330 | X53: 1.5 | AE53: =W42 -> 2950 | AF53: 1.1 | AG53: 1.1 | AH53: 1.1 | AI53: 1.2 | AJ53: 1.2 | AK53: 1.2
W56: Road Design Manual Exhibit 9-16
W57: Design Elements for Barrier Length of Need
W58: Design Speed (mph) | X58: Runout Length LR (ft) | AB58: Shy Line Offset LS (ft)
X59: Design Year Traffic Volume (AADT)
Y60: 5000 | Z60: 1000
X61: 10000 | Y61: 10000 | Z61: 5000 | AA61: 1000
W62: 80 | X62: 470 | Y62: 430 | Z62: 380 | AA62: 330 | AB62: 12 | AD62: =IF($B$1=W62,$H$1,"Error") -> Error
W63: 70 | X63: 360 | Y63: 330 | Z63: 290 | AA63: 250 | AB63: 9 | AD63: 8460
W64: 60 | X64: 300 | Y64: 250 | Z64: 210 | AA64: 200 | AB64: 12 | AD64: Error
W65: 50 | X65: 230 | Y65: 190 | Z65: 160 | AA65: 150 | AB65: 6.5 | AD65: Error
W66: 40 | X66: 160 | Y66: 130 | Z66: 110 | AA66: 100 | AB66: 5 | AD66: Error
W67: 30 | X67: 110 | Y67: 90 | Z67: 80 | AA67: 70 | AB67: 4 | AD67: Error
W68: 55 | X68: =AVERAGE(X64:X65) -> 265 | Y68: 220 | Z68: 185 | AA68: 175 | AB68: 9.25 | AD68: Error
W69: 45 | X69: 195 | Y69: 160 | Z69: 135 | AA69: 125 | AB69: 5.75 | AD69: Error
W70: 35 | X70: 135 | Y70: 110 | Z70: 95 | AA70: 85 | AB70: 4.5 | AD70: Error

Sheet MGS Widening At Bridge Ends (hidden)
A1: RT. | M1: DTL. DWG. NO. 606-05A | T1: DTL. DWG. NO. 606-05B
A2: Travel Lane Width (ft) | B2: 12
A3: Normal Shoulder Width (ft) | B3: ='MGS Bridge Appr. Sections'!D7 -> 4 | C3: (L1 from "Bridge Appr. Sections" tab)
B5: Begin Taper | C5: P1 | D5: P3 | E5: P8.5 | F5: Bridge End | G5: Bridge End | H5: P8.5 | I5: P3 | J5: P1 | K5: End Taper
A6: Station | B6: =ROUND(C6-7/(TAN(15*(2*PI()/360))),2) -> 49652 | C6: ='MGS Bridge Appr. Sections'!K7 -> 49678.125 | D6: =C6+12.5 -> 49690.625 | E6: =D6+34+4.5/12 -> 49725 | F6: ='MGS Bridge Appr. Sections'!A7 -> 50000 | G6: ='MGS Bridge Appr. Sections'!A14 -> 60000 | H6: =I6-(34+4.5/12) -> 60187.5 | I6: =J6-12.5 -> 60221.875 | J6: ='MGS Bridge Appr. Sections'!K14 -> 60234.375 | K6: =ROUND(J6+7/(TAN(15*(2*PI()/360))),2) -> 60260.5
A7: Offset RT. (ft) | B7: =IF(OR(B2="",B3=""),"",B2+B3) -> 16 | C7: =IF(B7="","",B7+7) -> 23 | D7: =C7 -> 23 | E7: =IF(B7="","",B7+3+7/12) -> 19.58333333 | F7: =E7 -> 19.58333333 | G7: =F7 -> 19.58333333 | H7: =G7 -> 19.58333333 | I7: =D7 -> 23 | J7: =C7 -> 23 | K7: =B7 -> 16
A9: LT.
A10: Travel Lane Width (ft) | B10: 12
A11: Normal Shoulder Width (ft) | B11: ='MGS Bridge Appr. Sections'!D8 -> 4 | C11: (L1 from "Bridge Appr. Sections" tab)
B13: Begin Taper | C13: P1 | D13: P3 | E13: P8.5 | F13: Bridge End | G13: Bridge End | H13: P8.5 | I13: P3 | J13: P1 | K13: End Taper
A14: Station | B14: =ROUND(C14-7/(TAN(15*(2*PI()/360))),2) -> 49739.5 | C14: ='MGS Bridge Appr. Sections'!K13 -> 49765.625 | D14: =C14+12.5 -> 49778.125 | E14: =D14+34+4.5/12 -> 49812.5 | F14: ='MGS Bridge Appr. Sections'!A13 -> 50000 | G14: ='MGS Bridge Appr. Sections'!A8 -> 60000 | H14: =I14-(34+4.5/12) -> 60275 | I14: =J14-12.5 -> 60309.375 | J14: ='MGS Bridge Appr. Sections'!K8 -> 60321.875 | K14: =ROUND(J14+7/(TAN(15*(2*PI()/360))),2) -> 60348
A15: Offset RT. (ft) | B15: =IF(OR(B10="",B11=""),"",B10+B11) -> 16 | C15: =IF(B15="","",B15+7) -> 23 | D15: =C15 -> 23 | E15: =IF(B15="","",B15+3+7/12) -> 19.58333333 | F15: =E15 -> 19.58333333 | G15: =F15 -> 19.58333333 | H15: =G15 -> 19.58333333 | I15: =D15 -> 23 | J15: =C15 -> 23 | K15: =B15 -> 16
A22: DTL. DWG. NO. 606-13

Sheet MGS Widening For Terminal (hidden)
K1: DTL. DWG. NO. 606-05A | R1: DTL. DWG. NO. 606-05B
A2: Guardrail Run 1
A3: Travel Lane Width (ft)
A4: Normal Shoulder Width (ft)
B6: Begin Taper | C6: P1 | D6: P3 | E6: P8.5 | F6: P8.5 | G6: P3 | H6: P1 | I6: End Taper
A7: Station | B7: =IF(C7="","",ROUND(C7-7/(TAN(15*(2*PI()/360))),2)) ->  | D7: =IF(C7="","",C7+12.5) ->  | E7: =IF(C7="","",D7+34+4.5/12) ->  | F7: =IF(H7="","",G7-(34+4.5/12)) ->  | G7: =IF(H7="","",H7-12.5) ->  | I7: =IF(H7="","",ROUND(H7+7/(TAN(15*(2*PI()/360))),2)) -> 
A8: Offset RT. (ft) | B8: =IF(OR(B3="",B4=""),"",B3+B4) ->  | C8: =IF(B8="","",B8+7) ->  | D8: =C8 ->  | E8: =IF(B8="","",B8+3+7/12) ->  | F8: =E8 ->  | G8: =H8 ->  | H8: =IF(I8="","",I8+7) ->  | I8: =IF(OR(B3="",B4=""),"",B3+B4) -> 
A10: Guardrail Run 2
A11: Travel Lane Width (ft)
A12: Normal Shoulder Width (ft)
B14: Begin Taper | C14: P1 | D14: P3 | E14: P8.5 | F14: P8.5 | G14: P3 | H14: P1 | I14: End Taper
A15: Station | B15: =IF(C15="","",ROUND(C15-7/(TAN(15*(2*PI()/360))),2)) ->  | D15: =IF(C15="","",C15+12.5) ->  | E15: =IF(C15="","",D15+34+4.5/12) ->  | F15: =IF(H15="","",G15-(34+4.5/12)) ->  | G15: =IF(H15="","",H15-12.5) ->  | I15: =IF(H15="","",ROUND(H15+7/(TAN(15*(2*PI()/360))),2)) -> 
A16: Offset RT. (ft) | B16: =IF(OR(B11="",B12=""),"",B11+B12) ->  | C16: =IF(B16="","",B16+7) ->  | D16: =C16 ->  | E16: =IF(B16="","",B16+3+7/12) ->  | F16: =E16 ->  | G16: =H16 ->  | H16: =IF(I16="","",I16+7) ->  | I16: =IF(OR(B11="",B12=""),"",B11+B12) -> 
A18: Guardrail Run 3
A19: Travel Lane Width (ft)
A20: Normal Shoulder Width (ft)
B22: Begin Taper | C22: P1 | D22: P3 | E22: P8.5 | F22: P8.5 | G22: P3 | H22: P1 | I22: End Taper
A23: Station | B23: =IF(C23="","",ROUND(C23-7/(TAN(15*(2*PI()/360))),2)) ->  | D23: =IF(C23="","",C23+12.5) ->  | E23: =IF(C23="","",D23+34+4.5/12) ->  | F23: =IF(H23="","",G23-(34+4.5/12)) ->  | G23: =IF(H23="","",H23-12.5) ->  | I23: =IF(H23="","",ROUND(H23+7/(TAN(15*(2*PI()/360))),2)) -> 
A24: Offset RT. (ft) | B24: =IF(OR(B19="",B20=""),"",B19+B20) ->  | C24: =IF(B24="","",B24+7) ->  | D24: =C24 ->  | E24: =IF(B24="","",B24+3+7/12) ->  | F24: =E24 ->  | G24: =H24 ->  | H24: =IF(I24="","",I24+7) ->  | I24: =IF(OR(B19="",B20=""),"",B19+B20) -> 
A26: Guardrail Run 4
A27: Travel Lane Width (ft)
A28: Normal Shoulder Width (ft)
B30: Begin Taper | C30: P1 | D30: P3 | E30: P8.5 | F30: P8.5 | G30: P3 | H30: P1 | I30: End Taper
A31: Station | B31: =IF(C31="","",ROUND(C31-7/(TAN(15*(2*PI()/360))),2)) ->  | D31: =IF(C31="","",C31+12.5) ->  | E31: =IF(C31="","",D31+34+4.5/12) ->  | F31: =IF(H31="","",G31-(34+4.5/12)) ->  | G31: =IF(H31="","",H31-12.5) ->  | I31: =IF(H31="","",ROUND(H31+7/(TAN(15*(2*PI()/360))),2)) -> 
A32: Offset RT. (ft) | B32: =IF(OR(B27="",B28=""),"",B27+B28) ->  | C32: =IF(B32="","",B32+7) ->  | D32: =C32 ->  | E32: =IF(B32="","",B32+3+7/12) ->  | F32: =E32 ->  | G32: =H32 ->  | H32: =IF(I32="","",I32+7) ->  | I32: =IF(OR(B27="",B28=""),"",B27+B28) -> 
A34: Guardrail Run 5
A35: Travel Lane Width (ft)
A36: Normal Shoulder Width (ft)
B38: Begin Taper | C38: P1 | D38: P3 | E38: P8.5 | F38: P8.5 | G38: P3 | H38: P1 | I38: End Taper
A39: Station | B39: =IF(C39="","",ROUND(C39-7/(TAN(15*(2*PI()/360))),2)) ->  | D39: =IF(C39="","",C39+12.5) ->  | E39: =IF(C39="","",D39+34+4.5/12) ->  | F39: =IF(H39="","",G39-(34+4.5/12)) ->  | G39: =IF(H39="","",H39-12.5) ->  | I39: =IF(H39="","",ROUND(H39+7/(TAN(15*(2*PI()/360))),2)) -> 
A40: Offset RT. (ft) | B40: =IF(OR(B35="",B36=""),"",B35+B36) ->  | C40: =IF(B40="","",B40+7) ->  | D40: =C40 ->  | E40: =IF(B40="","",B40+3+7/12) ->  | F40: =E40 ->  | G40: =H40 ->  | H40: =IF(I40="","",I40+7) ->  | I40: =IF(OR(B35="",B36=""),"",B35+B36) -> 
A42: Guardrail Run 6
A43: Travel Lane Width (ft)
A44: Normal Shoulder Width (ft)
B46: Begin Taper | C46: P1 | D46: P3 | E46: P8.5 | F46: P8.5 | G46: P3 | H46: P1 | I46: End Taper
A47: Station | B47: =IF(C47="","",ROUND(C47-7/(TAN(15*(2*PI()/360))),2)) ->  | D47: =IF(C47="","",C47+12.5) ->  | E47: =IF(C47="","",D47+34+4.5/12) ->  | F47: =IF(H47="","",G47-(34+4.5/12)) ->  | G47: =IF(H47="","",H47-12.5) ->  | I47: =IF(H47="","",ROUND(H47+7/(TAN(15*(2*PI()/360))),2)) -> 
A48: Offset RT. (ft) | B48: =IF(OR(B43="",B44=""),"",B43+B44) ->  | C48: =IF(B48="","",B48+7) ->  | D48: =C48 ->  | E48: =IF(B48="","",B48+3+7/12) ->  | F48: =E48 ->  | G48: =H48 ->  | H48: =IF(I48="","",I48+7) ->  | I48: =IF(OR(B43="",B44=""),"",B43+B44) -> 
A50: Guardrail Run 7
A51: Travel Lane Width (ft)
A52: Normal Shoulder Width (ft)
B54: Begin Taper | C54: P1 | D54: P3 | E54: P8.5 | F54: P8.5 | G54: P3 | H54: P1 | I54: End Taper
A55: Station | B55: =IF(C55="","",ROUND(C55-7/(TAN(15*(2*PI()/360))),2)) ->  | D55: =IF(C55="","",C55+12.5) ->  | E55: =IF(C55="","",D55+34+4.5/12) ->  | F55: =IF(H55="","",G55-(34+4.5/12)) ->  | G55: =IF(H55="","",H55-12.5) ->  | I55: =IF(H55="","",ROUND(H55+7/(TAN(15*(2*PI()/360))),2)) -> 
A56: Offset RT. (ft) | B56: =IF(OR(B51="",B52=""),"",B51+B52) ->  | C56: =IF(B56="","",B56+7) ->  | D56: =C56 ->  | E56: =IF(B56="","",B56+3+7/12) ->  | F56: =E56 ->  | G56: =H56 ->  | H56: =IF(I56="","",I56+7) ->  | I56: =IF(OR(B51="",B52=""),"",B51+B52) -> 
A58: DTL. DWG. NO. 606-13

Sheet Box Beam Widening For Terminal (hidden)
K1: DTL. DWG. NO. 606-50
A2: Guardrail Run 1
A3: Travel Lane Width (ft)
A4: Normal Shoulder Width (ft)
B6: Begin Taper | C6: P1 | D6: P3 | E6: P9 | F6: P9 | G6: P3 | H6: P1 | I6: End Taper
A7: Station | B7: =IF(C7="","",ROUND(C7-6/(TAN(15*(2*PI()/360))),2)) ->  | D7: =IF(C7="","",C7+(15+2.25/12)) ->  | E7: =IF(C7="","",D7+36) ->  | F7: =IF(H7="","",G7-36) ->  | G7: =IF(H7="","",H7-(15+2.25/12)) ->  | I7: =IF(H7="","",ROUND(H7+6/(TAN(15*(2*PI()/360))),2)) -> 
A8: Offset RT. (ft) | B8: =IF(OR(B3="",B4=""),"",B3+B4) ->  | C8: =IF(B8="","",B8+6) ->  | D8: =C8 ->  | E8: =IF(B8="","",B8+(2+9/12)) ->  | F8: =E8 ->  | G8: =H8 ->  | H8: =IF(I8="","",I8+6) ->  | I8: =IF(OR(B3="",B4=""),"",B3+B4) -> 
A10: Guardrail Run 2
A11: Travel Lane Width (ft)
A12: Normal Shoulder Width (ft)
B14: Begin Taper | C14: P1 | D14: P3 | E14: P9 | F14: P9 | G14: P3 | H14: P1 | I14: End Taper
A15: Station | B15: =IF(C15="","",ROUND(C15-6/(TAN(15*(2*PI()/360))),2)) ->  | D15: =IF(C15="","",C15+(15+2.25/12)) ->  | E15: =IF(C15="","",D15+36) ->  | F15: =IF(H15="","",G15-36) ->  | G15: =IF(H15="","",H15-(15+2.25/12)) ->  | I15: =IF(H15="","",ROUND(H15+6/(TAN(15*(2*PI()/360))),2)) -> 
A16: Offset RT. (ft) | B16: =IF(OR(B11="",B12=""),"",B11+B12) ->  | C16: =IF(B16="","",B16+6) ->  | D16: =C16 ->  | E16: =IF(B16="","",B16+(2+9/12)) ->  | F16: =E16 ->  | G16: =H16 ->  | H16: =IF(I16="","",I16+6) ->  | I16: =IF(OR(B11="",B12=""),"",B11+B12) -> 
A18: Guardrail Run 3
A19: Travel Lane Width (ft)
A20: Normal Shoulder Width (ft)
B22: Begin Taper | C22: P1 | D22: P3 | E22: P9 | F22: P9 | G22: P3 | H22: P1 | I22: End Taper
A23: Station | B23: =IF(C23="","",ROUND(C23-6/(TAN(15*(2*PI()/360))),2)) ->  | D23: =IF(C23="","",C23+(15+2.25/12)) ->  | E23: =IF(C23="","",D23+36) ->  | F23: =IF(H23="","",G23-36) ->  | G23: =IF(H23="","",H23-(15+2.25/12)) ->  | I23: =IF(H23="","",ROUND(H23+6/(TAN(15*(2*PI()/360))),2)) -> 
A24: Offset RT. (ft) | B24: =IF(OR(B19="",B20=""),"",B19+B20) ->  | C24: =IF(B24="","",B24+6) ->  | D24: =C24 ->  | E24: =IF(B24="","",B24+(2+9/12)) ->  | F24: =E24 ->  | G24: =H24 ->  | H24: =IF(I24="","",I24+6) ->  | I24: =IF(OR(B19="",B20=""),"",B19+B20) -> 
A26: Guardrail Run 4
A27: Travel Lane Width (ft)
A28: Normal Shoulder Width (ft)
B30: Begin Taper | C30: P1 | D30: P3 | E30: P9 | F30: P9 | G30: P3 | H30: P1 | I30: End Taper
A31: Station | B31: =IF(C31="","",ROUND(C31-6/(TAN(15*(2*PI()/360))),2)) ->  | D31: =IF(C31="","",C31+(15+2.25/12)) ->  | E31: =IF(C31="","",D31+36) ->  | F31: =IF(H31="","",G31-36) ->  | G31: =IF(H31="","",H31-(15+2.25/12)) ->  | I31: =IF(H31="","",ROUND(H31+6/(TAN(15*(2*PI()/360))),2)) -> 
A32: Offset RT. (ft) | B32: =IF(OR(B27="",B28=""),"",B27+B28) ->  | C32: =IF(B32="","",B32+6) ->  | D32: =C32 ->  | E32: =IF(B32="","",B32+(2+9/12)) ->  | F32: =E32 ->  | G32: =H32 ->  | H32: =IF(I32="","",I32+6) ->  | I32: =IF(OR(B27="",B28=""),"",B27+B28) -> 
A34: Guardrail Run 5
A35: Travel Lane Width (ft)
A36: Normal Shoulder Width (ft)
B38: Begin Taper | C38: P1 | D38: P3 | E38: P9 | F38: P9 | G38: P3 | H38: P1 | I38: End Taper
A39: Station | B39: =IF(C39="","",ROUND(C39-6/(TAN(15*(2*PI()/360))),2)) ->  | D39: =IF(C39="","",C39+(15+2.25/12)) ->  | E39: =IF(C39="","",D39+36) ->  | F39: =IF(H39="","",G39-36) ->  | G39: =IF(H39="","",H39-(15+2.25/12)) ->  | I39: =IF(H39="","",ROUND(H39+6/(TAN(15*(2*PI()/360))),2)) -> 
A40: Offset RT. (ft) | B40: =IF(OR(B35="",B36=""),"",B35+B36) ->  | C40: =IF(B40="","",B40+6) ->  | D40: =C40 ->  | E40: =IF(B40="","",B40+(2+9/12)) ->  | F40: =E40 ->  | G40: =H40 ->  | H40: =IF(I40="","",I40+6) ->  | I40: =IF(OR(B35="",B36=""),"",B35+B36) -> 
A42: Guardrail Run 6
A43: Travel Lane Width (ft)
A44: Normal Shoulder Width (ft)
B46: Begin Taper | C46: P1 | D46: P3 | E46: P9 | F46: P9 | G46: P3 | H46: P1 | I46: End Taper
A47: Station | B47: =IF(C47="","",ROUND(C47-6/(TAN(15*(2*PI()/360))),2)) ->  | D47: =IF(C47="","",C47+(15+2.25/12)) ->  | E47: =IF(C47="","",D47+36) ->  | F47: =IF(H47="","",G47-36) ->  | G47: =IF(H47="","",H47-(15+2.25/12)) ->  | I47: =IF(H47="","",ROUND(H47+6/(TAN(15*(2*PI()/360))),2)) -> 
A48: Offset RT. (ft) | B48: =IF(OR(B43="",B44=""),"",B43+B44) ->  | C48: =IF(B48="","",B48+6) ->  | D48: =C48 ->  | E48: =IF(B48="","",B48+(2+9/12)) ->  | F48: =E48 ->  | G48: =H48 ->  | H48: =IF(I48="","",I48+6) ->  | I48: =IF(OR(B43="",B44=""),"",B43+B44) -> 
A50: Guardrail Run 7
A51: Travel Lane Width (ft)
A52: Normal Shoulder Width (ft)
B54: Begin Taper | C54: P1 | D54: P3 | E54: P9 | F54: P9 | G54: P3 | H54: P1 | I54: End Taper
A55: Station | B55: =IF(C55="","",ROUND(C55-6/(TAN(15*(2*PI()/360))),2)) ->  | D55: =IF(C55="","",C55+(15+2.25/12)) ->  | E55: =IF(C55="","",D55+36) ->  | F55: =IF(H55="","",G55-36) ->  | G55: =IF(H55="","",H55-(15+2.25/12)) ->  | I55: =IF(H55="","",ROUND(H55+6/(TAN(15*(2*PI()/360))),2)) -> 
A56: Offset RT. (ft) | B56: =IF(OR(B51="",B52=""),"",B51+B52) ->  | C56: =IF(B56="","",B56+6) ->  | D56: =C56 ->  | E56: =IF(B56="","",B56+(2+9/12)) ->  | F56: =E56 ->  | G56: =H56 ->  | H56: =IF(I56="","",I56+6) ->  | I56: =IF(OR(B51="",B52=""),"",B51+B52) -> 
A144: Post Locations
A146: Guardrail Run # 1 | E146: Guardrail Run # 2 | I146: Guardrail Run # 3 | M146: Guardrail Run # 4 | U146: Guardrail Run # 6 | Y146: Guardrail Run # 7
A147: Distance From Culvert | B147: Station | C147: Culvert Station | E147: Distance From Culvert | F147: Station | G147: Culvert Station | I147: Distance From Culvert | J147: Station | K147: Culvert Station | M147: Distance From Culvert | N147: Station | O147: Culvert Station | R147: Station | S147: Culvert Station | U147: Distance From Culvert | V147: Station | W147: Culvert Station | Y147: Distance From Culvert | Z147: Station | AA147: Culvert Station
A148: =IF(C148>0,C148-B148," ") ->  | B148: =C7 -> 0 | E148: =IF(G148>0,G148-F148," ") ->  | F148: =C15 -> 0 | I148: =IF(K148>0,K148-J148," ") ->  | J148: =C23 -> 0 | M148: =IF(O148>0,O148-N148," ") ->  | N148: =C31 -> 0 | R148: =C39 -> 0 | U148: =IF(W148>0,W148-V148," ") ->  | V148: =C47 -> 0 | Y148: =IF(AA148>0,AA148-Z148," ") ->  | Z148: =C55 -> 0
B149: =B148+6+3/12 -> 6.25 | F149: =F148+6+3/12 -> 6.25 | J149: =J148+6+3/12 -> 6.25 | N149: =N148+6+3/12 -> 6.25 | R149: =R148+6+3/12 -> 6.25 | V149: =V148+6+3/12 -> 6.25 | Z149: =Z148+6+3/12 -> 6.25
B150: =B149+2.9375 -> 9.1875 | F150: =F149+2.9375 -> 9.1875 | J150: =J149+2.9375 -> 9.1875 | N150: =N149+2.9375 -> 9.1875 | R150: =R149+2.9375 -> 9.1875 | V150: =V149+2.9375 -> 9.1875 | Z150: =Z149+2.9375 -> 9.1875
B151: =B150+6 -> 15.1875 | F151: =F150+6 -> 15.1875 | J151: =J150+6 -> 15.1875 | N151: =N150+6 -> 15.1875 | R151: =R150+6 -> 15.1875 | V151: =V150+6 -> 15.1875 | Z151: =Z150+6 -> 15.1875
B152: 21.1875 | F152: 21.1875 | J152: 21.1875 | N152: 21.1875 | R152: 21.1875 | V152: 21.1875 | Z152: 21.1875
B153: 27.1875 | F153: 27.1875 | J153: 27.1875 | N153: 27.1875 | R153: 27.1875 | V153: 27.1875 | Z153: 27.1875
B154: 33.1875 | F154: 33.1875 | J154: 33.1875 | N154: 33.1875 | R154: 33.1875 | S154: 29165.87 | V154: 33.1875 | Z154: 33.1875
B155: 39.1875 | F155: 39.1875 | J155: 39.1875 | N155: 39.1875 | R155: 39.1875 | S155: 29165.87 | V155: 39.1875 | Z155: 39.1875
B156: 45.1875 | F156: 45.1875 | J156: 45.1875 | N156: 45.1875 | R156: 45.1875 | V156: 45.1875 | Z156: 45.1875
B157: 51.1875 | F157: 51.1875 | J157: 51.1875 | N157: 51.1875 | R157: 51.1875 | V157: 51.1875 | Z157: 51.1875
B158: 57.1875 | F158: 57.1875 | J158: 57.1875 | N158: 57.1875 | R158: 57.1875 | V158: 57.1875 | Z158: 57.1875
B159: 63.1875 | F159: 63.1875 | J159: 63.1875 | N159: 63.1875 | R159: 63.1875 | V159: 63.1875 | Z159: 63.1875
B160: 69.1875 | F160: 69.1875 | J160: 69.1875 | N160: 69.1875 | R160: 69.1875 | V160: 69.1875 | Z160: 69.1875
B161: 75.1875 | F161: 75.1875 | J161: 75.1875 | N161: 75.1875 | R161: 75.1875 | V161: 75.1875 | Z161: 75.1875
B162: 81.1875 | F162: 81.1875 | J162: 81.1875 | N162: 81.1875 | R162: 81.1875 | V162: 81.1875 | Z162: 81.1875
B163: 87.1875 | F163: 87.1875 | J163: 87.1875 | N163: 87.1875 | R163: 87.1875 | V163: 87.1875 | Z163: 87.1875
B164: 93.1875 | F164: 93.1875 | J164: 93.1875 | N164: 93.1875 | R164: 93.1875 | V164: 93.1875 | Z164: 93.1875
B165: 99.1875 | F165: 99.1875 | J165: 99.1875 | N165: 99.1875 | R165: 99.1875 | V165: 99.1875 | Z165: 99.1875
B166: 105.1875 | F166: 105.1875 | J166: 105.1875 | N166: 105.1875 | R166: 105.1875 | V166: 105.1875 | Z166: 105.1875
B167: 111.1875 | F167: 111.1875 | J167: 111.1875 | N167: 111.1875 | R167: 111.1875 | V167: 111.1875 | Z167: 111.1875
B168: 117.1875 | F168: 117.1875 | J168: 117.1875 | N168: 117.1875 | R168: 117.1875 | V168: 117.1875 | Z168: 117.1875
B169: 123.1875 | F169: 123.1875 | J169: 123.1875 | N169: 123.1875 | R169: 123.1875 | V169: 123.1875 | Z169: 123.1875
B170: 129.1875 | F170: 129.1875 | J170: 129.1875 | N170: 129.1875 | R170: 129.1875 | V170: 129.1875 | Z170: 129.1875
B171: 135.1875 | F171: 135.1875 | J171: 135.1875 | N171: 135.1875 | R171: 135.1875 | V171: 135.1875 | Z171: 135.1875
B172: 141.1875 | F172: 141.1875 | J172: 141.1875 | N172: 141.1875 | R172: 141.1875 | V172: 141.1875 | Z172: 141.1875
B173: 147.1875 | F173: 147.1875 | J173: 147.1875 | N173: 147.1875 | R173: 147.1875 | V173: 147.1875 | Z173: 147.1875
B174: 153.1875 | F174: 153.1875 | J174: 153.1875 | N174: 153.1875 | R174: 153.1875 | V174: 153.1875 | Z174: 153.1875
B175: 159.1875 | F175: 159.1875 | J175: 159.1875 | N175: 159.1875 | R175: 159.1875 | V175: 159.1875 | Z175: 159.1875
B176: 165.1875 | F176: 165.1875 | J176: 165.1875 | N176: 165.1875 | R176: 165.1875 | V176: 165.1875 | Z176: 165.1875
B177: 171.1875 | F177: 171.1875 | J177: 171.1875 | N177: 171.1875 | R177: 171.1875 | V177: 171.1875 | Z177: 171.1875
B178: 177.1875 | F178: 177.1875 | J178: 177.1875 | N178: 177.1875 | R178: 177.1875 | V178: 177.1875 | Z178: 177.1875
B179: 183.1875 | F179: 183.1875 | J179: 183.1875 | N179: 183.1875 | R179: 183.1875 | V179: 183.1875 | Z179: 183.1875
B180: 189.1875 | F180: 189.1875 | J180: 189.1875 | M180: =IF(O180>0,O180-N180," ") ->  | N180: 189.1875 | R180: 189.1875 | V180: 189.1875 | Z180: 189.1875
B181: 195.1875 | F181: 195.1875 | J181: 195.1875 | N181: 195.1875 | R181: 195.1875 | V181: 195.1875 | Z181: 195.1875
B182: 201.1875 | F182: 201.1875 | J182: 201.1875 | N182: 201.1875 | R182: 201.1875 | V182: 201.1875 | Z182: =Z181+2.9375 -> 198.125
B183: =B182+6 -> 207.1875 | F183: 207.1875 | J183: =J182+6 -> 207.1875 | N183: =N182+6 -> 207.1875 | R183: 207.1875 | V183: 207.1875 | Z183: =Z182+6+3/12 -> 204.375
B184: 213.1875 | F184: 213.1875 | J184: 213.1875 | N184: 213.1875 | R184: 213.1875 | V184: 213.1875
B185: 219.1875 | F185: 219.1875 | J185: 219.1875 | N185: 219.1875 | R185: 219.1875 | V185: 219.1875
B186: 225.1875 | F186: 225.1875 | J186: 225.1875 | N186: 225.1875 | R186: 225.1875 | V186: 225.1875
B187: 231.1875 | F187: 231.1875 | J187: 231.1875 | N187: 231.1875 | R187: 231.1875 | V187: 231.1875
B188: 237.1875 | F188: 237.1875 | J188: 237.1875 | N188: 237.1875 | R188: 237.1875 | V188: 237.1875
B189: 243.1875 | F189: 243.1875 | J189: 243.1875 | N189: 243.1875 | R189: 243.1875 | V189: 243.1875
B190: 249.1875 | F190: 249.1875 | J190: 249.1875 | N190: 249.1875 | R190: 249.1875 | V190: 249.1875
B191: 255.1875 | F191: 255.1875 | J191: 255.1875 | N191: 255.1875 | R191: 255.1875 | V191: =V190+2.9375 -> 252.125
B192: 261.1875 | F192: 261.1875 | J192: 261.1875 | N192: 261.1875 | R192: 261.1875 | V192: =V191+6+3/12 -> 258.375
B193: 267.1875 | F193: 267.1875 | J193: 267.1875 | N193: 267.1875 | R193: 267.1875
B194: 273.1875 | F194: 273.1875 | J194: 273.1875 | N194: 273.1875 | R194: 273.1875
A195: 25469.5225 | B195: 279.1875 | C195: 25748.71 | F195: 279.1875 | J195: 279.1875 | N195: 279.1875 | R195: 279.1875
A196: 25463.5225 | B196: 285.1875 | C196: 25748.71 | F196: 285.1875 | J196: 285.1875 | N196: 285.1875 | R196: 285.1875
B197: 291.1875 | F197: 291.1875 | J197: 291.1875 | N197: 291.1875 | R197: 291.1875
B198: 297.1875 | F198: 297.1875 | J198: 297.1875 | N198: 297.1875 | R198: 297.1875
B199: 303.1875 | F199: 303.1875 | J199: 303.1875 | N199: 303.1875 | R199: 303.1875
B200: 309.1875 | F200: 309.1875 | J200: 309.1875 | N200: 309.1875 | R200: 309.1875
B201: 315.1875 | F201: 315.1875 | J201: 315.1875 | N201: 315.1875 | R201: 315.1875
B202: 321.1875 | F202: 321.1875 | J202: 321.1875 | N202: 321.1875 | R202: 321.1875
B203: 327.1875 | F203: 327.1875 | J203: 327.1875 | N203: =N202+2.9375 -> 324.125 | R203: 327.1875
B204: 333.1875 | F204: 333.1875 | J204: 333.1875 | N204: =N203+6+3/12 -> 330.375 | R204: 333.1875
B205: 339.1875 | F205: 339.1875 | J205: 339.1875 | R205: 339.1875
B206: 345.1875 | F206: 345.1875 | J206: 345.1875 | R206: 345.1875
B207: 351.1875 | F207: 351.1875 | J207: 351.1875 | R207: 351.1875
B208: 357.1875 | F208: 357.1875 | J208: 357.1875 | R208: 357.1875 | S208: 29487.31
B209: 363.1875 | F209: 363.1875 | J209: 363.1875 | R209: 363.1875 | S209: 29487.31
B210: 369.1875 | F210: 369.1875 | J210: 369.1875 | R210: 369.1875
B211: 375.1875 | F211: 375.1875 | J211: 375.1875 | R211: 375.1875
A212: =IF(C212>0,C212-B212," ") ->  | B212: 381.1875 | E212: =IF(G212>0,G212-F212," ") ->  | F212: 381.1875 | I212: =IF(K212>0,K212-J212," ") ->  | J212: 381.1875 | M212: =IF(O212>0,O212-N212," ") ->  | R212: 381.1875 | U212: =IF(W212>0,W212-V212," ") -> 
B213: 387.1875 | F213: 387.1875 | J213: 387.1875 | R213: 387.1875
B214: 393.1875 | F214: 393.1875 | J214: 393.1875 | R214: 393.1875
B215: 399.1875 | F215: =F214+6 -> 399.1875 | J215: =J214+6 -> 399.1875 | R215: =R214+6 -> 399.1875
B216: 405.1875 | F216: 405.1875 | J216: 405.1875 | R216: 405.1875
B217: 411.1875 | F217: 411.1875 | J217: 411.1875 | R217: 411.1875
B218: =B217+2.9375 -> 414.125 | F218: 417.1875 | J218: 417.1875 | R218: 417.1875
B219: =B218+6+3/12 -> 420.375 | F219: 423.1875 | J219: 423.1875 | R219: 423.1875
F220: 429.1875 | J220: 429.1875 | R220: 429.1875
F221: 435.1875 | J221: 435.1875 | R221: 435.1875
F222: 441.1875 | J222: 441.1875 | R222: 441.1875
F223: 447.1875 | J223: 447.1875 | R223: 447.1875
F224: 453.1875 | J224: 453.1875 | R224: 453.1875
F225: 459.1875 | J225: 459.1875 | R225: 459.1875
F226: 465.1875 | J226: 465.1875 | R226: 465.1875
F227: 471.1875 | J227: 471.1875 | R227: 471.1875
F228: 477.1875 | J228: 477.1875 | R228: 477.1875
F229: 483.1875 | J229: 483.1875 | R229: 483.1875
F230: 489.1875 | J230: 489.1875 | R230: 489.1875
F231: 495.1875 | J231: 495.1875 | R231: 495.1875
F232: 501.1875 | J232: 501.1875 | R232: 501.1875
F233: 507.1875 | J233: 507.1875 | R233: 507.1875
F234: 513.1875 | J234: 513.1875 | R234: 513.1875
F235: 519.1875 | J235: 519.1875 | R235: 519.1875
F236: 525.1875 | J236: 525.1875 | R236: 525.1875
F237: 531.1875 | J237: 531.1875 | R237: 531.1875
F238: 537.1875 | J238: 537.1875 | R238: 537.1875
F239: 543.1875 | J239: 543.1875 | R239: 543.1875
F240: 549.1875 | J240: 549.1875 | R240: 549.1875
F241: 555.1875 | J241: 555.1875 | R241: 555.1875
F242: 561.1875 | J242: 561.1875 | R242: 561.1875
F243: 567.1875 | J243: 567.1875 | R243: 567.1875
F244: 573.1875 | J244: 573.1875 | M244: =IF(O244>0,O244-N244," ") ->  | R244: 573.1875
F245: 579.1875 | J245: 579.1875 | R245: 579.1875
F246: 585.1875 | J246: 585.1875 | R246: 585.1875
F247: 591.1875 | J247: =J246+6 -> 591.1875 | R247: 591.1875
F248: 597.1875 | J248: 597.1875 | R248: 597.1875
F249: 603.1875 | J249: 603.1875 | R249: 603.1875
F250: 609.1875 | J250: 609.1875 | R250: 609.1875
F251: 615.1875 | J251: 615.1875 | R251: 615.1875
F252: 621.1875 | J252: 621.1875 | R252: 621.1875
F253: 627.1875 | J253: 627.1875 | R253: 627.1875
F254: 633.1875 | J254: 633.1875 | R254: 633.1875
F255: 639.1875 | J255: 639.1875 | R255: 639.1875
F256: 645.1875 | J256: 645.1875 | R256: 645.1875
F257: 651.1875 | J257: 651.1875 | R257: 651.1875
F258: 657.1875 | J258: 657.1875 | R258: 657.1875
F259: 663.1875 | J259: 663.1875 | R259: 663.1875
F260: 669.1875 | J260: 669.1875 | R260: 669.1875
F261: 675.1875 | J261: 675.1875 | R261: 675.1875
F262: 681.1875 | J262: 681.1875 | R262: 681.1875
F263: 687.1875 | J263: 687.1875 | R263: 687.1875
E264: 25959.8425 | F264: 693.1875 | G264: 26653.03 | J264: 693.1875 | R264: 693.1875
E265: 25953.8425 | F265: 699.1875 | G265: 26653.03 | J265: 699.1875 | R265: 699.1875
F266: 705.1875 | J266: 705.1875 | R266: 705.1875
F267: 711.1875 | J267: 711.1875 | R267: 711.1875
F268: 717.1875 | J268: 717.1875 | R268: 717.1875
F269: 723.1875 | J269: 723.1875 | R269: 723.1875
F270: 729.1875 | J270: 729.1875 | R270: 729.1875
F271: 735.1875 | J271: 735.1875 | R271: 735.1875
F272: 741.1875 | J272: 741.1875 | R272: 741.1875
F273: 747.1875 | J273: 747.1875 | R273: 747.1875
F274: 753.1875 | J274: 753.1875 | R274: 753.1875
F275: 759.1875 | J275: 759.1875 | R275: 759.1875
A276: =IF(C276>0,C276-B276," ") ->  | E276: =IF(G276>0,G276-F276," ") ->  | F276: 765.1875 | I276: =IF(K276>0,K276-J276," ") ->  | J276: 765.1875 | M276: =IF(O276>0,O276-N276," ") ->  | R276: 765.1875 | U276: =IF(W276>0,W276-V276," ") -> 
F277: 771.1875 | J277: 771.1875 | R277: 771.1875
F278: 777.1875 | J278: 777.1875 | R278: 777.1875
F279: =F278+6 -> 783.1875 | J279: =J278+6 -> 783.1875 | R279: =R278+6 -> 783.1875
F280: 789.1875 | J280: 789.1875 | R280: 789.1875
F281: 795.1875 | J281: 795.1875 | R281: 795.1875
F282: 801.1875 | J282: 801.1875 | R282: 801.1875
F283: 807.1875 | J283: 807.1875 | R283: 807.1875
F284: 813.1875 | J284: 813.1875 | R284: 813.1875
F285: 819.1875 | J285: 819.1875 | R285: 819.1875
F286: 825.1875 | J286: 825.1875 | R286: 825.1875
F287: 831.1875 | J287: 831.1875 | R287: 831.1875
F288: 837.1875 | J288: 837.1875 | R288: 837.1875
F289: 843.1875 | J289: 843.1875 | R289: 843.1875
F290: 849.1875 | J290: =J289+2.9375 -> 846.125 | R290: 849.1875
F291: 855.1875 | J291: =J290+6+3/12 -> 852.375 | R291: 855.1875
F292: 861.1875 | R292: 861.1875
F293: 867.1875 | R293: 867.1875
F294: 873.1875 | R294: 873.1875
F295: 879.1875 | R295: 879.1875 | S295: 30010.56
F296: 885.1875 | R296: 885.1875 | S296: 30010.56
F297: 891.1875 | R297: 891.1875
F298: 897.1875 | R298: 897.1875
F299: 903.1875 | R299: 903.1875
F300: 909.1875 | R300: 909.1875
F301: 915.1875 | R301: 915.1875
... 167 more rows

Sheet Unflared Box Optional Term (hidden)
A1: Design Speed (mph) = | B1: 70 | C1: Radius (ft) = | E1: Direction = | G1: ADT = | H1: 2440 | I1: Additional Clear Zone Width for Non-Recoverable Slopes* (ft) = | K1: Unadjusted Clear Zone Distance Based on 4:1 Slope, CZt (ft) = RDM Exhibit 9-1 | L1: =IF(B1<=P7,LOOKUP(H1,W7:W10,T7:T10),IF(B1=P11,LOOKUP(H1,W11:W14,T11:T14),IF(B1=P15,LOOKUP(H1,W15:W21,T15:T21),IF(B1=P22,LOOKUP(H1,W22:W25,T22:T25),IF(B1=P26,LOOKUP(H1,W26:W29,T26:T29),IF(B1=P30,LOOKUP(H1,W30:W33,T30:T33),IF(B1=P34,LOOKUP(H1,W34:W37,T34:T37),"Error"))))))) -> 42 | M1: Unadjusted Clear Zone Distance Based on 6:1 Slope, CZt (ft) = RDM Exhibit 9-1 | N1: =IF(B1<=P7,LOOKUP(H1,W7:W10,R7:R10),IF(B1=P11,LOOKUP(H1,W11:W14,R11:R14),IF(B1=P15,LOOKUP(H1,W15:W21,R15:R21),IF(B1=P22,LOOKUP(H1,W22:W25,R22:R25),IF(B1=P26,LOOKUP(H1,W26:W29,R26:R29),IF(B1=P30,LOOKUP(H1,W30:W33,R30:R33),IF(B1=P34,LOOKUP(H1,W34:W37,R34:R37),"Error"))))))) -> 30 | O1: Terminal Length Outside Length of Need; WY-BET (ft) = DTL. DWG. NO. 606-55A | P1: =15+2.25/12 -> 15.1875 | Q1: Terminal Length Within Length of Need; WY-BET (ft) = DTL. DWG. NO. 606-55A | R1: 33 | S1: Terminal Length Outside Length of Need; BEAT (ft) = DTL. DWG. NO. 606-55B | T1: =12+9.25/12 -> 12.77083333 | U1: Terminal Length Within Length of Need; BEAT(ft) = DTL. DWG. NO. 606-55B | V1: =34+9/12 -> 34.75
I2: * With non-recoverable slopes, a 10-foot recovery area is required beyond the toe of the fill slope.
P3: Road Design Manual Exhibit 9-1
A4: Adjacent Traffic | I4: Road Design Manual Exhibit 9-15 | P4: Clear Zone Distances
I5: Barrier Length of Need | P5: Design Speed | R5: Fill Slope/Fore Slopes
A6: Beginning Station For Obstacle | B6: Ending Station For Obstacle | C6: Adjusted Clear Zone Distance (ft) | D6: Runout Length (LR) RDM Exhibit 9-16 | E6: L1 (ft) | F6: L0 (ft) | G6: X (ft) | H6: Side | R6: 6:1 or Flatter | S6: 5:1 | T6: 4:1
A7: 500+00 | B7: 600+00 | C7: =IF(OR(A7="",B7=""),"",$AP$44) -> 42 | D7: =IF(C7="","",IF($H$1<=$T$64,LOOKUP($H$1,$W$65:$W$73,$T$65:$T$73),IF(AND($H$1<=$S$64,$H$1>$S$63),LOOKUP($H$1,$W$65:$W$73,$S$65:$S$73),IF(AND($H$1<=$R$64,$H$1>$R$63),LOOKUP($H$1,$W$65:$W$73,$R$65:$R$73),IF($H$1>$Q$64,LOOKUP($H$1,$W$65:$W$73,$Q$65:$Q$73)))))) -> 290 | F7: =C7 -> 42 | G7: =IF(C7="","",D7*(F7-E7)/F7) -> 290 | H7: LT. | P7: 40 | Q7: 750 | R7: 8 | S7: 8 | T7: 10 | W7: =IF(H1<750,H1,"Error") -> Error
A8: 30688.95 | B8: 31050 | C8: =IF(OR(A8="",B8=""),"",$AQ$44) -> 42 | D8: =IF(C8="","",IF($H$1<=$T$64,LOOKUP($H$1,$W$65:$W$73,$T$65:$T$73),IF(AND($H$1<=$S$64,$H$1>$S$63),LOOKUP($H$1,$W$65:$W$73,$S$65:$S$73),IF(AND($H$1<=$R$64,$H$1>$R$63),LOOKUP($H$1,$W$65:$W$73,$R$65:$R$73),IF($H$1>$Q$64,LOOKUP($H$1,$W$65:$W$73,$Q$65:$Q$73)))))) -> 290 | E8: 8 | F8: =C8 -> 42 | G8: =IF(C8="","",D8*(F8-E8)/F8) -> 234.7619048 | H8: RT. | Q8: 750-1499 | R8: 10 | S8: 12 | T8: 14 | W8: =IF(750<=H1,IF(H1<1500,H1,"Error"),"Error") -> Error
Q9: 1500-6000 | R9: 12 | S9: 14 | T9: 16 | W9: =IF(H1>=1500,IF(H1<=6000,H1,"Error"),"Error") -> 2440
A10: Opposing Traffic | Q10: 6000 | R10: 14 | S10: 16 | T10: 18 | W10: =IF(H1>6000,H1,"Error") -> Error
P11: 45 | Q11: 750 | R11: 10 | S11: 12 | T11: 14 | W11: =IF(H1<750,H1,"Error") -> Error
A12: Beginning Station For Obstacle | B12: Ending Station For Obstacle | C12: Adjusted Clear Zone Distance (ft) | D12: Runout Length (LR) RDM Exhibit 9-16 | E12: L1 (ft) | F12: L0 (ft) | G12: X (ft) | H12: Side | Q12: 750-1499 | R12: 14 | S12: 16 | T12: 18 | W12: =IF(750<=H1,IF(H1<1500,H1,"Error"),"Error") -> Error
A13: =IF(A7="","",A7) -> 500+00 | B13: =IF(B7="","",B7) -> 600+00 | C13: =IF(OR(A13="",B13=""),"",$AP$44) -> 42 | D13: =IF(C13="","",IF($H$1<=$T$64,LOOKUP($H$1,$W$65:$W$73,$T$65:$T$73),IF(AND($H$1<=$S$64,$H$1>$S$63),LOOKUP($H$1,$W$65:$W$73,$S$65:$S$73),IF(AND($H$1<=$R$64,$H$1>$R$63),LOOKUP($H$1,$W$65:$W$73,$R$65:$R$73),IF($H$1>$Q$64,LOOKUP($H$1,$W$65:$W$73,$Q$65:$Q$73)))))) -> 290 | F13: =C13 -> 42 | G13: =IF(C13="","",D13*(F13-E13)/F13) -> 290 | H13: LT. | Q13: 1500-6000 | R13: 16 | S13: 20 | T13: 24 | W13: =IF(H1>=1500,IF(H1<=6000,H1,"Error"),"Error") -> 2440
A14: =IF(A8="","",A8) -> 30688.95 | B14: =IF(B8="","",B8) -> 31050 | C14: =IF(OR(A14="",B14=""),"",$AQ$44) -> 42 | D14: =IF(C14="","",IF($H$1<=$T$64,LOOKUP($H$1,$W$65:$W$73,$T$65:$T$73),IF(AND($H$1<=$S$64,$H$1>$S$63),LOOKUP($H$1,$W$65:$W$73,$S$65:$S$73),IF(AND($H$1<=$R$64,$H$1>$R$63),LOOKUP($H$1,$W$65:$W$73,$R$65:$R$73),IF($H$1>$Q$64,LOOKUP($H$1,$W$65:$W$73,$Q$65:$Q$73)))))) -> 290 | E14: 30 | F14: =C14 -> 42 | G14: =IF(C14="","",D14*(F14-E14)/F14) -> 82.85714286 | H14: RT. | Q14: 6000 | R14: 20 | S14: 24 | T14: 26 | W14: =IF(H1>6000,H1,"Error") -> Error
P15: 50 | Q15: 750 | R15: 12 | S15: 12 | T15: 14 | W15: =IF($H$1<750,$H$1,"Error") -> Error
A16: WY-BET - DTL. DWG. NO. 606-55A | Q16: 750-1499 | R16: 16 | S16: 18 | T16: 20 | W16: =IF(750<=$H$1,IF($H$1<1500,$H$1,"Error"),"Error") -> Error
A18: Calculated Total Length of Need (ft) | B18: Actual Length of Rail (ft) | C18: Actual Length of Need (ft) | D18: Total Barrier Length (ft) | E18: Beginning Station for Barrier | F18: Ending Station for Barrier | G18: Side
A19: =IF(G13="","",IF(G13>0,G7+B7-A7+G13,G7+B7-A7)) ->  | B19: =IF(A19="","",ROUNDUP((A19-2*$R$1)/12.5,0)*12.5) ->  | C19: =IF(A19="","",B19+2*$R$1) ->  | D19: =IF(A19="","",C19+$P$1) ->  | E19: =IF(A19="","",IF(G13>0,A7-(D19-A19)/2-G13,A7-(D19-A19)/2)) ->  | F19: =IF(A19="","",E19+D19) ->  | G19: LT.
A20: =IF(G14="","",IF(G14>0,G8+B8-A8+G14,G8+B8-A8)) -> 678.6690476 | B20: =IF(A20="","",ROUNDUP((A20-2*$R$1)/18,0)*18) -> 630 | C20: =IF(A20="","",B20+2*$R$1) -> 696 | D20: =IF(A20="","",C20+2*$P$1) -> 726.375 | E20: =IF(A20="","",IF(G8>0,A8-(D20-A20)/2-G8,A8-(D20-A20)/2)) -> 30430.33512 | F20: =IF(A20="","",E20+D20) -> 31156.71012 | G20: RT. | Q20: 1500-6000 | R20: 18 | S20: 22 | T20: 26 | W20: =IF($H$1>=1500,IF($H$1<=6000,$H$1,"Error"),"Error") -> 2440
Q21: 6000 | R21: 22 | S21: 26 | T21: 28 | W21: =IF($H$1>6000,$H$1,"Error") -> Error
A22: BEAT - DTL. DWG. NO. 606-55B | P22: 55 | Q22: 750 | R22: 12 | S22: 14 | T22: 18 | W22: =IF($H$1<750,$H$1,"Error") -> Error
Q23: 750-1499 | R23: 16 | S23: 20 | T23: 24 | W23: =IF(750<=$H$1,IF($H$1<1500,$H$1,"Error"),"Error") -> Error
A24: Calculated Total Length of Need (ft) | B24: Actual Length of Rail (ft) | C24: Actual Length of Need (ft) | D24: Total Barrier Length (ft) | E24: Beginning Station for Barrier | F24: Ending Station for Barrier | G24: Side | Q24: 1500-6000 | R24: 20 | S24: 24 | T24: 30 | W24: =IF($H$1>=1500,IF($H$1<=6000,$H$1,"Error"),"Error") -> 2440
A25: =IF(G13="","",IF(G13>0,G7+B7-A7+G13,G7+B7-A7)) ->  | B25: =IF(A25="","",ROUNDUP((A25-2*$V$1)/12.5,0)*12.5) ->  | C25: =IF(A25="","",B25+2*$V$1) ->  | D25: =IF(A25="","",C25+$T$1) ->  | E25: =IF(A25="","",IF(G13>0,A7-(D25-A25)/2-G13,A7-(D25-A25)/2)) ->  | F25: =IF(A25="","",E25+D25) ->  | G25: LT. | Q25: 6000 | R25: 22 | S25: 26 | T25: 32 | W25: =IF($H$1>6000,$H$1,"Error") -> Error
A26: =IF(G14="","",IF(G14>0,G8+B8-A8+G14,G8+B8-A8)) -> 678.6690476 | B26: =IF(A26="","",ROUNDUP((A26-2*$V$1)/18,0)*18) -> 612 | C26: =IF(A26="","",B26+2*$V$1) -> 681.5 | D26: =IF(A26="","",C26+2*$T$1) -> 707.0416667 | E26: =IF(A26="","",IF(G8>0,A8-(D26-A26)/2-G8,A8-(D26-A26)/2)) -> 30440.00179 | F26: =IF(A26="","",E26+D26) -> 31147.04345 | G26: RT. | P26: 60 | Q26: 750 | R26: 16 | S26: 20 | T26: 24 | W26: =IF($H$1<750,$H$1,"Error") -> Error
Q27: 750-1499 | R27: 20 | S27: 26 | T27: 32 | W27: =IF(750<=$H$1,IF($H$1<1500,$H$1,"Error"),"Error") -> Error
A28: Road Design Manual Exhibit 9-2 | Q28: 1500-6000 | R28: 26 | S28: 32 | T28: 40 | W28: =IF($H$1>=1500,IF($H$1<=6000,$H$1,"Error"),"Error") -> 2440
A29: Horizontal Curve Adjustments | Q29: 6000 | R29: 30 | S29: 36 | T29: 44 | W29: =IF($H$1>6000,$H$1,"Error") -> Error
P30: 70 | Q30: 750 | R30: 20 | S30: 22 | T30: 26 | W30: =IF($H$1<750,$H$1,"Error") -> Error
Q31: 750-1499 | R31: 24 | S31: 30 | T31: 36 | W31: =IF(750<=$H$1,IF($H$1<1500,$H$1,"Error"),"Error") -> Error
Q32: 1500-6000 | R32: 30 | S32: 36 | T32: 42 | W32: =IF($H$1>=1500,IF($H$1<=6000,$H$1,"Error"),"Error") -> 2440
Q33: 6000 | R33: 32 | S33: 38 | T33: 46 | W33: =IF($H$1>6000,$H$1,"Error") -> Error
P34: 80 | Q34: 750 | R34: 24 | S34: 26 | T34: 30 | W34: =IF($H$1<750,$H$1,"Error") -> Error
Q35: 750-1499 | R35: 28 | S35: 32 | T35: 38 | W35: =IF(750<=$H$1,IF($H$1<1500,$H$1,"Error"),"Error") -> Error
Q36: 1500-6000 | R36: 34 | S36: 40 | T36: 46 | W36: =IF($H$1>=1500,IF($H$1<=6000,$H$1,"Error"),"Error") -> 2440
Q37: 6000 | R37: 38 | S37: 44 | T37: 50 | W37: =IF($H$1>6000,$H$1,"Error") -> Error
P38: - For 3:1 slopes, see the procedure in Section 9.2.2.2
P39: - All distances are measured from the edge of the traveled way (ETW)
P41: Road Design Manual Exhibit 9-3
P42: Clear Zone Adjustment Factors for Horizontal Curves | AF42: Adjustment Factor
P43: Radius (ft) | Q43: Design Speed (mph) | X43: =P43 -> Radius (ft) | Y43: =Q43 -> Design Speed (mph) | AF43: RT. | AK43: LT. | AP43: RT. | AQ43: LT.
Q44: 40 | R44: 45 | S44: 50 | T44: 55 | U44: 60 | V44: 70 | Y44: =Q44 -> 40 | Z44: 45 | AA44: 50 | AB44: 55 | AC44: 60 | AD44: 70 | AF44: =IF(OR(D1="",F1="LT."),"",IF(D1>X56,D1,IF(B1=Y44,IF(B7<X45,X45,IF(D1>=X45,INDEX(X45:X56,MATCH(D1,X45:X56,1)))),IF(B1=Z44,IF(D1<X46,X46,IF(D1>=X46,INDEX(X46:X56,MATCH(D1,X46:X56,1)))),IF(B1=AA44,IF(D1<X47,X47,IF(D1>=X47,INDEX(X47:X56,MATCH(D1,X47:X56,1)))),IF(B1=AB44,IF(D1<X48,X48,IF(D1>=X48,INDEX(X48:X56,MATCH(D1,X48:X56,1)))),IF(B1=AC44,IF(D1<X49,X49,IF(D1>=X49,INDEX(X49:X56,MATCH(D1,X49:X56,1)))),IF(B1=AD44,IF(D1<X52,X52,IF(D1>=X52,INDEX(X52:X56,MATCH(D1,X52:X56,1)))))))))))) ->  | AG44: =IF(OR(D1="",F1="LT."),"",IF(D1>X56,1,IF(B1=Y44,IF(B7<X45,Y45,IF(D1>=X45,INDEX(Y45:Y56,MATCH(D1,X45:X56,1)))),IF(B1=Z44,IF(D1<X46,Z46,IF(D1>=X46,INDEX(Z46:Z56,MATCH(D1,X46:X56,1)))),IF(B1=AA44,IF(D1<X47,AA47,IF(D1>=X47,INDEX(AA47:AA56,MATCH(D1,X47:X56,1)))),IF(B1=AB44,IF(D1<X48,AB48,IF(D1>=X48,INDEX(AB48:AB56,MATCH(D1,X48:X56,1)))),IF(B1=AC44,IF(D1<X49,AC49,IF(D1>=X49,INDEX(AC49:AC56,MATCH(D1,X49:X56,1)))),IF(B1=AD44,IF(D1<X52,AD52,IF(D1>=X52,INDEX(AD52:AD56,MATCH(D1,X52:X56,1)))))))))))) ->  | AH44: =IF(OR(D1="",F1="LT."),"",IF(D1>X56,D1,IF(B1=Y44,IF(B7<X45,X45,IF(D1>=X45,INDEX(X45:X56,MATCH(D1,X45:X56,1)+1))),IF(B1=Z44,IF(D1<X46,X46,IF(D1>=X46,INDEX(X46:X56,MATCH(D1,X46:X56,1)+1))),IF(B1=AA44,IF(D1<X47,X47,IF(D1>=X47,INDEX(X47:X56,MATCH(D1,X47:X56,1)+1))),IF(B1=AB44,IF(D1<X48,X48,IF(D1>=X48,INDEX(X48:X56,MATCH(D1,X48:X56,1)+1))),IF(B1=AC44,IF(D1<X49,X49,IF(D1>=X49,INDEX(X49:X56,MATCH(D1,X49:X56,1)+1))),IF(B1=AD44,IF(D1<X52,X52,IF(D1>=X52,INDEX(X52:X56,MATCH(D1,X52:X56,1)+1))))))))))) ->  | AI44: =IF(OR(D1="",F1="LT."),"",IF(D1>X56,1,IF(B1=Y44,IF(B7<X45,Y45,IF(D1>=X45,INDEX(Y45:Y56,MATCH(D1,X45:X56,1)+1))),IF(B1=Z44,IF(D1<X46,Z46,IF(D1>=X46,INDEX(Z46:Z56,MATCH(D1,X46:X56,1)+1))),IF(B1=AA44,IF(D1<X47,AA47,IF(D1>=X47,INDEX(AA47:AA56,MATCH(D1,X47:X56,1)+1))),IF(B1=AB44,IF(D1<X48,AB48,IF(D1>=X48,INDEX(AB48:AB56,MATCH(D1,X48:X56,1)+1))),IF(B1=AC44,IF(D1<X49,AC49,IF(D1>=X49,INDEX(AC49:AC56,MATCH(D1,X49:X56,1)+1))),IF(B1=AD44,IF(D1<X52,AD52,IF(D1>=X52,INDEX(AD52:AD56,MATCH(D1,X52:X56,1)+1))))))))))) ->  | AJ44: =IF(OR(AF44="",AG44="",AH44="",AI44=""),1,IF(AND(AH44-AF44=0,AG44=AI44),AI44,AG44+($D$1-AF44)*(AI44-AG44)/(AH44-AF44))) -> 1 | AK44: =IF(OR(D1="",F1="RT."),"",IF(D1>X56,D1,IF(B1=Y44,IF(B7<X45,X45,IF(D1>=X45,INDEX(X45:X56,MATCH(D1,X45:X56,1)))),IF(B1=Z44,IF(D1<X46,X46,IF(D1>=X46,INDEX(X46:X56,MATCH(D1,X46:X56,1)))),IF(B1=AA44,IF(D1<X47,X47,IF(D1>=X47,INDEX(X47:X56,MATCH(D1,X47:X56,1)))),IF(B1=AB44,IF(D1<X48,X48,IF(D1>=X48,INDEX(X48:X56,MATCH(D1,X48:X56,1)))),IF(B1=AC44,IF(D1<X49,X49,IF(D1>=X49,INDEX(X49:X56,MATCH(D1,X49:X56,1)))),IF(B1=AD44,IF(D1<X52,X52,IF(D1>=X52,INDEX(X52:X56,MATCH(D1,X52:X56,1)))))))))))) ->  | AL44: =IF(OR(D1="",F1="RT."),"",IF(D1>X56,1,IF(B1=Y44,IF(B7<X45,Y45,IF(D1>=X45,INDEX(Y45:Y56,MATCH(D1,X45:X56,1)))),IF(B1=Z44,IF(D1<X46,Z46,IF(D1>=X46,INDEX(Z46:Z56,MATCH(D1,X46:X56,1)))),IF(B1=AA44,IF(D1<X47,AA47,IF(D1>=X47,INDEX(AA47:AA56,MATCH(D1,X47:X56,1)))),IF(B1=AB44,IF(D1<X48,AB48,IF(D1>=X48,INDEX(AB48:AB56,MATCH(D1,X48:X56,1)))),IF(B1=AC44,IF(D1<X49,AC49,IF(D1>=X49,INDEX(AC49:AC56,MATCH(D1,X49:X56,1)))),IF(B1=AD44,IF(D1<X52,AD52,IF(D1>=X52,INDEX(AD52:AD56,MATCH(D1,X52:X56,1)))))))))))) ->  | AM44: =IF(OR(D1="",F1="RT."),"",IF(D1>X56,D1,IF(B1=Y44,IF(B7<X45,X45,IF(D1>=X45,INDEX(X45:X56,MATCH(D1,X45:X56,1)+1))),IF(B1=Z44,IF(D1<X46,X46,IF(D1>=X46,INDEX(X46:X56,MATCH(D1,X46:X56,1)+1))),IF(B1=AA44,IF(D1<X47,X47,IF(D1>=X47,INDEX(X47:X56,MATCH(D1,X47:X56,1)+1))),IF(B1=AB44,IF(D1<X48,X48,IF(D1>=X48,INDEX(X48:X56,MATCH(D1,X48:X56,1)+1))),IF(B1=AC44,IF(D1<X49,X49,IF(D1>=X49,INDEX(X49:X56,MATCH(D1,X49:X56,1)+1))),IF(B1=AD44,IF(D1<X52,X52,IF(D1>=X52,INDEX(X52:X56,MATCH(D1,X52:X56,1)+1))))))))))) ->  | AN44: =IF(OR(D1="",F1="RT."),"",IF(D1>X56,1,IF(B1=Y44,IF(B7<X45,Y45,IF(D1>=X45,INDEX(Y45:Y56,MATCH(D1,X45:X56,1)+1))),IF(B1=Z44,IF(D1<X46,Z46,IF(D1>=X46,INDEX(Z46:Z56,MATCH(D1,X46:X56,1)+1))),IF(B1=AA44,IF(D1<X47,AA47,IF(D1>=X47,INDEX(AA47:AA56,MATCH(D1,X47:X56,1)+1))),IF(B1=AB44,IF(D1<X48,AB48,IF(D1>=X48,INDEX(AB48:AB56,MATCH(D1,X48:X56,1)+1))),IF(B1=AC44,IF(D1<X49,AC49,IF(D1>=X49,INDEX(AC49:AC56,MATCH(D1,X49:X56,1)+1))),IF(B1=AD44,IF(D1<X52,AD52,IF(D1>=X52,INDEX(AD52:AD56,MATCH(D1,X52:X56,1)+1))))))))))) ->  | AO44: =IF(OR(AK44="",AL44="",AM44="",AN44=""),1,IF(AND(AM44-AK44=0,AL44=AN44),AN44,AL44+($D$1-AK44)*(AN44-AL44)/(AM44-AK44))) -> 1 | AP44: =L1*AJ44 -> 42 | AQ44: =L1*AO44 -> 42
A45: DTL. DWG. NO. 606-55A | P45: 2950 | Q45: 1.1 | R45: 1.1 | S45: 1.1 | T45: 1.2 | U45: 1.2 | V45: 1.2 | X45: =P56 -> 330 | Y45: =Q56 -> 1.5
P46: 2300 | Q46: 1.1 | R46: 1.1 | S46: 1.2 | T46: 1.2 | U46: 1.2 | V46: 1.3 | X46: =P55 -> 495 | Y46: =Q55 -> 1.4 | Z46: =R55 -> 1.5
P47: 1970 | Q47: 1.1 | R47: 1.2 | S47: 1.2 | T47: 1.2 | U47: 1.3 | V47: 1.4 | X47: =P54 -> 660 | Y47: =Q54 -> 1.3 | Z47: =R54 -> 1.4 | AA47: =S54 -> 1.5
P48: 1640 | Q48: 1.1 | R48: 1.2 | S48: 1.2 | T48: 1.3 | U48: 1.3 | V48: 1.4 | X48: =P53 -> 820 | Y48: =Q53 -> 1.3 | Z48: =R53 -> 1.3 | AA48: =S53 -> 1.4 | AB48: =T53 -> 1.5
P49: 1475 | Q49: 1.2 | R49: 1.2 | S49: 1.3 | T49: 1.3 | U49: 1.4 | V49: 1.5 | X49: =P52 -> 985 | Y49: 1.2 | Z49: 1.3 | AA49: 1.4 | AB49: 1.5 | AC49: 1.5
P50: 1315 | Q50: 1.2 | R50: 1.2 | S50: 1.3 | T50: 1.3 | U50: 1.4 | X50: =P51 -> 1150 | Y50: 1.2 | Z50: 1.2 | AA50: 1.3 | AB50: 1.4 | AC50: 1.5
P51: 1150 | Q51: 1.2 | R51: 1.2 | S51: 1.3 | T51: 1.4 | U51: 1.5 | X51: =P50 -> 1315 | Y51: 1.2 | Z51: 1.2 | AA51: 1.3 | AB51: 1.3 | AC51: 1.4
P52: 985 | Q52: 1.2 | R52: 1.3 | S52: 1.4 | T52: 1.5 | U52: 1.5 | X52: =P49 -> 1475 | Y52: 1.2 | Z52: 1.2 | AA52: 1.3 | AB52: 1.3 | AC52: 1.4 | AD52: 1.5
P53: 820 | Q53: 1.3 | R53: 1.3 | S53: 1.4 | T53: 1.5 | X53: =P48 -> 1640 | Y53: 1.1 | Z53: 1.2 | AA53: 1.2 | AB53: 1.3 | AC53: 1.3 | AD53: 1.4
P54: 660 | Q54: 1.3 | R54: 1.4 | S54: 1.5 | X54: =P47 -> 1970 | Y54: 1.1 | Z54: 1.2 | AA54: 1.2 | AB54: 1.2 | AC54: 1.3 | AD54: 1.4
P55: 495 | Q55: 1.4 | R55: 1.5 | X55: =P46 -> 2300 | Y55: 1.1 | Z55: 1.1 | AA55: 1.2 | AB55: 1.2 | AC55: 1.2 | AD55: 1.3
P56: 330 | Q56: 1.5 | X56: =P45 -> 2950 | Y56: 1.1 | Z56: 1.1 | AA56: 1.1 | AB56: 1.2 | AC56: 1.2 | AD56: 1.2
P59: Road Design Manual Exhibit 9-16
P60: Design Elements for Barrier Length of Need
P61: Design Speed (mph) | Q61: Runout Length LR (ft) | U61: Shy Line Offset LS (ft)
Q62: Design Year Traffic Volume (AADT)
R63: 5000 | S63: 1000
Q64: 10000 | R64: 10000 | S64: 5000 | T64: 1000
P65: 80 | Q65: 470 | R65: 430 | S65: 380 | T65: 330 | U65: 12 | W65: =IF($B$1=P65,$H$1,"Error") -> Error
P66: 70 | Q66: 360 | R66: 330 | S66: 290 | T66: 250 | U66: 9 | W66: 2440
P67: 60 | Q67: 300 | R67: 250 | S67: 210 | T67: 200 | U67: 12 | W67: Error
P68: 50 | Q68: 230 | R68: 190 | S68: 160 | T68: 150 | U68: 6.5 | W68: Error
P69: 40 | Q69: 160 | R69: 130 | S69: 110 | T69: 100 | U69: 5 | W69: Error
P70: 30 | Q70: 110 | R70: 90 | S70: 80 | T70: 70 | U70: 4 | W70: Error
P71: 55 | Q71: =AVERAGE(Q67:Q68) -> 265 | R71: 220 | S71: 185 | T71: 175 | U71: 9.25 | W71: Error
P72: 45 | Q72: 195 | R72: 160 | S72: 135 | T72: 125 | U72: 5.75 | W72: Error
P73: 35 | Q73: 135 | R73: 110 | S73: 95 | T73: 85 | U73: 4.5 | W73: Error
A94: DTL. DWG. NO. 606-55B

Sheet Box Beam Bridge Appr._1&2_BEAT (hidden)
A1: Design Speed (mph) = | B1: 70 | C1: Radius (ft) = | E1: Direction = | G1: ADT = | H1: 2440 | I1: Additional Clear Zone Width for Non-Recoverable Slopes* (ft) = | K1: Unadjusted Clear Zone Distance Based on 4:1 Slope, CZt (ft) = RDM Exhibit 9-1 | L1: =IF(B1<=W7,LOOKUP(H1,AD7:AD10,AA7:AA10),IF(B1=W11,LOOKUP(H1,AD11:AD14,AA11:AA14),IF(B1=W15,LOOKUP(H1,AD15:AD18,AA15:AA18),IF(B1=W19,LOOKUP(H1,AD19:AD22,AA19:AA22),IF(B1=W23,LOOKUP(H1,AD23:AD26,AA23:AA26),IF(B1=W27,LOOKUP(H1,AD27:AD30,AA27:AA30),IF(B1=W31,LOOKUP(H1,AD31:AD34,AA31:AA34),"Error"))))))) -> 42 | M1: Unadjusted Clear Zone Distance Based on 6:1 Slope, CZt (ft) = RDM Exhibit 9-1 | N1: =IF(B1<=W7,LOOKUP(H1,AD7:AD10,Y7:Y10),IF(B1=W11,LOOKUP(H1,AD11:AD14,Y11:Y14),IF(B1=W15,LOOKUP(H1,AD15:AD18,Y15:Y18),IF(B1=W19,LOOKUP(H1,AD19:AD22,Y19:Y22),IF(B1=W23,LOOKUP(H1,AD23:AD26,Y23:Y26),IF(B1=W27,LOOKUP(H1,AD27:AD30,Y27:Y30),IF(B1=W31,LOOKUP(H1,AD31:AD34,Y31:Y34),"Error"))))))) -> 30 | O1: Terminal Length Outside Length of Need (ft) = DTL. DWG. NO. 606-55B | P1: =12+9.25/12 -> 12.77083333 | Q1: Terminal Length Within Length of Need (ft) = DTL. DWG. NO. 606-55B | R1: =34+9/12 -> 34.75 | S1: Bridge Appr. Section Pay Limits Length (ft) = DTL. DWG. NO. 606-53 | T1: =51+0.25/12 -> 51.02083333
I2: * With non-recoverable slopes, a 10-foot recovery area is required beyond the toe of the fill slope.
W3: Road Design Manual Exhibit 9-1
A4: Adjacent Traffic | O4: Road Design Manual Exhibit 9-15 | W4: Clear Zone Distances
O5: Barrier Length of Need | W5: Design Speed | Y5: Fill Slope/Fore Slopes
A6: Bridge End Station | B6: Adjusted Clear Zone Distance (ft) | C6: Runout Length (LR) RDM Exhibit 9-16 | D6: L1 (ft) | E6: L0 (ft) | F6: X (ft) | G6: Calculated Total Length of Need (ft) | H6: Actual Length of Rail (ft) | I6: Actual Length of Need (ft) | J6: Total Barrier Length (ft) | K6: Beginning/Ending Station for End Sections | L6: Beginning Station for Rail | M6: Ending Station for Rail | N6: Side | Y6: 6:1 or Flatter | Z6: 5:1 | AA6: 4:1
A7: 37166.56 | B7: =IF(A7="","",$AX$41) -> 42 | C7: =IF(B7="","",IF($H$1<=$AA$61,LOOKUP($H$1,$AD$62:$AD$70,$AA$62:$AA$70),IF(AND($H$1<=$Z$61,$H$1>$Z$60),LOOKUP($H$1,$AD$62:$AD$70,$Z$62:$Z$70),IF(AND($H$1<=$Y$61,$H$1>$Y$60),LOOKUP($H$1,$AD$62:$AD$70,$Y$62:$Y$70),IF($H$1>$X$61,LOOKUP($H$1,$AD$62:$AD$70,$X$62:$X$70)))))) -> 290 | D7: 8 | E7: =B7 -> 42 | F7: =IF(B7="","",C7*(E7-D7)/E7) -> 234.7619048 | G7: =IF(B7="","",F7) -> 234.7619048 | H7: =IF(A7="","",ROUNDUP((G7-($R$1+$T$1))/18,0)*18) -> 162 | I7: =IF(A7="","",H7+$R$1+$T$1) -> 247.7708333 | J7: =IF(A7="","",I7+$P$1) -> 260.5416667 | K7: =A7-J7 -> 36906.01833 | L7: =K7+($P$1+$R$1) -> 36953.53917 | M7: =A7-$T$1 -> 37115.53917 | N7: RT. | W7: 40 | X7: 750 | Y7: 8 | Z7: 8 | AA7: 10 | AD7: =IF(H1<750,H1,"Error") -> Error
A8: 37232.44 | B8: =IF(A8="","",$AW$41) -> 42 | C8: =IF(B8="","",IF($H$1<=$AA$61,LOOKUP($H$1,$AD$62:$AD$70,$AA$62:$AA$70),IF(AND($H$1<=$Z$61,$H$1>$Z$60),LOOKUP($H$1,$AD$62:$AD$70,$Z$62:$Z$70),IF(AND($H$1<=$Y$61,$H$1>$Y$60),LOOKUP($H$1,$AD$62:$AD$70,$Y$62:$Y$70),IF($H$1>$X$61,LOOKUP($H$1,$AD$62:$AD$70,$X$62:$X$70)))))) -> 290 | D8: 8 | E8: =B8 -> 42 | F8: =IF(B8="","",C8*(E8-D8)/E8) -> 234.7619048 | G8: =IF(B8="","",F8) -> 234.7619048 | H8: =IF(A8="","",ROUNDUP((G8-($R$1+$T$1))/18,0)*18) -> 162 | I8: =IF(A8="","",H8+$R$1+$T$1) -> 247.7708333 | J8: =IF(A8="","",I8+$P$1) -> 260.5416667 | K8: =A8+J8 -> 37492.98167 | L8: =A8+$T$1 -> 37283.46083 | M8: =K8-($P$1+$R$1) -> 37445.46083 | N8: LT. | X8: 750-1499 | Y8: 10 | Z8: 12 | AA8: 14 | AD8: =IF(750<=H1,IF(H1<1500,H1,"Error"),"Error") -> Error
X9: 1500-6000 | Y9: 12 | Z9: 14 | AA9: 16 | AD9: =IF(H1>=1500,IF(H1<=6000,H1,"Error"),"Error") -> 2440
A10: Opposing Traffic | X10: 6000 | Y10: 14 | Z10: 16 | AA10: 18 | AD10: =IF(H1>6000,H1,"Error") -> Error
W11: 45 | X11: 750 | Y11: 10 | Z11: 12 | AA11: 14 | AD11: =IF(H1<750,H1,"Error") -> Error
A12: Beginning Station For Obstacle | B12: Adjusted Clear Zone Distance (ft) | C12: Runout Length (LR) RDM Exhibit 9-16 | D12: L1 (ft) | E12: L0 (ft) | F12: X (ft) | G12: Calculated Total Length of Need (ft) | H12: Actual Length of Rail (ft) | I12: Actual Length of Need (ft) | J12: Total Barrier Length (ft) | K12: Beginning/Ending Station for End Sections | L12: Beginning Station for Rail | M12: Ending Station for Rail | N12: Side | X12: 750-1499 | Y12: 14 | Z12: 16 | AA12: 18 | AD12: =IF(750<=H1,IF(H1<1500,H1,"Error"),"Error") -> Error
A13: =IF(A7="","",A7) -> 37166.56 | B13: =IF(A13="","",$AW$41) -> 42 | C13: =IF(B13="","",IF($H$1<=$AA$61,LOOKUP($H$1,$AD$62:$AD$70,$AA$62:$AA$70),IF(AND($H$1<=$Z$61,$H$1>$Z$60),LOOKUP($H$1,$AD$62:$AD$70,$Z$62:$Z$70),IF(AND($H$1<=$Y$61,$H$1>$Y$60),LOOKUP($H$1,$AD$62:$AD$70,$Y$62:$Y$70),IF($H$1>$X$61,LOOKUP($H$1,$AD$62:$AD$70,$X$62:$X$70)))))) -> 290 | D13: 20 | E13: =B13 -> 42 | F13: =IF(B13="","",C13*(E13-D13)/E13) -> 151.9047619 | G13: =IF(B13="","",F13) -> 151.9047619 | H13: =IF(A13="","",ROUNDUP((G13-($R$1+$T$1))/18,0)*18) -> 72 | I13: =IF(A13="","",H13+$R$1+$T$1) -> 157.7708333 | J13: =IF(A13="","",I13+$P$1) -> 170.5416667 | K13: =A13-J13 -> 36996.01833 | L13: =K13+($P$1+$R$1) -> 37043.53917 | M13: =A13-$T$1 -> 37115.53917 | N13: LT. | X13: 1500-6000 | Y13: 16 | Z13: 20 | AA13: 24 | AD13: =IF(H1>=1500,IF(H1<=6000,H1,"Error"),"Error") -> 2440
A14: =IF(A8="","",A8) -> 37232.44 | B14: =IF(A14="","",$AX$41) -> 42 | C14: =IF(B14="","",IF($H$1<=$AA$61,LOOKUP($H$1,$AD$62:$AD$70,$AA$62:$AA$70),IF(AND($H$1<=$Z$61,$H$1>$Z$60),LOOKUP($H$1,$AD$62:$AD$70,$Z$62:$Z$70),IF(AND($H$1<=$Y$61,$H$1>$Y$60),LOOKUP($H$1,$AD$62:$AD$70,$Y$62:$Y$70),IF($H$1>$X$61,LOOKUP($H$1,$AD$62:$AD$70,$X$62:$X$70)))))) -> 290 | D14: 20 | E14: =B14 -> 42 | F14: =IF(B14="","",C14*(E14-D14)/E14) -> 151.9047619 | G14: =IF(B14="","",F14) -> 151.9047619 | H14: =IF(A14="","",ROUNDUP((G14-($R$1+$T$1))/18,0)*18) -> 72 | I14: =IF(A14="","",H14+$R$1+$T$1) -> 157.7708333 | J14: =IF(A14="","",I14+$P$1) -> 170.5416667 | K14: =A14+J14 -> 37402.98167 | L14: =A14+$T$1 -> 37283.46083 | M14: =K14-($P$1+$R$1) -> 37355.46083 | N14: RT. | X14: 6000 | Y14: 20 | Z14: 24 | AA14: 26 | AD14: =IF(H1>6000,H1,"Error") -> Error
W15: 50 | X15: 750 | Y15: 12 | Z15: 12 | AA15: 14 | AD15: =IF($H$1<750,$H$1,"Error") -> Error
X16: 750-1499 | Y16: 16 | Z16: 18 | AA16: 20 | AD16: =IF(750<=$H$1,IF($H$1<1500,$H$1,"Error"),"Error") -> Error
A17: Road Design Manual Exhibit 9-2 | X17: 1500-6000 | Y17: 18 | Z17: 22 | AA17: 26 | AD17: =IF($H$1>=1500,IF($H$1<=6000,$H$1,"Error"),"Error") -> 2440
A18: Horizontal Curve Adjustments | X18: 6000 | Y18: 22 | Z18: 26 | AA18: 28 | AD18: =IF($H$1>6000,$H$1,"Error") -> Error
W19: 55 | X19: 750 | Y19: 12 | Z19: 14 | AA19: 18 | AD19: =IF($H$1<750,$H$1,"Error") -> Error
X20: 750-1499 | Y20: 16 | Z20: 20 | AA20: 24 | AD20: =IF(750<=$H$1,IF($H$1<1500,$H$1,"Error"),"Error") -> Error
X21: 1500-6000 | Y21: 20 | Z21: 24 | AA21: 30 | AD21: =IF($H$1>=1500,IF($H$1<=6000,$H$1,"Error"),"Error") -> 2440
X22: 6000 | Y22: 22 | Z22: 26 | AA22: 32 | AD22: =IF($H$1>6000,$H$1,"Error") -> Error
W23: 60 | X23: 750 | Y23: 16 | Z23: 20 | AA23: 24 | AD23: =IF($H$1<750,$H$1,"Error") -> Error
X24: 750-1499 | Y24: 20 | Z24: 26 | AA24: 32 | AD24: =IF(750<=$H$1,IF($H$1<1500,$H$1,"Error"),"Error") -> Error
X25: 1500-6000 | Y25: 26 | Z25: 32 | AA25: 40 | AD25: =IF($H$1>=1500,IF($H$1<=6000,$H$1,"Error"),"Error") -> 2440
X26: 6000 | Y26: 30 | Z26: 36 | AA26: 44 | AD26: =IF($H$1>6000,$H$1,"Error") -> Error
W27: 70 | X27: 750 | Y27: 20 | Z27: 22 | AA27: 26 | AD27: =IF($H$1<750,$H$1,"Error") -> Error
X28: 750-1499 | Y28: 24 | Z28: 30 | AA28: 36 | AD28: =IF(750<=$H$1,IF($H$1<1500,$H$1,"Error"),"Error") -> Error
X29: 1500-6000 | Y29: 30 | Z29: 36 | AA29: 42 | AD29: =IF($H$1>=1500,IF($H$1<=6000,$H$1,"Error"),"Error") -> 2440
X30: 6000 | Y30: 32 | Z30: 38 | AA30: 46 | AD30: =IF($H$1>6000,$H$1,"Error") -> Error
W31: 80 | X31: 750 | Y31: 24 | Z31: 26 | AA31: 30 | AD31: =IF($H$1<750,$H$1,"Error") -> Error
X32: 750-1499 | Y32: 28 | Z32: 32 | AA32: 38 | AD32: =IF(750<=$H$1,IF($H$1<1500,$H$1,"Error"),"Error") -> Error
X33: 1500-6000 | Y33: 34 | Z33: 40 | AA33: 46 | AD33: =IF($H$1>=1500,IF($H$1<=6000,$H$1,"Error"),"Error") -> 2440
X34: 6000 | Y34: 38 | Z34: 44 | AA34: 50 | AD34: =IF($H$1>6000,$H$1,"Error") -> Error
W35: - For 3:1 slopes, see the procedure in Section 9.2.2.2
W36: - All distances are measured from the edge of the traveled way (ETW)
W38: Road Design Manual Exhibit 9-3
W39: Clear Zone Adjustment Factors for Horizontal Curves | AM39: Adjustment Factor
W40: Radius (ft) | X40: Design Speed (mph) | AE40: =W40 -> Radius (ft) | AF40: =X40 -> Design Speed (mph) | AM40: RT. | AR40: LT. | AW40: RT. | AX40: LT.
X41: 40 | Y41: 45 | Z41: 50 | AA41: 55 | AB41: 60 | AC41: 70 | AF41: =X41 -> 40 | AG41: 45 | AH41: 50 | AI41: 55 | AJ41: 60 | AK41: 70 | AM41: =IF(OR(D1="",F1="LT."),"",IF(D1>AE53,D1,IF(B1=AF41,IF(#REF!<AE42,AE42,IF(D1>=AE42,INDEX(AE42:AE53,MATCH(D1,AE42:AE53,1)))),IF(B1=AG41,IF(D1<AE43,AE43,IF(D1>=AE43,INDEX(AE43:AE53,MATCH(D1,AE43:AE53,1)))),IF(B1=AH41,IF(D1<AE44,AE44,IF(D1>=AE44,INDEX(AE44:AE53,MATCH(D1,AE44:AE53,1)))),IF(B1=AI41,IF(D1<AE45,AE45,IF(D1>=AE45,INDEX(AE45:AE53,MATCH(D1,AE45:AE53,1)))),IF(B1=AJ41,IF(D1<AE46,AE46,IF(D1>=AE46,INDEX(AE46:AE53,MATCH(D1,AE46:AE53,1)))),IF(B1=AK41,IF(D1<AE49,AE49,IF(D1>=AE49,INDEX(AE49:AE53,MATCH(D1,AE49:AE53,1)))))))))))) ->  | AN41: =IF(OR(D1="",F1="LT."),"",IF(D1>AE53,1,IF(B1=AF41,IF(#REF!<AE42,AF42,IF(D1>=AE42,INDEX(AF42:AF53,MATCH(D1,AE42:AE53,1)))),IF(B1=AG41,IF(D1<AE43,AG43,IF(D1>=AE43,INDEX(AG43:AG53,MATCH(D1,AE43:AE53,1)))),IF(B1=AH41,IF(D1<AE44,AH44,IF(D1>=AE44,INDEX(AH44:AH53,MATCH(D1,AE44:AE53,1)))),IF(B1=AI41,IF(D1<AE45,AI45,IF(D1>=AE45,INDEX(AI45:AI53,MATCH(D1,AE45:AE53,1)))),IF(B1=AJ41,IF(D1<AE46,AJ46,IF(D1>=AE46,INDEX(AJ46:AJ53,MATCH(D1,AE46:AE53,1)))),IF(B1=AK41,IF(D1<AE49,AK49,IF(D1>=AE49,INDEX(AK49:AK53,MATCH(D1,AE49:AE53,1)))))))))))) ->  | AO41: =IF(OR(D1="",F1="LT."),"",IF(D1>AE53,D1,IF(B1=AF41,IF(#REF!<AE42,AE42,IF(D1>=AE42,INDEX(AE42:AE53,MATCH(D1,AE42:AE53,1)+1))),IF(B1=AG41,IF(D1<AE43,AE43,IF(D1>=AE43,INDEX(AE43:AE53,MATCH(D1,AE43:AE53,1)+1))),IF(B1=AH41,IF(D1<AE44,AE44,IF(D1>=AE44,INDEX(AE44:AE53,MATCH(D1,AE44:AE53,1)+1))),IF(B1=AI41,IF(D1<AE45,AE45,IF(D1>=AE45,INDEX(AE45:AE53,MATCH(D1,AE45:AE53,1)+1))),IF(B1=AJ41,IF(D1<AE46,AE46,IF(D1>=AE46,INDEX(AE46:AE53,MATCH(D1,AE46:AE53,1)+1))),IF(B1=AK41,IF(D1<AE49,AE49,IF(D1>=AE49,INDEX(AE49:AE53,MATCH(D1,AE49:AE53,1)+1))))))))))) ->  | AP41: =IF(OR(D1="",F1="LT."),"",IF(D1>AE53,1,IF(B1=AF41,IF(#REF!<AE42,AF42,IF(D1>=AE42,INDEX(AF42:AF53,MATCH(D1,AE42:AE53,1)+1))),IF(B1=AG41,IF(D1<AE43,AG43,IF(D1>=AE43,INDEX(AG43:AG53,MATCH(D1,AE43:AE53,1)+1))),IF(B1=AH41,IF(D1<AE44,AH44,IF(D1>=AE44,INDEX(AH44:AH53,MATCH(D1,AE44:AE53,1)+1))),IF(B1=AI41,IF(D1<AE45,AI45,IF(D1>=AE45,INDEX(AI45:AI53,MATCH(D1,AE45:AE53,1)+1))),IF(B1=AJ41,IF(D1<AE46,AJ46,IF(D1>=AE46,INDEX(AJ46:AJ53,MATCH(D1,AE46:AE53,1)+1))),IF(B1=AK41,IF(D1<AE49,AK49,IF(D1>=AE49,INDEX(AK49:AK53,MATCH(D1,AE49:AE53,1)+1))))))))))) ->  | AQ41: =IF(OR(AM41="",AN41="",AO41="",AP41=""),1,IF(AND(AO41-AM41=0,AN41=AP41),AP41,AN41+($D$1-AM41)*(AP41-AN41)/(AO41-AM41))) -> 1 | AR41: =IF(OR(D1="",F1="RT."),"",IF(D1>AE53,D1,IF(B1=AF41,IF(#REF!<AE42,AE42,IF(D1>=AE42,INDEX(AE42:AE53,MATCH(D1,AE42:AE53,1)))),IF(B1=AG41,IF(D1<AE43,AE43,IF(D1>=AE43,INDEX(AE43:AE53,MATCH(D1,AE43:AE53,1)))),IF(B1=AH41,IF(D1<AE44,AE44,IF(D1>=AE44,INDEX(AE44:AE53,MATCH(D1,AE44:AE53,1)))),IF(B1=AI41,IF(D1<AE45,AE45,IF(D1>=AE45,INDEX(AE45:AE53,MATCH(D1,AE45:AE53,1)))),IF(B1=AJ41,IF(D1<AE46,AE46,IF(D1>=AE46,INDEX(AE46:AE53,MATCH(D1,AE46:AE53,1)))),IF(B1=AK41,IF(D1<AE49,AE49,IF(D1>=AE49,INDEX(AE49:AE53,MATCH(D1,AE49:AE53,1)))))))))))) ->  | AS41: =IF(OR(D1="",F1="RT."),"",IF(D1>AE53,1,IF(B1=AF41,IF(#REF!<AE42,AF42,IF(D1>=AE42,INDEX(AF42:AF53,MATCH(D1,AE42:AE53,1)))),IF(B1=AG41,IF(D1<AE43,AG43,IF(D1>=AE43,INDEX(AG43:AG53,MATCH(D1,AE43:AE53,1)))),IF(B1=AH41,IF(D1<AE44,AH44,IF(D1>=AE44,INDEX(AH44:AH53,MATCH(D1,AE44:AE53,1)))),IF(B1=AI41,IF(D1<AE45,AI45,IF(D1>=AE45,INDEX(AI45:AI53,MATCH(D1,AE45:AE53,1)))),IF(B1=AJ41,IF(D1<AE46,AJ46,IF(D1>=AE46,INDEX(AJ46:AJ53,MATCH(D1,AE46:AE53,1)))),IF(B1=AK41,IF(D1<AE49,AK49,IF(D1>=AE49,INDEX(AK49:AK53,MATCH(D1,AE49:AE53,1)))))))))))) ->  | AT41: =IF(OR(D1="",F1="RT."),"",IF(D1>AE53,D1,IF(B1=AF41,IF(#REF!<AE42,AE42,IF(D1>=AE42,INDEX(AE42:AE53,MATCH(D1,AE42:AE53,1)+1))),IF(B1=AG41,IF(D1<AE43,AE43,IF(D1>=AE43,INDEX(AE43:AE53,MATCH(D1,AE43:AE53,1)+1))),IF(B1=AH41,IF(D1<AE44,AE44,IF(D1>=AE44,INDEX(AE44:AE53,MATCH(D1,AE44:AE53,1)+1))),IF(B1=AI41,IF(D1<AE45,AE45,IF(D1>=AE45,INDEX(AE45:AE53,MATCH(D1,AE45:AE53,1)+1))),IF(B1=AJ41,IF(D1<AE46,AE46,IF(D1>=AE46,INDEX(AE46:AE53,MATCH(D1,AE46:AE53,1)+1))),IF(B1=AK41,IF(D1<AE49,AE49,IF(D1>=AE49,INDEX(AE49:AE53,MATCH(D1,AE49:AE53,1)+1))))))))))) ->  | AU41: =IF(OR(D1="",F1="RT."),"",IF(D1>AE53,1,IF(B1=AF41,IF(#REF!<AE42,AF42,IF(D1>=AE42,INDEX(AF42:AF53,MATCH(D1,AE42:AE53,1)+1))),IF(B1=AG41,IF(D1<AE43,AG43,IF(D1>=AE43,INDEX(AG43:AG53,MATCH(D1,AE43:AE53,1)+1))),IF(B1=AH41,IF(D1<AE44,AH44,IF(D1>=AE44,INDEX(AH44:AH53,MATCH(D1,AE44:AE53,1)+1))),IF(B1=AI41,IF(D1<AE45,AI45,IF(D1>=AE45,INDEX(AI45:AI53,MATCH(D1,AE45:AE53,1)+1))),IF(B1=AJ41,IF(D1<AE46,AJ46,IF(D1>=AE46,INDEX(AJ46:AJ53,MATCH(D1,AE46:AE53,1)+1))),IF(B1=AK41,IF(D1<AE49,AK49,IF(D1>=AE49,INDEX(AK49:AK53,MATCH(D1,AE49:AE53,1)+1))))))))))) ->  | AV41: =IF(OR(AR41="",AS41="",AT41="",AU41=""),1,IF(AND(AT41-AR41=0,AS41=AU41),AU41,AS41+($D$1-AR41)*(AU41-AS41)/(AT41-AR41))) -> 1 | AW41: =L1*AQ41 -> 42 | AX41: =L1*AV41 -> 42
W42: 2950 | X42: 1.1 | Y42: 1.1 | Z42: 1.1 | AA42: 1.2 | AB42: 1.2 | AC42: 1.2 | AE42: =W53 -> 330 | AF42: =X53 -> 1.5
W43: 2300 | X43: 1.1 | Y43: 1.1 | Z43: 1.2 | AA43: 1.2 | AB43: 1.2 | AC43: 1.3 | AE43: =W52 -> 495 | AF43: =X52 -> 1.4 | AG43: =Y52 -> 1.5
W44: 1970 | X44: 1.1 | Y44: 1.2 | Z44: 1.2 | AA44: 1.2 | AB44: 1.3 | AC44: 1.4 | AE44: =W51 -> 660 | AF44: =X51 -> 1.3 | AG44: =Y51 -> 1.4 | AH44: =Z51 -> 1.5
W45: 1640 | X45: 1.1 | Y45: 1.2 | Z45: 1.2 | AA45: 1.3 | AB45: 1.3 | AC45: 1.4 | AE45: =W50 -> 820 | AF45: =X50 -> 1.3 | AG45: =Y50 -> 1.3 | AH45: =Z50 -> 1.4 | AI45: =AA50 -> 1.5
W46: 1475 | X46: 1.2 | Y46: 1.2 | Z46: 1.3 | AA46: 1.3 | AB46: 1.4 | AC46: 1.5 | AE46: =W49 -> 985 | AF46: 1.2 | AG46: 1.3 | AH46: 1.4 | AI46: 1.5 | AJ46: 1.5
W47: 1315 | X47: 1.2 | Y47: 1.2 | Z47: 1.3 | AA47: 1.3 | AB47: 1.4 | AE47: =W48 -> 1150 | AF47: 1.2 | AG47: 1.2 | AH47: 1.3 | AI47: 1.4 | AJ47: 1.5
W48: 1150 | X48: 1.2 | Y48: 1.2 | Z48: 1.3 | AA48: 1.4 | AB48: 1.5 | AE48: =W47 -> 1315 | AF48: 1.2 | AG48: 1.2 | AH48: 1.3 | AI48: 1.3 | AJ48: 1.4
W49: 985 | X49: 1.2 | Y49: 1.3 | Z49: 1.4 | AA49: 1.5 | AB49: 1.5 | AE49: =W46 -> 1475 | AF49: 1.2 | AG49: 1.2 | AH49: 1.3 | AI49: 1.3 | AJ49: 1.4 | AK49: 1.5
W50: 820 | X50: 1.3 | Y50: 1.3 | Z50: 1.4 | AA50: 1.5 | AE50: =W45 -> 1640 | AF50: 1.1 | AG50: 1.2 | AH50: 1.2 | AI50: 1.3 | AJ50: 1.3 | AK50: 1.4
W51: 660 | X51: 1.3 | Y51: 1.4 | Z51: 1.5 | AE51: =W44 -> 1970 | AF51: 1.1 | AG51: 1.2 | AH51: 1.2 | AI51: 1.2 | AJ51: 1.3 | AK51: 1.4
W52: 495 | X52: 1.4 | Y52: 1.5 | AE52: =W43 -> 2300 | AF52: 1.1 | AG52: 1.1 | AH52: 1.2 | AI52: 1.2 | AJ52: 1.2 | AK52: 1.3
W53: 330 | X53: 1.5 | AE53: =W42 -> 2950 | AF53: 1.1 | AG53: 1.1 | AH53: 1.1 | AI53: 1.2 | AJ53: 1.2 | AK53: 1.2
W56: Road Design Manual Exhibit 9-16
W57: Design Elements for Barrier Length of Need
W58: Design Speed (mph) | X58: Runout Length LR (ft) | AB58: Shy Line Offset LS (ft)
X59: Design Year Traffic Volume (AADT)
Y60: 5000 | Z60: 1000
X61: 10000 | Y61: 10000 | Z61: 5000 | AA61: 1000
W62: 80 | X62: 470 | Y62: 430 | Z62: 380 | AA62: 330 | AB62: 12 | AD62: =IF($B$1=W62,$H$1,"Error") -> Error
W63: 70 | X63: 360 | Y63: 330 | Z63: 290 | AA63: 250 | AB63: 9 | AD63: 2440
W64: 60 | X64: 300 | Y64: 250 | Z64: 210 | AA64: 200 | AB64: 12 | AD64: Error
W65: 50 | X65: 230 | Y65: 190 | Z65: 160 | AA65: 150 | AB65: 6.5 | AD65: Error
W66: 40 | X66: 160 | Y66: 130 | Z66: 110 | AA66: 100 | AB66: 5 | AD66: Error
W67: 30 | X67: 110 | Y67: 90 | Z67: 80 | AA67: 70 | AB67: 4 | AD67: Error
W68: 55 | X68: =AVERAGE(X64:X65) -> 265 | Y68: 220 | Z68: 185 | AA68: 175 | AB68: 9.25 | AD68: Error
W69: 45 | X69: 195 | Y69: 160 | Z69: 135 | AA69: 125 | AB69: 5.75 | AD69: Error
W70: 35 | X70: 135 | Y70: 110 | Z70: 95 | AA70: 85 | AB70: 4.5 | AD70: Error
